Body Name,Vendor Number,Vendor Name,Cost Centre,Service Label,BV Code,Amount,Period
Slough Borough Council,804709,247 Careservices Ltd,M44D,AD Adult Social Care Operations,Supplies and Services,"11,800.00",Feb-24
Slough Borough Council,804709,247 Careservices Ltd,M44D,AD Adult Social Care Operations,Supplies and Services,"10,800.00",Feb-24
Slough Borough Council,1869,3Ms Gold Services Limited,P006,Capital,Capital Charges,"3,238.56",Feb-24
Slough Borough Council,1869,3Ms Gold Services Limited,P006,Capital,Capital Charges,"7,267.26",Feb-24
Slough Borough Council,1869,3Ms Gold Services Limited,P006,Capital,Capital Charges,"5,406.51",Feb-24
Slough Borough Council,1869,3Ms Gold Services Limited,P006,Capital,Capital Charges,"6,936.15",Feb-24
Slough Borough Council,1055,A J Chapman,F123,AD Education & Inclusion,External Receipts,"1,908.00",Feb-24
Slough Borough Council,1055,A J Chapman,F123,AD Education & Inclusion,External Receipts,"3,920.00",Feb-24
Slough Borough Council,1055,A J Chapman,F123,AD Education & Inclusion,External Receipts,"3,549.00",Feb-24
Slough Borough Council,1055,A J Chapman,F123,AD Education & Inclusion,External Receipts,"59,079.50",Feb-24
Slough Borough Council,809183,Aamay Resource Management Ltd,H205,AD Housing,Supplies and Services,"10,695.00",Feb-24
Slough Borough Council,809078,Aaron Alexander,C322,AD Public Protection & Communities - Children Services,Supplies and Services,792.00,Feb-24
Slough Borough Council,536,Ability Housing Association,M42E,AD People Strategy & Commissioning,Supplies and Services,"3,023.03",Feb-24
Slough Borough Council,536,Ability Housing Association,M42E,AD People Strategy & Commissioning,Supplies and Services,"3,490.52",Feb-24
Slough Borough Council,536,Ability Housing Association,M42E,AD People Strategy & Commissioning,Supplies and Services,"2,788.84",Feb-24
Slough Borough Council,536,Ability Housing Association,M42E,AD People Strategy & Commissioning,Supplies and Services,"2,895.28",Feb-24
Slough Borough Council,536,Ability Housing Association,M42E,AD People Strategy & Commissioning,Supplies and Services,"2,852.71",Feb-24
Slough Borough Council,536,Ability Housing Association,M42E,AD People Strategy & Commissioning,Supplies and Services,"2,682.39",Feb-24
Slough Borough Council,536,Ability Housing Association,M42E,AD People Strategy & Commissioning,Supplies and Services,"1,532.71",Feb-24
Slough Borough Council,536,Ability Housing Association,M42E,AD People Strategy & Commissioning,Supplies and Services,"2,008.57",Feb-24
Slough Borough Council,536,Ability Housing Association,M42E,AD People Strategy & Commissioning,Supplies and Services,"2,583.38",Feb-24
Slough Borough Council,536,Ability Housing Association,M42E,AD People Strategy & Commissioning,Supplies and Services,"2,924.09",Feb-24
Slough Borough Council,536,Ability Housing Association,M42E,AD People Strategy & Commissioning,Supplies and Services,"2,668.57",Feb-24
Slough Borough Council,536,Ability Housing Association,M42E,AD People Strategy & Commissioning,Supplies and Services,"3,222.12",Feb-24
Slough Borough Council,536,Ability Housing Association,M42E,AD People Strategy & Commissioning,Supplies and Services,"2,860.19",Feb-24
Slough Borough Council,536,Ability Housing Association,M42E,AD People Strategy & Commissioning,Supplies and Services,"2,835.72",Feb-24
Slough Borough Council,536,Ability Housing Association,M42E,AD People Strategy & Commissioning,Supplies and Services,"2,860.71",Feb-24
Slough Borough Council,536,Ability Housing Association,M42E,AD People Strategy & Commissioning,Supplies and Services,"1,967.07",Feb-24
Slough Borough Council,536,Ability Housing Association,M42E,AD People Strategy & Commissioning,Supplies and Services,"3,261.53",Feb-24
Slough Borough Council,536,Ability Housing Association,M44E,AD People Strategy & Commissioning,Supplies and Services,"2,078.78",Feb-24
Slough Borough Council,536,Ability Housing Association,M44E,AD People Strategy & Commissioning,Supplies and Services,"2,156.97",Feb-24
Slough Borough Council,536,Ability Housing Association,M44E,AD People Strategy & Commissioning,Supplies and Services,"2,543.29",Feb-24
Slough Borough Council,536,Ability Housing Association,M44E,AD People Strategy & Commissioning,Supplies and Services,"2,635.27",Feb-24
Slough Borough Council,3933,Academy21 Limited,F462,AD Children & Families,Supplies and Services,"3,000.00",Feb-24
Slough Borough Council,2898,Achieve Together t/a The Regard Partnership Ltd,M26E,AD Adult Social Care Operations,Supplies and Services,"7,521.04",Feb-24
Slough Borough Council,2898,Achieve Together t/a The Regard Partnership Ltd,M26E,AD Adult Social Care Operations,Supplies and Services,"6,796.71",Feb-24
Slough Borough Council,2898,Achieve Together t/a The Regard Partnership Ltd,M26E,AD Adult Social Care Operations,Supplies and Services,509.48,Feb-24
Slough Borough Council,2898,Achieve Together t/a The Regard Partnership Ltd,M26E,AD Adult Social Care Operations,Supplies and Services,509.48,Feb-24
Slough Borough Council,2898,Achieve Together t/a The Regard Partnership Ltd,M26E,AD Adult Social Care Operations,Supplies and Services,526.47,Feb-24
Slough Borough Council,2898,Achieve Together t/a The Regard Partnership Ltd,M26E,AD Adult Social Care Operations,Supplies and Services,526.47,Feb-24
Slough Borough Council,2898,Achieve Together t/a The Regard Partnership Ltd,M26E,AD Adult Social Care Operations,Supplies and Services,526.47,Feb-24
Slough Borough Council,2898,Achieve Together t/a The Regard Partnership Ltd,M26E,AD Adult Social Care Operations,Supplies and Services,526.47,Feb-24
Slough Borough Council,2898,Achieve Together t/a The Regard Partnership Ltd,M26E,AD Adult Social Care Operations,Supplies and Services,509.48,Feb-24
Slough Borough Council,2898,Achieve Together t/a The Regard Partnership Ltd,M26E,AD Adult Social Care Operations,Supplies and Services,509.48,Feb-24
Slough Borough Council,2898,Achieve Together t/a The Regard Partnership Ltd,M26E,AD Adult Social Care Operations,Supplies and Services,"7,521.04",Feb-24
Slough Borough Council,2898,Achieve Together t/a The Regard Partnership Ltd,M26E,AD Adult Social Care Operations,Supplies and Services,"6,352.08",Feb-24
Slough Borough Council,2898,Achieve Together t/a The Regard Partnership Ltd,M26E,AD Adult Social Care Operations,Supplies and Services,526.47,Feb-24
Slough Borough Council,2898,Achieve Together t/a The Regard Partnership Ltd,M26E,AD Adult Social Care Operations,Supplies and Services,"8,047.51",Feb-24
Slough Borough Council,2898,Achieve Together t/a The Regard Partnership Ltd,M26E,AD Adult Social Care Operations,Supplies and Services,"6,796.71",Feb-24
Slough Borough Council,2898,Achieve Together t/a The Regard Partnership Ltd,M26E,AD Adult Social Care Operations,Supplies and Services,"7,528.32",Feb-24
Slough Borough Council,2898,Achieve Together t/a The Regard Partnership Ltd,M26E,AD Adult Social Care Operations,Supplies and Services,"6,358.21",Feb-24
Slough Borough Council,2898,Achieve Together t/a The Regard Partnership Ltd,M42E,AD People Strategy & Commissioning,Supplies and Services,"5,707.94",Feb-24
Slough Borough Council,2898,Achieve Together t/a The Regard Partnership Ltd,M42E,AD People Strategy & Commissioning,Supplies and Services,"5,707.94",Feb-24
Slough Borough Council,2898,Achieve Together t/a The Regard Partnership Ltd,M42E,AD People Strategy & Commissioning,Supplies and Services,"7,504.13",Feb-24
Slough Borough Council,2898,Achieve Together t/a The Regard Partnership Ltd,M42E,AD People Strategy & Commissioning,Supplies and Services,"5,572.60",Feb-24
Slough Borough Council,2898,Achieve Together t/a The Regard Partnership Ltd,M42E,AD People Strategy & Commissioning,Supplies and Services,"5,601.57",Feb-24
Slough Borough Council,2898,Achieve Together t/a The Regard Partnership Ltd,M42E,AD People Strategy & Commissioning,Supplies and Services,"7,256.17",Feb-24
Slough Borough Council,2898,Achieve Together t/a The Regard Partnership Ltd,M42E,AD People Strategy & Commissioning,Supplies and Services,"7,256.17",Feb-24
Slough Borough Council,2898,Achieve Together t/a The Regard Partnership Ltd,M42E,AD People Strategy & Commissioning,Supplies and Services,"7,504.13",Feb-24
Slough Borough Council,2898,Achieve Together t/a The Regard Partnership Ltd,M42E,AD People Strategy & Commissioning,Supplies and Services,"5,572.60",Feb-24
Slough Borough Council,2898,Achieve Together t/a The Regard Partnership Ltd,M42E,AD People Strategy & Commissioning,Supplies and Services,"5,066.23",Feb-24
Slough Borough Council,2898,Achieve Together t/a The Regard Partnership Ltd,M42E,AD People Strategy & Commissioning,Supplies and Services,"5,240.18",Feb-24
Slough Borough Council,2898,Achieve Together t/a The Regard Partnership Ltd,M42E,AD People Strategy & Commissioning,Supplies and Services,"5,213.08",Feb-24
Slough Borough Council,2898,Achieve Together t/a The Regard Partnership Ltd,M42E,AD People Strategy & Commissioning,Supplies and Services,"7,019.99",Feb-24
Slough Borough Council,2898,Achieve Together t/a The Regard Partnership Ltd,M42E,AD People Strategy & Commissioning,Supplies and Services,"5,339.69",Feb-24
Slough Borough Council,2898,Achieve Together t/a The Regard Partnership Ltd,M42E,AD People Strategy & Commissioning,Supplies and Services,"6,788.03",Feb-24
Slough Borough Council,2898,Achieve Together t/a The Regard Partnership Ltd,M44D,AD Adult Social Care Operations,Supplies and Services,"5,179.75",Feb-24
Slough Borough Council,2898,Achieve Together t/a The Regard Partnership Ltd,M44D,AD Adult Social Care Operations,Supplies and Services,"5,179.75",Feb-24
Slough Borough Council,2898,Achieve Together t/a The Regard Partnership Ltd,M44D,AD Adult Social Care Operations,Supplies and Services,"4,845.57",Feb-24
Slough Borough Council,2898,Achieve Together t/a The Regard Partnership Ltd,M44E,AD People Strategy & Commissioning,Supplies and Services,"6,225.77",Feb-24
Slough Borough Council,2898,Achieve Together t/a The Regard Partnership Ltd,M44E,AD People Strategy & Commissioning,Supplies and Services,"6,225.77",Feb-24
Slough Borough Council,2898,Achieve Together t/a The Regard Partnership Ltd,M44E,AD People Strategy & Commissioning,Supplies and Services,"5,824.11",Feb-24
Slough Borough Council,807554,Acorn Care & Education Ltd,F558,AD Children & Families,Supplies and Services,"42,488.00",Feb-24
Slough Borough Council,808703,Adam Haigh,C322,AD Public Protection & Communities - Children Services,Supplies and Services,512.00,Feb-24
Slough Borough Council,2855,Advance Housing & Support Ltd,M42F,AD People Strategy & Commissioning,Supplies and Services,"1,673.90",Feb-24
Slough Borough Council,2855,Advance Housing & Support Ltd,M42F,AD People Strategy & Commissioning,Supplies and Services,"1,141.32",Feb-24
Slough Borough Council,2135,Adventure Learning Childcare Limited,F281,AD Education & Inclusion,Premises,851.95,Feb-24
Slough Borough Council,2135,Adventure Learning Childcare Limited,F281,AD Education & Inclusion,Supplies and Services,"7,077.06",Feb-24
Slough Borough Council,2135,Adventure Learning Childcare Limited,F281,AD Education & Inclusion,Supplies and Services,"4,410.76",Feb-24
Slough Borough Council,1603,Advision Security Ltd,A07M,AD People Strategy & Commissioning,Premises,"1,570.00",Feb-24
Slough Borough Council,805088,Agilysis Ltd,P243,Capital,Capital Charges,"6,614.88",Feb-24
Slough Borough Council,809232,Alison Simpson-Price,C322,AD Public Protection & Communities - Children Services,Supplies and Services,563.50,Feb-24
Slough Borough Council,809232,Alison Simpson-Price,C322,AD Public Protection & Communities - Children Services,Supplies and Services,"1,576.75",Feb-24
Slough Borough Council,2197,Altwood Housing Ltd,H205,AD Housing,Supplies and Services,"1,080.00",Feb-24
Slough Borough Council,86,Altwood Properties Ltd,H205,AD Housing,Premises,"42,625.50",Feb-24
Slough Borough Council,807515,Always Growing Together Community Interest Company Limited,F281,AD Education & Inclusion,Premises,650.82,Feb-24
Slough Borough Council,807515,Always Growing Together Community Interest Company Limited,F281,AD Education & Inclusion,Supplies and Services,"6,361.82",Feb-24
Slough Borough Council,807515,Always Growing Together Community Interest Company Limited,F281,AD Education & Inclusion,Supplies and Services,"2,344.73",Feb-24
Slough Borough Council,808191,Ambrose Adrian Healthcare Ltd,M44E,AD People Strategy & Commissioning,Supplies and Services,"3,800.00",Feb-24
Slough Borough Council,808718,Andel Ltd,B060,AD Building Management,Premises,"1,186.00",Feb-24
Slough Borough Council,3137,Applegarth Care Home Ltd,M25C,AD Adult Social Care Operations,Supplies and Services,"3,200.00",Feb-24
Slough Borough Council,3137,Applegarth Care Home Ltd,M25C,AD Adult Social Care Operations,Supplies and Services,"3,600.00",Feb-24
Slough Borough Council,3137,Applegarth Care Home Ltd,M25C,AD Adult Social Care Operations,Supplies and Services,"3,200.00",Feb-24
Slough Borough Council,3137,Applegarth Care Home Ltd,M25C,AD Adult Social Care Operations,Supplies and Services,"3,600.00",Feb-24
Slough Borough Council,808415,APTUS EA LTD,H205,AD Housing,Supplies and Services,"289,290.00",Feb-24
Slough Borough Council,3350,Arbour Vale School,E610,AD Children & Families,Supplies and Services,"507,265.64",Feb-24
Slough Borough Council,2073,Arc Preschool,F281,AD Education & Inclusion,Premises,"1,739.08",Feb-24
Slough Borough Council,2073,Arc Preschool,F281,AD Education & Inclusion,Premises,529.29,Feb-24
Slough Borough Council,2073,Arc Preschool,F281,AD Education & Inclusion,Supplies and Services,"4,557.37",Feb-24
Slough Borough Council,2073,Arc Preschool,F281,AD Education & Inclusion,Supplies and Services,"1,453.74",Feb-24
Slough Borough Council,831,Argos Business Solutions Ltd,H055,AD Deputy Director Corporate & Strategic Finance,Supplies and Services,"25,088.00",Feb-24
Slough Borough Council,831,Argos Business Solutions Ltd,H055,AD Deputy Director Corporate & Strategic Finance,Supplies and Services,"17,912.00",Feb-24
Slough Borough Council,1637,Arlingclose Ltd,B015,AD Deputy Director Financial Management,Supplies and Services,"8,108.37",Feb-24
Slough Borough Council,1166,Art Beyond Belief,F210,AD Public Protection & Communities - Children Services,TP-Other Bodies,"3,240.00",Feb-24
Slough Borough Council,1985,Ascentis,F210,AD Public Protection & Communities - Children Services,Supplies and Services,886.00,Feb-24
Slough Borough Council,1985,Ascentis,F210,AD Public Protection & Communities - Children Services,Supplies and Services,750.00,Feb-24
Slough Borough Council,809029,ASH TEIKO,F253,AD Children & Families,Agency Staff,"1,600.00",Feb-24
Slough Borough Council,420,Ashburn Estate Agents,H205,AD Housing,Premises,"100,769.00",Feb-24
Slough Borough Council,803552,Askews and Holts Library Services Ltd,C104,AD Customer,Supplies and Services,503.77,Feb-24
Slough Borough Council,803552,Askews and Holts Library Services Ltd,C104,AD Customer,Supplies and Services,"6,196.01",Feb-24
Slough Borough Council,803552,Askews and Holts Library Services Ltd,C104,AD Customer,Supplies and Services,"1,080.56",Feb-24
Slough Borough Council,803552,Askews and Holts Library Services Ltd,C104,AD Customer,Supplies and Services,970.48,Feb-24
Slough Borough Council,803552,Askews and Holts Library Services Ltd,C104,AD Customer,Supplies and Services,944.97,Feb-24
Slough Borough Council,803552,Askews and Holts Library Services Ltd,C104,AD Customer,Supplies and Services,986.38,Feb-24
Slough Borough Council,808720,Aspect Lifts Ltd,B060,AD Building Management,Premises,844.06,Feb-24
Slough Borough Council,3666,Assisted Living South West,M26E,AD Adult Social Care Operations,Supplies and Services,"6,778.96",Feb-24
Slough Borough Council,3666,Assisted Living South West,M26E,AD Adult Social Care Operations,Supplies and Services,"5,334.28",Feb-24
Slough Borough Council,808330,Avison Young,P242,Capital,Capital Charges,"1,500.00",Feb-24
Slough Borough Council,808776,AVK-SEG (UK) Ltd,B060,AD Building Management,Premises,626.00,Feb-24
Slough Borough Council,808535,Baylis Community Media CIC,P238,Capital,Capital Charges,520.80,Feb-24
Slough Borough Council,808535,Baylis Community Media CIC,P243,Capital,Capital Charges,651.00,Feb-24
Slough Borough Council,808535,Baylis Community Media CIC,P243,Capital,Capital Charges,682.00,Feb-24
Slough Borough Council,3370,Baylis Court School,E610,AD Children & Families,Supplies and Services,"6,819.86",Feb-24
Slough Borough Council,1681,BCQ Solutions Ltd,C322,AD Public Protection & Communities - Children Services,Supplies and Services,"1,128.00",Feb-24
Slough Borough Council,1681,BCQ Solutions Ltd,D610,AD Place Operations,Supplies and Services,"1,516.00",Feb-24
Slough Borough Council,3208,Be Happy Pre School,F281,AD Education & Inclusion,Premises,"1,677.27",Feb-24
Slough Borough Council,3208,Be Happy Pre School,F281,AD Education & Inclusion,Premises,585.04,Feb-24
Slough Borough Council,3208,Be Happy Pre School,F281,AD Education & Inclusion,Supplies and Services,"9,629.60",Feb-24
Slough Borough Council,3208,Be Happy Pre School,F281,AD Education & Inclusion,Supplies and Services,"4,479.51",Feb-24
Slough Borough Council,3208,Be Happy Pre School,F281,AD Education & Inclusion,Supplies and Services,"1,597.75",Feb-24
Slough Borough Council,3208,Be Happy Pre School,F281,AD Education & Inclusion,Supplies and Services,"2,849.80",Feb-24
Slough Borough Council,609,Beechwood Secondary School,E610,AD Children & Families,Supplies and Services,"5,739.38",Feb-24
Slough Borough Council,612,Berkshire Healthcare Nhs Foundation Trust,A07M,AD People Strategy & Commissioning,Supplies and Services,"2,686.13",Feb-24
Slough Borough Council,808116,BeSpoke Cycling Instruction Ltd,D500,AD Place Operations,Supplies and Services,"9,830.00",Feb-24
Slough Borough Council,808148,BEST CHOICE CARE LTD,A07R,AD Adult Social Care Operations,Supplies and Services,"1,225.00",Feb-24
Slough Borough Council,808148,BEST CHOICE CARE LTD,A07R,AD Adult Social Care Operations,Supplies and Services,665.14,Feb-24
Slough Borough Council,808148,BEST CHOICE CARE LTD,A07R,AD Adult Social Care Operations,Supplies and Services,"2,205.28",Feb-24
Slough Borough Council,808148,BEST CHOICE CARE LTD,A07R,AD Adult Social Care Operations,Supplies and Services,857.64,Feb-24
Slough Borough Council,808148,BEST CHOICE CARE LTD,A07R,AD Adult Social Care Operations,Supplies and Services,704.39,Feb-24
Slough Borough Council,808148,BEST CHOICE CARE LTD,M41D,AD Adult Social Care Operations,Supplies and Services,630.00,Feb-24
Slough Borough Council,808148,BEST CHOICE CARE LTD,M41D,AD Adult Social Care Operations,Supplies and Services,595.00,Feb-24
Slough Borough Council,808148,BEST CHOICE CARE LTD,M44C,AD Adult Social Care Operations,Supplies and Services,"1,837.78",Feb-24
Slough Borough Council,808148,BEST CHOICE CARE LTD,M44C,AD Adult Social Care Operations,Supplies and Services,"1,470.28",Feb-24
Slough Borough Council,808148,BEST CHOICE CARE LTD,M44C,AD Adult Social Care Operations,Supplies and Services,590.76,Feb-24
Slough Borough Council,808148,BEST CHOICE CARE LTD,M44C,AD Adult Social Care Operations,Supplies and Services,647.65,Feb-24
Slough Borough Council,808148,BEST CHOICE CARE LTD,M44C,AD Adult Social Care Operations,Supplies and Services,971.37,Feb-24
Slough Borough Council,808148,BEST CHOICE CARE LTD,M44C,AD Adult Social Care Operations,Supplies and Services,700.04,Feb-24
Slough Borough Council,808148,BEST CHOICE CARE LTD,M44C,AD Adult Social Care Operations,Supplies and Services,542.64,Feb-24
Slough Borough Council,808148,BEST CHOICE CARE LTD,M44C,AD Adult Social Care Operations,Supplies and Services,726.25,Feb-24
Slough Borough Council,808148,BEST CHOICE CARE LTD,M44C,AD Adult Social Care Operations,Supplies and Services,"2,048.06",Feb-24
Slough Borough Council,808148,BEST CHOICE CARE LTD,M44C,AD Adult Social Care Operations,Supplies and Services,997.78,Feb-24
Slough Borough Council,808148,BEST CHOICE CARE LTD,M44C,AD Adult Social Care Operations,Supplies and Services,"1,225.00",Feb-24
Slough Borough Council,808148,BEST CHOICE CARE LTD,M44C,AD Adult Social Care Operations,Supplies and Services,857.64,Feb-24
Slough Borough Council,808148,BEST CHOICE CARE LTD,M44C,AD Adult Social Care Operations,Supplies and Services,809.66,Feb-24
Slough Borough Council,808148,BEST CHOICE CARE LTD,M44C,AD Adult Social Care Operations,Supplies and Services,560.28,Feb-24
Slough Borough Council,808148,BEST CHOICE CARE LTD,M44C,AD Adult Social Care Operations,Supplies and Services,533.89,Feb-24
Slough Borough Council,808148,BEST CHOICE CARE LTD,M44C,AD Adult Social Care Operations,Supplies and Services,"1,190.00",Feb-24
Slough Borough Council,808148,BEST CHOICE CARE LTD,M44C,AD Adult Social Care Operations,Supplies and Services,700.04,Feb-24
Slough Borough Council,808148,BEST CHOICE CARE LTD,M44C,AD Adult Social Care Operations,Supplies and Services,"1,220.63",Feb-24
Slough Borough Council,808148,BEST CHOICE CARE LTD,M44C,AD Adult Social Care Operations,Supplies and Services,"1,627.50",Feb-24
Slough Borough Council,808148,BEST CHOICE CARE LTD,M44C,AD Adult Social Care Operations,Supplies and Services,547.00,Feb-24
Slough Borough Council,808148,BEST CHOICE CARE LTD,M44C,AD Adult Social Care Operations,Supplies and Services,844.51,Feb-24
Slough Borough Council,808148,BEST CHOICE CARE LTD,M44C,AD Adult Social Care Operations,Supplies and Services,949.38,Feb-24
Slough Borough Council,808148,BEST CHOICE CARE LTD,M44C,AD Adult Social Care Operations,Supplies and Services,"2,327.78",Feb-24
Slough Borough Council,808148,BEST CHOICE CARE LTD,M44C,AD Adult Social Care Operations,Supplies and Services,"1,837.78",Feb-24
Slough Borough Council,808148,BEST CHOICE CARE LTD,M44C,AD Adult Social Care Operations,Supplies and Services,"1,356.25",Feb-24
Slough Borough Council,808148,BEST CHOICE CARE LTD,M44C,AD Adult Social Care Operations,Supplies and Services,"2,187.78",Feb-24
Slough Borough Council,808148,BEST CHOICE CARE LTD,M44C,AD Adult Social Care Operations,Supplies and Services,980.00,Feb-24
Slough Borough Council,808148,BEST CHOICE CARE LTD,M44C,AD Adult Social Care Operations,Supplies and Services,857.64,Feb-24
Slough Borough Council,808148,BEST CHOICE CARE LTD,M44C,AD Adult Social Care Operations,Supplies and Services,765.63,Feb-24
Slough Borough Council,808148,BEST CHOICE CARE LTD,M44C,AD Adult Social Care Operations,Supplies and Services,717.50,Feb-24
Slough Borough Council,808148,BEST CHOICE CARE LTD,M44C,AD Adult Social Care Operations,Supplies and Services,735.00,Feb-24
Slough Borough Council,808148,BEST CHOICE CARE LTD,M44C,AD Adult Social Care Operations,Supplies and Services,927.62,Feb-24
Slough Borough Council,808148,BEST CHOICE CARE LTD,M44C,AD Adult Social Care Operations,Supplies and Services,503.13,Feb-24
Slough Borough Council,808148,BEST CHOICE CARE LTD,M44C,AD Adult Social Care Operations,Supplies and Services,"2,441.25",Feb-24
Slough Borough Council,808148,BEST CHOICE CARE LTD,M44C,AD Adult Social Care Operations,Supplies and Services,857.64,Feb-24
Slough Borough Council,808148,BEST CHOICE CARE LTD,M44C,AD Adult Social Care Operations,Supplies and Services,678.13,Feb-24
Slough Borough Council,808148,BEST CHOICE CARE LTD,M44C,AD Adult Social Care Operations,Supplies and Services,"2,161.81",Feb-24
Slough Borough Council,808148,BEST CHOICE CARE LTD,M44C,AD Adult Social Care Operations,Supplies and Services,857.64,Feb-24
Slough Borough Council,808148,BEST CHOICE CARE LTD,M44C,AD Adult Social Care Operations,Supplies and Services,"2,048.06",Feb-24
Slough Borough Council,808148,BEST CHOICE CARE LTD,M44C,AD Adult Social Care Operations,Supplies and Services,559.03,Feb-24
Slough Borough Council,808148,BEST CHOICE CARE LTD,M44D,AD Adult Social Care Operations,Supplies and Services,"1,128.94",Feb-24
Slough Borough Council,808148,BEST CHOICE CARE LTD,M44D,AD Adult Social Care Operations,Supplies and Services,517.50,Feb-24
Slough Borough Council,808148,BEST CHOICE CARE LTD,M44D,AD Adult Social Care Operations,Supplies and Services,"1,653.66",Feb-24
Slough Borough Council,808148,BEST CHOICE CARE LTD,M44D,AD Adult Social Care Operations,Supplies and Services,551.62,Feb-24
Slough Borough Council,808148,BEST CHOICE CARE LTD,M44D,AD Adult Social Care Operations,Supplies and Services,"1,811.25",Feb-24
Slough Borough Council,808148,BEST CHOICE CARE LTD,M44D,AD Adult Social Care Operations,Supplies and Services,658.75,Feb-24
Slough Borough Council,808148,BEST CHOICE CARE LTD,M44D,AD Adult Social Care Operations,Supplies and Services,"1,898.75",Feb-24
Slough Borough Council,808148,BEST CHOICE CARE LTD,M44D,AD Adult Social Care Operations,Supplies and Services,"2,441.25",Feb-24
Slough Borough Council,808148,BEST CHOICE CARE LTD,M44D,AD Adult Social Care Operations,Supplies and Services,"1,242.64",Feb-24
Slough Borough Council,808148,BEST CHOICE CARE LTD,M44F,AD People Strategy & Commissioning,Supplies and Services,752.64,Feb-24
Slough Borough Council,808148,BEST CHOICE CARE LTD,M44F,AD People Strategy & Commissioning,Supplies and Services,697.50,Feb-24
Slough Borough Council,808148,BEST CHOICE CARE LTD,M44F,AD People Strategy & Commissioning,Supplies and Services,612.64,Feb-24
Slough Borough Council,808148,BEST CHOICE CARE LTD,M45C,AD Adult Social Care Operations,Supplies and Services,778.89,Feb-24
Slough Borough Council,808148,BEST CHOICE CARE LTD,M45C,AD Adult Social Care Operations,Supplies and Services,"1,960.28",Feb-24
Slough Borough Council,808148,BEST CHOICE CARE LTD,M45C,AD Adult Social Care Operations,Supplies and Services,739.49,Feb-24
Slough Borough Council,808148,BEST CHOICE CARE LTD,M45C,AD Adult Social Care Operations,Supplies and Services,"1,653.75",Feb-24
Slough Borough Council,808148,BEST CHOICE CARE LTD,M48C,AD Adult Social Care Operations,Supplies and Services,"2,471.12",Feb-24
Slough Borough Council,808148,BEST CHOICE CARE LTD,M48C,AD Adult Social Care Operations,Supplies and Services,697.50,Feb-24
Slough Borough Council,808148,BEST CHOICE CARE LTD,M48C,AD Adult Social Care Operations,Supplies and Services,"2,229.44",Feb-24
Slough Borough Council,1736,Bevan Brittan Llp,P242,Capital,Capital Charges,525.00,Feb-24
Slough Borough Council,808755,BHANDAL INVESTMENTS LTD,H205,AD Housing,Supplies and Services,"25,761.00",Feb-24
Slough Borough Council,808755,BHANDAL INVESTMENTS LTD,H205,AD Housing,Supplies and Services,"23,329.00",Feb-24
Slough Borough Council,1224,Big Yellow Self Storage,F253,AD Children & Families,Premises,644.00,Feb-24
Slough Borough Council,1224,Big Yellow Self Storage,F253,AD Children & Families,Premises,644.00,Feb-24
Slough Borough Council,3611,Birch Assist Ltd T/A Bluebird Care (South Bucks & Slough),M44D,AD Adult Social Care Operations,Supplies and Services,"2,982.00",Feb-24
Slough Borough Council,3611,Birch Assist Ltd T/A Bluebird Care (South Bucks & Slough),M44D,AD Adult Social Care Operations,Supplies and Services,"2,982.00",Feb-24
Slough Borough Council,808452,Black Swan International Limited,M25C,AD Adult Social Care Operations,Supplies and Services,"3,107.06",Feb-24
Slough Borough Council,803601,Bolinda UK Ltd,C104,AD Customer,Supplies and Services,884.94,Feb-24
Slough Borough Council,803601,Bolinda UK Ltd,C104,AD Customer,Supplies and Services,799.07,Feb-24
Slough Borough Council,803601,Bolinda UK Ltd,C104,AD Customer,Supplies and Services,"1,867.29",Feb-24
Slough Borough Council,803601,Bolinda UK Ltd,C104,AD Customer,Supplies and Services,"1,240.98",Feb-24
Slough Borough Council,803601,Bolinda UK Ltd,C104,AD Customer,Supplies and Services,513.39,Feb-24
Slough Borough Council,803601,Bolinda UK Ltd,C104,AD Customer,Supplies and Services,"2,418.05",Feb-24
Slough Borough Council,803601,Bolinda UK Ltd,C104,AD Customer,Supplies and Services,"1,482.80",Feb-24
Slough Borough Council,803601,Bolinda UK Ltd,C104,AD Customer,Supplies and Services,"1,184.36",Feb-24
Slough Borough Council,805160,Bouygues E&S FM UK Limited,B060,AD Building Management,Premises,"5,186.96",Feb-24
Slough Borough Council,808476,Boxtor Limited,F253,AD Children & Families,Supplies and Services,"2,375.00",Feb-24
Slough Borough Council,809353,BPC Energy Limited,B064,AD Building Management,Premises,"4,102.94",Feb-24
Slough Borough Council,805060,BPS Dorking Ltd t/a BPS Chartered Surveyors,D224,Chief Planner,Supplies and Services,"5,060.00",Feb-24
Slough Borough Council,805370,Braywood C. of E First School,F552,AD Children & Families,Supplies and Services,"2,513.00",Feb-24
Slough Borough Council,805370,Braywood C. of E First School,F552,AD Children & Families,Supplies and Services,"2,757.00",Feb-24
Slough Borough Council,805817,Bright World Nurseries,F281,AD Education & Inclusion,Premises,"1,302.04",Feb-24
Slough Borough Council,805817,Bright World Nurseries,F281,AD Education & Inclusion,Premises,"2,942.15",Feb-24
Slough Borough Council,805817,Bright World Nurseries,F281,AD Education & Inclusion,Supplies and Services,"4,931.24",Feb-24
Slough Borough Council,805817,Bright World Nurseries,F281,AD Education & Inclusion,Supplies and Services,"1,590.49",Feb-24
Slough Borough Council,3409,British Gas,J015,AD Housing,Premises,"1,944.23",Feb-24
Slough Borough Council,3409,British Gas,J015,AD Housing,Premises,518.55,Feb-24
Slough Borough Council,3409,British Gas,J015,AD Housing,Premises,"1,972.23",Feb-24
Slough Borough Council,949,British Parking Association,P243,Capital,Capital Charges,"1,930.00",Feb-24
Slough Borough Council,617,British Telecommunications,D122,AD Place Operations,Supplies and Services,527.84,Feb-24
Slough Borough Council,504,Britwell Baptist Pre School,F281,AD Education & Inclusion,Supplies and Services,"2,167.21",Feb-24
Slough Borough Council,807947,Browns CS Ltd,H216,AD Housing,Supplies and Services,"6,249.99",Feb-24
Slough Borough Council,809324,Brownstones Property Services LTD,H205,AD Housing,Supplies and Services,"9,236.00",Feb-24
Slough Borough Council,809324,Brownstones Property Services LTD,H218,AD Housing,Supplies and Services,"12,836.00",Feb-24
Slough Borough Council,803873,Buckinghamshire County Council,D342,AD Place Operations,Supplies and Services,"329,556.90",Feb-24
Slough Borough Council,803873,Buckinghamshire County Council,F552,AD Children & Families,Supplies and Services,"1,235.00",Feb-24
Slough Borough Council,803873,Buckinghamshire County Council,F552,AD Children & Families,Supplies and Services,"1,520.00",Feb-24
Slough Borough Council,741,Bunnies Pre-School,F281,AD Education & Inclusion,Supplies and Services,"4,857.16",Feb-24
Slough Borough Council,741,Bunnies Pre-School,F281,AD Education & Inclusion,Supplies and Services,"1,439.43",Feb-24
Slough Borough Council,803553,BUPA CARE HOME (CFH CARE),M25D,AD Adult Social Care Operations,Supplies and Services,"3,476.19",Feb-24
Slough Borough Council,803553,BUPA CARE HOME (CFH CARE),M25D,AD Adult Social Care Operations,Supplies and Services,"3,476.19",Feb-24
Slough Borough Council,804448,Bupa Care Homes (ANS) Ltd,M15D,AD Adult Social Care Operations,Supplies and Services,"6,642.86",Feb-24
Slough Borough Council,804448,Bupa Care Homes (ANS) Ltd,M15D,AD Adult Social Care Operations,Supplies and Services,"6,054.03",Feb-24
Slough Borough Council,804448,Bupa Care Homes (ANS) Ltd,M15D,AD Adult Social Care Operations,Supplies and Services,"6,200.00",Feb-24
Slough Borough Council,804448,Bupa Care Homes (ANS) Ltd,M15D,AD Adult Social Care Operations,Supplies and Services,"-2,357.15",Feb-24
Slough Borough Council,2675,Burnham Lodge Ltd,A02E,AD Adult Social Care Operations,Supplies and Services,"5,314.33",Feb-24
Slough Borough Council,2675,Burnham Lodge Ltd,A02E,AD Adult Social Care Operations,Supplies and Services,"5,314.33",Feb-24
Slough Borough Council,2675,Burnham Lodge Ltd,A02E,AD Adult Social Care Operations,Supplies and Services,"5,314.33",Feb-24
Slough Borough Council,2675,Burnham Lodge Ltd,A02E,AD Adult Social Care Operations,Supplies and Services,"5,314.33",Feb-24
Slough Borough Council,2675,Burnham Lodge Ltd,A02E,AD Adult Social Care Operations,Supplies and Services,"5,142.90",Feb-24
Slough Borough Council,2675,Burnham Lodge Ltd,A02E,AD Adult Social Care Operations,Supplies and Services,"5,142.90",Feb-24
Slough Borough Council,2675,Burnham Lodge Ltd,M25D,AD Adult Social Care Operations,Supplies and Services,"4,971.47",Feb-24
Slough Borough Council,629,C.H.O.I.C.E Limited,M26E,AD Adult Social Care Operations,Supplies and Services,620.68,Feb-24
Slough Borough Council,629,C.H.O.I.C.E Limited,M26E,AD Adult Social Care Operations,Supplies and Services,727.03,Feb-24
Slough Borough Council,629,C.H.O.I.C.E Limited,M26E,AD Adult Social Care Operations,Supplies and Services,727.03,Feb-24
Slough Borough Council,629,C.H.O.I.C.E Limited,M26E,AD Adult Social Care Operations,Supplies and Services,968.13,Feb-24
Slough Borough Council,629,C.H.O.I.C.E Limited,M26E,AD Adult Social Care Operations,Supplies and Services,773.72,Feb-24
Slough Borough Council,629,C.H.O.I.C.E Limited,M26E,AD Adult Social Care Operations,Supplies and Services,687.18,Feb-24
Slough Borough Council,629,C.H.O.I.C.E Limited,M26E,AD Adult Social Care Operations,Supplies and Services,"1,881.83",Feb-24
Slough Borough Council,629,C.H.O.I.C.E Limited,M26E,AD Adult Social Care Operations,Supplies and Services,"3,025.30",Feb-24
Slough Borough Council,629,C.H.O.I.C.E Limited,M26E,AD Adult Social Care Operations,Supplies and Services,849.85,Feb-24
Slough Borough Council,629,C.H.O.I.C.E Limited,M26E,AD Adult Social Care Operations,Supplies and Services,"1,247.36",Feb-24
Slough Borough Council,629,C.H.O.I.C.E Limited,M26E,AD Adult Social Care Operations,Supplies and Services,"1,397.24",Feb-24
Slough Borough Council,629,C.H.O.I.C.E Limited,M26E,AD Adult Social Care Operations,Supplies and Services,"1,996.80",Feb-24
Slough Borough Council,629,C.H.O.I.C.E Limited,M26E,AD Adult Social Care Operations,Supplies and Services,"2,063.36",Feb-24
Slough Borough Council,629,C.H.O.I.C.E Limited,M26E,AD Adult Social Care Operations,Supplies and Services,"2,063.36",Feb-24
Slough Borough Council,629,C.H.O.I.C.E Limited,M26E,AD Adult Social Care Operations,Supplies and Services,875.15,Feb-24
Slough Borough Council,629,C.H.O.I.C.E Limited,M26E,AD Adult Social Care Operations,Supplies and Services,627.47,Feb-24
Slough Borough Council,629,C.H.O.I.C.E Limited,M26E,AD Adult Social Care Operations,Supplies and Services,"2,702.58",Feb-24
Slough Borough Council,629,C.H.O.I.C.E Limited,M26E,AD Adult Social Care Operations,Supplies and Services,"1,881.83",Feb-24
Slough Borough Council,629,C.H.O.I.C.E Limited,M26E,AD Adult Social Care Operations,Supplies and Services,904.32,Feb-24
Slough Borough Council,629,C.H.O.I.C.E Limited,M26E,AD Adult Social Care Operations,Supplies and Services,904.32,Feb-24
Slough Borough Council,629,C.H.O.I.C.E Limited,M26E,AD Adult Social Care Operations,Supplies and Services,904.26,Feb-24
Slough Borough Council,629,C.H.O.I.C.E Limited,M26E,AD Adult Social Care Operations,Supplies and Services,748.76,Feb-24
Slough Borough Council,629,C.H.O.I.C.E Limited,M26E,AD Adult Social Care Operations,Supplies and Services,"2,702.58",Feb-24
Slough Borough Council,629,C.H.O.I.C.E Limited,M26E,AD Adult Social Care Operations,Supplies and Services,"2,063.36",Feb-24
Slough Borough Council,629,C.H.O.I.C.E Limited,M26E,AD Adult Social Care Operations,Supplies and Services,"2,063.36",Feb-24
Slough Borough Council,629,C.H.O.I.C.E Limited,M26E,AD Adult Social Care Operations,Supplies and Services,627.47,Feb-24
Slough Borough Council,629,C.H.O.I.C.E Limited,M26E,AD Adult Social Care Operations,Supplies and Services,627.47,Feb-24
Slough Borough Council,629,C.H.O.I.C.E Limited,M26E,AD Adult Social Care Operations,Supplies and Services,875.15,Feb-24
Slough Borough Council,629,C.H.O.I.C.E Limited,M26E,AD Adult Social Care Operations,Supplies and Services,875.15,Feb-24
Slough Borough Council,629,C.H.O.I.C.E Limited,M26E,AD Adult Social Care Operations,Supplies and Services,875.15,Feb-24
Slough Borough Council,629,C.H.O.I.C.E Limited,M26E,AD Adult Social Care Operations,Supplies and Services,748.76,Feb-24
Slough Borough Council,629,C.H.O.I.C.E Limited,M26E,AD Adult Social Care Operations,Supplies and Services,874.44,Feb-24
Slough Borough Council,629,C.H.O.I.C.E Limited,M26E,AD Adult Social Care Operations,Supplies and Services,968.13,Feb-24
Slough Borough Council,629,C.H.O.I.C.E Limited,M26E,AD Adult Social Care Operations,Supplies and Services,849.85,Feb-24
Slough Borough Council,629,C.H.O.I.C.E Limited,M26E,AD Adult Social Care Operations,Supplies and Services,587.90,Feb-24
Slough Borough Council,629,C.H.O.I.C.E Limited,M26E,AD Adult Social Care Operations,Supplies and Services,703.58,Feb-24
Slough Borough Council,629,C.H.O.I.C.E Limited,M26E,AD Adult Social Care Operations,Supplies and Services,565.08,Feb-24
Slough Borough Council,629,C.H.O.I.C.E Limited,M26E,AD Adult Social Care Operations,Supplies and Services,625.62,Feb-24
Slough Borough Council,629,C.H.O.I.C.E Limited,M26E,AD Adult Social Care Operations,Supplies and Services,773.72,Feb-24
Slough Borough Council,629,C.H.O.I.C.E Limited,M26E,AD Adult Social Care Operations,Supplies and Services,"2,702.58",Feb-24
Slough Borough Council,629,C.H.O.I.C.E Limited,M26E,AD Adult Social Care Operations,Supplies and Services,904.32,Feb-24
Slough Borough Council,629,C.H.O.I.C.E Limited,M26E,AD Adult Social Care Operations,Supplies and Services,703.58,Feb-24
Slough Borough Council,629,C.H.O.I.C.E Limited,M26E,AD Adult Social Care Operations,Supplies and Services,703.58,Feb-24
Slough Borough Council,629,C.H.O.I.C.E Limited,M26E,AD Adult Social Care Operations,Supplies and Services,727.03,Feb-24
Slough Borough Council,629,C.H.O.I.C.E Limited,M26E,AD Adult Social Care Operations,Supplies and Services,748.76,Feb-24
Slough Borough Council,629,C.H.O.I.C.E Limited,M26E,AD Adult Social Care Operations,Supplies and Services,524.30,Feb-24
Slough Borough Council,629,C.H.O.I.C.E Limited,M26E,AD Adult Social Care Operations,Supplies and Services,587.90,Feb-24
Slough Borough Council,629,C.H.O.I.C.E Limited,M26E,AD Adult Social Care Operations,Supplies and Services,648.39,Feb-24
Slough Borough Council,629,C.H.O.I.C.E Limited,M26E,AD Adult Social Care Operations,Supplies and Services,861.36,Feb-24
Slough Borough Council,629,C.H.O.I.C.E Limited,M26E,AD Adult Social Care Operations,Supplies and Services,748.76,Feb-24
Slough Borough Council,629,C.H.O.I.C.E Limited,M26E,AD Adult Social Care Operations,Supplies and Services,822.43,Feb-24
Slough Borough Council,629,C.H.O.I.C.E Limited,M26E,AD Adult Social Care Operations,Supplies and Services,904.32,Feb-24
Slough Borough Council,629,C.H.O.I.C.E Limited,M26E,AD Adult Social Care Operations,Supplies and Services,904.32,Feb-24
Slough Borough Council,629,C.H.O.I.C.E Limited,M26E,AD Adult Social Care Operations,Supplies and Services,822.43,Feb-24
Slough Borough Council,629,C.H.O.I.C.E Limited,M26E,AD Adult Social Care Operations,Supplies and Services,822.43,Feb-24
Slough Borough Council,629,C.H.O.I.C.E Limited,M26E,AD Adult Social Care Operations,Supplies and Services,849.85,Feb-24
Slough Borough Council,629,C.H.O.I.C.E Limited,M26E,AD Adult Social Care Operations,Supplies and Services,"2,854.65",Feb-24
Slough Borough Council,629,C.H.O.I.C.E Limited,M26E,AD Adult Social Care Operations,Supplies and Services,659.86,Feb-24
Slough Borough Council,629,C.H.O.I.C.E Limited,M26E,AD Adult Social Care Operations,Supplies and Services,596.00,Feb-24
Slough Borough Council,629,C.H.O.I.C.E Limited,M26E,AD Adult Social Care Operations,Supplies and Services,625.62,Feb-24
Slough Borough Council,629,C.H.O.I.C.E Limited,M26E,AD Adult Social Care Operations,Supplies and Services,773.72,Feb-24
Slough Borough Council,629,C.H.O.I.C.E Limited,M26E,AD Adult Social Care Operations,Supplies and Services,659.86,Feb-24
Slough Borough Council,629,C.H.O.I.C.E Limited,M26E,AD Adult Social Care Operations,Supplies and Services,"1,996.80",Feb-24
Slough Borough Council,629,C.H.O.I.C.E Limited,M26E,AD Adult Social Care Operations,Supplies and Services,"1,996.80",Feb-24
Slough Borough Council,629,C.H.O.I.C.E Limited,M26E,AD Adult Social Care Operations,Supplies and Services,"1,996.80",Feb-24
Slough Borough Council,629,C.H.O.I.C.E Limited,M26E,AD Adult Social Care Operations,Supplies and Services,849.85,Feb-24
Slough Borough Council,629,C.H.O.I.C.E Limited,M26E,AD Adult Social Care Operations,Supplies and Services,524.30,Feb-24
Slough Borough Council,629,C.H.O.I.C.E Limited,M26E,AD Adult Social Care Operations,Supplies and Services,884.23,Feb-24
Slough Borough Council,629,C.H.O.I.C.E Limited,M26E,AD Adult Social Care Operations,Supplies and Services,"2,615.40",Feb-24
Slough Borough Council,629,C.H.O.I.C.E Limited,M26E,AD Adult Social Care Operations,Supplies and Services,"2,615.40",Feb-24
Slough Borough Council,629,C.H.O.I.C.E Limited,M26E,AD Adult Social Care Operations,Supplies and Services,687.18,Feb-24
Slough Borough Council,629,C.H.O.I.C.E Limited,M26E,AD Adult Social Care Operations,Supplies and Services,531.00,Feb-24
Slough Borough Council,629,C.H.O.I.C.E Limited,M26E,AD Adult Social Care Operations,Supplies and Services,648.39,Feb-24
Slough Borough Council,629,C.H.O.I.C.E Limited,M26E,AD Adult Social Care Operations,Supplies and Services,648.39,Feb-24
Slough Borough Council,629,C.H.O.I.C.E Limited,M26E,AD Adult Social Care Operations,Supplies and Services,648.39,Feb-24
Slough Borough Council,629,C.H.O.I.C.E Limited,M26E,AD Adult Social Care Operations,Supplies and Services,727.03,Feb-24
Slough Borough Council,629,C.H.O.I.C.E Limited,M26E,AD Adult Social Care Operations,Supplies and Services,773.72,Feb-24
Slough Borough Council,629,C.H.O.I.C.E Limited,M26E,AD Adult Social Care Operations,Supplies and Services,"9,863.06",Feb-24
Slough Borough Council,629,C.H.O.I.C.E Limited,M26E,AD Adult Social Care Operations,Supplies and Services,"11,091.59",Feb-24
Slough Borough Council,629,C.H.O.I.C.E Limited,M26E,AD Adult Social Care Operations,Supplies and Services,"12,141.35",Feb-24
Slough Borough Council,629,C.H.O.I.C.E Limited,M26E,AD Adult Social Care Operations,Supplies and Services,"7,242.33",Feb-24
Slough Borough Council,629,C.H.O.I.C.E Limited,M26E,AD Adult Social Care Operations,Supplies and Services,"6,802.57",Feb-24
Slough Borough Council,629,C.H.O.I.C.E Limited,M26E,AD Adult Social Care Operations,Supplies and Services,"9,271.76",Feb-24
Slough Borough Council,629,C.H.O.I.C.E Limited,M26E,AD Adult Social Care Operations,Supplies and Services,"12,931.47",Feb-24
Slough Borough Council,629,C.H.O.I.C.E Limited,M26E,AD Adult Social Care Operations,Supplies and Services,"13,496.72",Feb-24
Slough Borough Council,629,C.H.O.I.C.E Limited,M26E,AD Adult Social Care Operations,Supplies and Services,"12,835.65",Feb-24
Slough Borough Council,629,C.H.O.I.C.E Limited,M26E,AD Adult Social Care Operations,Supplies and Services,507.39,Feb-24
Slough Borough Council,629,C.H.O.I.C.E Limited,M26E,AD Adult Social Care Operations,Supplies and Services,507.39,Feb-24
Slough Borough Council,629,C.H.O.I.C.E Limited,M26E,AD Adult Social Care Operations,Supplies and Services,507.39,Feb-24
Slough Borough Council,629,C.H.O.I.C.E Limited,M26E,AD Adult Social Care Operations,Supplies and Services,507.39,Feb-24
Slough Borough Council,629,C.H.O.I.C.E Limited,M26E,AD Adult Social Care Operations,Supplies and Services,524.30,Feb-24
Slough Borough Council,629,C.H.O.I.C.E Limited,M26E,AD Adult Social Care Operations,Supplies and Services,524.30,Feb-24
Slough Borough Council,629,C.H.O.I.C.E Limited,M26E,AD Adult Social Care Operations,Supplies and Services,524.30,Feb-24
Slough Borough Council,629,C.H.O.I.C.E Limited,M26E,AD Adult Social Care Operations,Supplies and Services,524.30,Feb-24
Slough Borough Council,629,C.H.O.I.C.E Limited,M26E,AD Adult Social Care Operations,Supplies and Services,524.38,Feb-24
Slough Borough Council,629,C.H.O.I.C.E Limited,M26E,AD Adult Social Care Operations,Supplies and Services,936.90,Feb-24
Slough Borough Council,629,C.H.O.I.C.E Limited,M26E,AD Adult Social Care Operations,Supplies and Services,936.90,Feb-24
Slough Borough Council,629,C.H.O.I.C.E Limited,M26E,AD Adult Social Care Operations,Supplies and Services,936.90,Feb-24
Slough Borough Council,629,C.H.O.I.C.E Limited,M26E,AD Adult Social Care Operations,Supplies and Services,936.90,Feb-24
Slough Borough Council,629,C.H.O.I.C.E Limited,M26E,AD Adult Social Care Operations,Supplies and Services,968.13,Feb-24
Slough Borough Council,629,C.H.O.I.C.E Limited,M26E,AD Adult Social Care Operations,Supplies and Services,968.13,Feb-24
Slough Borough Council,629,C.H.O.I.C.E Limited,M26E,AD Adult Social Care Operations,Supplies and Services,968.13,Feb-24
Slough Borough Council,629,C.H.O.I.C.E Limited,M26E,AD Adult Social Care Operations,Supplies and Services,968.13,Feb-24
Slough Borough Council,629,C.H.O.I.C.E Limited,M26E,AD Adult Social Care Operations,Supplies and Services,"-1,894.71",Feb-24
Slough Borough Council,629,C.H.O.I.C.E Limited,M26E,AD Adult Social Care Operations,Supplies and Services,638.57,Feb-24
Slough Borough Council,629,C.H.O.I.C.E Limited,M26E,AD Adult Social Care Operations,Supplies and Services,638.57,Feb-24
Slough Borough Council,629,C.H.O.I.C.E Limited,M26E,AD Adult Social Care Operations,Supplies and Services,638.57,Feb-24
Slough Borough Council,629,C.H.O.I.C.E Limited,M26E,AD Adult Social Care Operations,Supplies and Services,659.86,Feb-24
Slough Borough Council,629,C.H.O.I.C.E Limited,M26E,AD Adult Social Care Operations,Supplies and Services,659.86,Feb-24
Slough Borough Council,629,C.H.O.I.C.E Limited,M26E,AD Adult Social Care Operations,Supplies and Services,659.86,Feb-24
Slough Borough Council,629,C.H.O.I.C.E Limited,M26E,AD Adult Social Care Operations,Supplies and Services,659.86,Feb-24
Slough Borough Council,629,C.H.O.I.C.E Limited,M26E,AD Adult Social Care Operations,Supplies and Services,659.86,Feb-24
Slough Borough Council,629,C.H.O.I.C.E Limited,M26E,AD Adult Social Care Operations,Supplies and Services,638.57,Feb-24
Slough Borough Council,629,C.H.O.I.C.E Limited,M26E,AD Adult Social Care Operations,Supplies and Services,568.93,Feb-24
Slough Borough Council,629,C.H.O.I.C.E Limited,M26E,AD Adult Social Care Operations,Supplies and Services,568.93,Feb-24
Slough Borough Council,629,C.H.O.I.C.E Limited,M26E,AD Adult Social Care Operations,Supplies and Services,568.93,Feb-24
Slough Borough Council,629,C.H.O.I.C.E Limited,M26E,AD Adult Social Care Operations,Supplies and Services,568.93,Feb-24
Slough Borough Council,629,C.H.O.I.C.E Limited,M26E,AD Adult Social Care Operations,Supplies and Services,587.90,Feb-24
Slough Borough Council,629,C.H.O.I.C.E Limited,M26E,AD Adult Social Care Operations,Supplies and Services,587.90,Feb-24
Slough Borough Council,629,C.H.O.I.C.E Limited,M26E,AD Adult Social Care Operations,Supplies and Services,587.90,Feb-24
Slough Borough Council,629,C.H.O.I.C.E Limited,M26E,AD Adult Social Care Operations,Supplies and Services,587.90,Feb-24
Slough Borough Council,629,C.H.O.I.C.E Limited,M26E,AD Adult Social Care Operations,Supplies and Services,587.91,Feb-24
Slough Borough Council,629,C.H.O.I.C.E Limited,M26E,AD Adult Social Care Operations,Supplies and Services,605.44,Feb-24
Slough Borough Council,629,C.H.O.I.C.E Limited,M26E,AD Adult Social Care Operations,Supplies and Services,605.44,Feb-24
Slough Borough Council,629,C.H.O.I.C.E Limited,M26E,AD Adult Social Care Operations,Supplies and Services,625.62,Feb-24
Slough Borough Council,629,C.H.O.I.C.E Limited,M26E,AD Adult Social Care Operations,Supplies and Services,625.62,Feb-24
Slough Borough Council,629,C.H.O.I.C.E Limited,M26E,AD Adult Social Care Operations,Supplies and Services,625.62,Feb-24
Slough Borough Council,629,C.H.O.I.C.E Limited,M26E,AD Adult Social Care Operations,Supplies and Services,625.62,Feb-24
Slough Borough Council,629,C.H.O.I.C.E Limited,M26E,AD Adult Social Care Operations,Supplies and Services,625.62,Feb-24
Slough Borough Council,629,C.H.O.I.C.E Limited,M26E,AD Adult Social Care Operations,Supplies and Services,605.56,Feb-24
Slough Borough Council,629,C.H.O.I.C.E Limited,M26E,AD Adult Social Care Operations,Supplies and Services,605.44,Feb-24
Slough Borough Council,629,C.H.O.I.C.E Limited,M26E,AD Adult Social Care Operations,Supplies and Services,624.60,Feb-24
Slough Borough Council,629,C.H.O.I.C.E Limited,M26E,AD Adult Social Care Operations,Supplies and Services,624.60,Feb-24
Slough Borough Council,629,C.H.O.I.C.E Limited,M26E,AD Adult Social Care Operations,Supplies and Services,624.60,Feb-24
Slough Borough Council,629,C.H.O.I.C.E Limited,M26E,AD Adult Social Care Operations,Supplies and Services,645.42,Feb-24
Slough Borough Council,629,C.H.O.I.C.E Limited,M26E,AD Adult Social Care Operations,Supplies and Services,645.42,Feb-24
Slough Borough Council,629,C.H.O.I.C.E Limited,M26E,AD Adult Social Care Operations,Supplies and Services,645.42,Feb-24
Slough Borough Council,629,C.H.O.I.C.E Limited,M26E,AD Adult Social Care Operations,Supplies and Services,645.42,Feb-24
Slough Borough Council,629,C.H.O.I.C.E Limited,M26E,AD Adult Social Care Operations,Supplies and Services,645.33,Feb-24
Slough Borough Council,629,C.H.O.I.C.E Limited,M26E,AD Adult Social Care Operations,Supplies and Services,624.60,Feb-24
Slough Borough Council,629,C.H.O.I.C.E Limited,M26E,AD Adult Social Care Operations,Supplies and Services,665.02,Feb-24
Slough Borough Council,629,C.H.O.I.C.E Limited,M26E,AD Adult Social Care Operations,Supplies and Services,665.02,Feb-24
Slough Borough Council,629,C.H.O.I.C.E Limited,M26E,AD Adult Social Care Operations,Supplies and Services,665.02,Feb-24
Slough Borough Council,629,C.H.O.I.C.E Limited,M26E,AD Adult Social Care Operations,Supplies and Services,687.18,Feb-24
Slough Borough Council,629,C.H.O.I.C.E Limited,M26E,AD Adult Social Care Operations,Supplies and Services,687.18,Feb-24
Slough Borough Council,629,C.H.O.I.C.E Limited,M26E,AD Adult Social Care Operations,Supplies and Services,687.18,Feb-24
Slough Borough Council,629,C.H.O.I.C.E Limited,M26E,AD Adult Social Care Operations,Supplies and Services,687.18,Feb-24
Slough Borough Council,629,C.H.O.I.C.E Limited,M26E,AD Adult Social Care Operations,Supplies and Services,687.23,Feb-24
Slough Borough Council,629,C.H.O.I.C.E Limited,M26E,AD Adult Social Care Operations,Supplies and Services,665.02,Feb-24
Slough Borough Council,629,C.H.O.I.C.E Limited,M26E,AD Adult Social Care Operations,Supplies and Services,"1,762.57",Feb-24
Slough Borough Council,629,C.H.O.I.C.E Limited,M26E,AD Adult Social Care Operations,Supplies and Services,"1,705.72",Feb-24
Slough Borough Council,629,C.H.O.I.C.E Limited,M26E,AD Adult Social Care Operations,Supplies and Services,"-1,325.35",Feb-24
Slough Borough Council,629,C.H.O.I.C.E Limited,M26E,AD Adult Social Care Operations,Supplies and Services,"-1,369.53",Feb-24
Slough Borough Council,629,C.H.O.I.C.E Limited,M26E,AD Adult Social Care Operations,Supplies and Services,"6,786.61",Feb-24
Slough Borough Council,629,C.H.O.I.C.E Limited,M26E,AD Adult Social Care Operations,Supplies and Services,"-1,369.53",Feb-24
Slough Borough Council,629,C.H.O.I.C.E Limited,M26E,AD Adult Social Care Operations,Supplies and Services,"-1,325.35",Feb-24
Slough Borough Council,629,C.H.O.I.C.E Limited,M26E,AD Adult Social Care Operations,Supplies and Services,"-1,325.35",Feb-24
Slough Borough Council,629,C.H.O.I.C.E Limited,M26E,AD Adult Social Care Operations,Supplies and Services,"6,795.25",Feb-24
Slough Borough Council,629,C.H.O.I.C.E Limited,M42E,AD People Strategy & Commissioning,Supplies and Services,"2,912.05",Feb-24
Slough Borough Council,629,C.H.O.I.C.E Limited,M42E,AD People Strategy & Commissioning,Supplies and Services,"2,912.05",Feb-24
Slough Borough Council,629,C.H.O.I.C.E Limited,M42E,AD People Strategy & Commissioning,Supplies and Services,"2,818.11",Feb-24
Slough Borough Council,629,C.H.O.I.C.E Limited,M42E,AD People Strategy & Commissioning,Supplies and Services,"6,514.07",Feb-24
Slough Borough Council,629,C.H.O.I.C.E Limited,M42E,AD People Strategy & Commissioning,Supplies and Services,"1,173.57",Feb-24
Slough Borough Council,629,C.H.O.I.C.E Limited,M42E,AD People Strategy & Commissioning,Supplies and Services,"6,609.11",Feb-24
Slough Borough Council,629,C.H.O.I.C.E Limited,M42E,AD People Strategy & Commissioning,Supplies and Services,"6,017.63",Feb-24
Slough Borough Council,629,C.H.O.I.C.E Limited,M42E,AD People Strategy & Commissioning,Supplies and Services,"6,475.32",Feb-24
Slough Borough Council,629,C.H.O.I.C.E Limited,M42E,AD People Strategy & Commissioning,Supplies and Services,"2,912.05",Feb-24
Slough Borough Council,629,C.H.O.I.C.E Limited,M42E,AD People Strategy & Commissioning,Supplies and Services,"2,912.05",Feb-24
Slough Borough Council,629,C.H.O.I.C.E Limited,M42E,AD People Strategy & Commissioning,Supplies and Services,"2,818.11",Feb-24
Slough Borough Council,629,C.H.O.I.C.E Limited,M42E,AD People Strategy & Commissioning,Supplies and Services,"2,912.05",Feb-24
Slough Borough Council,629,C.H.O.I.C.E Limited,M42E,AD People Strategy & Commissioning,Supplies and Services,657.56,Feb-24
Slough Borough Council,629,C.H.O.I.C.E Limited,M42E,AD People Strategy & Commissioning,Supplies and Services,"-1,972.68",Feb-24
Slough Borough Council,629,C.H.O.I.C.E Limited,M44F,AD People Strategy & Commissioning,Supplies and Services,"2,764.54",Feb-24
Slough Borough Council,629,C.H.O.I.C.E Limited,M44F,AD People Strategy & Commissioning,Supplies and Services,"2,736.81",Feb-24
Slough Borough Council,629,C.H.O.I.C.E Limited,M26E,AD Adult Social Care Operations,External Receipts,-515.75,Feb-24
Slough Borough Council,805997,Campbell Tickell Limited,H231,AD Housing,Supplies and Services,"24,006.50",Feb-24
Slough Borough Council,808972,Cardea Healthcare,M44E,AD People Strategy & Commissioning,Supplies and Services,668.25,Feb-24
Slough Borough Council,808972,Cardea Healthcare,M44E,AD People Strategy & Commissioning,Supplies and Services,872.58,Feb-24
Slough Borough Council,808972,Cardea Healthcare,M44E,AD People Strategy & Commissioning,Supplies and Services,668.25,Feb-24
Slough Borough Council,808972,Cardea Healthcare,M44E,AD People Strategy & Commissioning,Supplies and Services,872.58,Feb-24
Slough Borough Council,808972,Cardea Healthcare,M44E,AD People Strategy & Commissioning,Supplies and Services,668.25,Feb-24
Slough Borough Council,805717,Care Management Group Ltd,M26E,AD Adult Social Care Operations,Supplies and Services,878.78,Feb-24
Slough Borough Council,805717,Care Management Group Ltd,M26E,AD Adult Social Care Operations,Supplies and Services,908.08,Feb-24
Slough Borough Council,805717,Care Management Group Ltd,M26E,AD Adult Social Care Operations,Supplies and Services,908.08,Feb-24
Slough Borough Council,805717,Care Management Group Ltd,M26E,AD Adult Social Care Operations,Supplies and Services,908.08,Feb-24
Slough Borough Council,805717,Care Management Group Ltd,M26E,AD Adult Social Care Operations,Supplies and Services,878.78,Feb-24
Slough Borough Council,805717,Care Management Group Ltd,M26E,AD Adult Social Care Operations,Supplies and Services,908.08,Feb-24
Slough Borough Council,805717,Care Management Group Ltd,M26E,AD Adult Social Care Operations,Supplies and Services,878.78,Feb-24
Slough Borough Council,805717,Care Management Group Ltd,M26E,AD Adult Social Care Operations,Supplies and Services,"13,432.97",Feb-24
Slough Borough Council,805717,Care Management Group Ltd,M26E,AD Adult Social Care Operations,Supplies and Services,"13,880.74",Feb-24
Slough Borough Council,805717,Care Management Group Ltd,M26E,AD Adult Social Care Operations,Supplies and Services,"13,880.74",Feb-24
Slough Borough Council,809201,Care Outlook Limited,A02F,AD Adult Social Care Operations,Supplies and Services,"35,144.98",Feb-24
Slough Borough Council,809201,Care Outlook Limited,A02F,AD Adult Social Care Operations,Supplies and Services,"35,144.98",Feb-24
Slough Borough Council,805621,Care Staff Services,A07R,AD Adult Social Care Operations,Supplies and Services,997.50,Feb-24
Slough Borough Council,805621,Care Staff Services,A07R,AD Adult Social Care Operations,Supplies and Services,866.25,Feb-24
Slough Borough Council,805621,Care Staff Services,M44C,AD Adult Social Care Operations,Supplies and Services,"2,205.00",Feb-24
Slough Borough Council,805621,Care Staff Services,M44C,AD Adult Social Care Operations,Supplies and Services,"2,205.00",Feb-24
Slough Borough Council,805621,Care Staff Services,M44C,AD Adult Social Care Operations,Supplies and Services,962.50,Feb-24
Slough Borough Council,805621,Care Staff Services,M44C,AD Adult Social Care Operations,Supplies and Services,"2,205.00",Feb-24
Slough Borough Council,805621,Care Staff Services,M44C,AD Adult Social Care Operations,Supplies and Services,857.50,Feb-24
Slough Borough Council,805621,Care Staff Services,M44C,AD Adult Social Care Operations,Supplies and Services,857.50,Feb-24
Slough Borough Council,805621,Care Staff Services,M44C,AD Adult Social Care Operations,Supplies and Services,"1,715.00",Feb-24
Slough Borough Council,805621,Care Staff Services,M44C,AD Adult Social Care Operations,Supplies and Services,980.00,Feb-24
Slough Borough Council,805621,Care Staff Services,M44C,AD Adult Social Care Operations,Supplies and Services,708.75,Feb-24
Slough Borough Council,805621,Care Staff Services,M44C,AD Adult Social Care Operations,Supplies and Services,980.00,Feb-24
Slough Borough Council,805621,Care Staff Services,M44C,AD Adult Social Care Operations,Supplies and Services,947.28,Feb-24
Slough Borough Council,805621,Care Staff Services,M44C,AD Adult Social Care Operations,Supplies and Services,"2,450.00",Feb-24
Slough Borough Council,805621,Care Staff Services,M44C,AD Adult Social Care Operations,Supplies and Services,"1,356.25",Feb-24
Slough Borough Council,805621,Care Staff Services,M44C,AD Adult Social Care Operations,Supplies and Services,"2,331.00",Feb-24
Slough Borough Council,805621,Care Staff Services,M44C,AD Adult Social Care Operations,Supplies and Services,"1,102.50",Feb-24
Slough Borough Council,805621,Care Staff Services,M44C,AD Adult Social Care Operations,Supplies and Services,518.00,Feb-24
Slough Borough Council,805621,Care Staff Services,M44C,AD Adult Social Care Operations,Supplies and Services,"2,450.00",Feb-24
Slough Borough Council,805621,Care Staff Services,M44C,AD Adult Social Care Operations,Supplies and Services,"1,172.50",Feb-24
Slough Borough Council,805621,Care Staff Services,M44C,AD Adult Social Care Operations,Supplies and Services,"1,225.00",Feb-24
Slough Borough Council,805621,Care Staff Services,M44C,AD Adult Social Care Operations,Supplies and Services,"1,715.00",Feb-24
Slough Borough Council,805621,Care Staff Services,M44C,AD Adult Social Care Operations,Supplies and Services,735.38,Feb-24
Slough Borough Council,805621,Care Staff Services,M44C,AD Adult Social Care Operations,Supplies and Services,805.00,Feb-24
Slough Borough Council,805621,Care Staff Services,M44C,AD Adult Social Care Operations,Supplies and Services,682.50,Feb-24
Slough Borough Council,805621,Care Staff Services,M44C,AD Adult Social Care Operations,Supplies and Services,612.50,Feb-24
Slough Borough Council,805621,Care Staff Services,M44C,AD Adult Social Care Operations,Supplies and Services,660.63,Feb-24
Slough Borough Council,805621,Care Staff Services,M44C,AD Adult Social Care Operations,Supplies and Services,525.00,Feb-24
Slough Borough Council,805621,Care Staff Services,M44C,AD Adult Social Care Operations,Supplies and Services,857.50,Feb-24
Slough Borough Council,805621,Care Staff Services,M44C,AD Adult Social Care Operations,Supplies and Services,980.00,Feb-24
Slough Borough Council,805621,Care Staff Services,M44C,AD Adult Social Care Operations,Supplies and Services,857.50,Feb-24
Slough Borough Council,805621,Care Staff Services,M44C,AD Adult Social Care Operations,Supplies and Services,"2,030.00",Feb-24
Slough Borough Council,805621,Care Staff Services,M44C,AD Adult Social Care Operations,Supplies and Services,"2,205.00",Feb-24
Slough Borough Council,805621,Care Staff Services,M44C,AD Adult Social Care Operations,Supplies and Services,518.00,Feb-24
Slough Borough Council,805621,Care Staff Services,M44C,AD Adult Social Care Operations,Supplies and Services,980.00,Feb-24
Slough Borough Council,805621,Care Staff Services,M44C,AD Adult Social Care Operations,Supplies and Services,739.38,Feb-24
Slough Borough Council,805621,Care Staff Services,M44C,AD Adult Social Care Operations,Supplies and Services,"1,120.00",Feb-24
Slough Borough Council,805621,Care Staff Services,M44C,AD Adult Social Care Operations,Supplies and Services,"1,102.50",Feb-24
Slough Borough Council,805621,Care Staff Services,M44C,AD Adult Social Care Operations,Supplies and Services,"2,205.00",Feb-24
Slough Borough Council,805621,Care Staff Services,M44C,AD Adult Social Care Operations,Supplies and Services,"1,813.00",Feb-24
Slough Borough Council,805621,Care Staff Services,M44C,AD Adult Social Care Operations,Supplies and Services,551.25,Feb-24
Slough Borough Council,805621,Care Staff Services,M44C,AD Adult Social Care Operations,Supplies and Services,857.50,Feb-24
Slough Borough Council,805621,Care Staff Services,M44C,AD Adult Social Care Operations,Supplies and Services,"1,102.50",Feb-24
Slough Borough Council,805621,Care Staff Services,M44C,AD Adult Social Care Operations,Supplies and Services,"1,697.50",Feb-24
Slough Borough Council,805621,Care Staff Services,M44C,AD Adult Social Care Operations,Supplies and Services,525.00,Feb-24
Slough Borough Council,805621,Care Staff Services,M44C,AD Adult Social Care Operations,Supplies and Services,560.00,Feb-24
Slough Borough Council,805621,Care Staff Services,M44C,AD Adult Social Care Operations,Supplies and Services,573.13,Feb-24
Slough Borough Council,805621,Care Staff Services,M44C,AD Adult Social Care Operations,Supplies and Services,"1,050.00",Feb-24
Slough Borough Council,805621,Care Staff Services,M44C,AD Adult Social Care Operations,Supplies and Services,835.63,Feb-24
Slough Borough Council,805621,Care Staff Services,M44C,AD Adult Social Care Operations,Supplies and Services,906.50,Feb-24
Slough Borough Council,805621,Care Staff Services,M44C,AD Adult Social Care Operations,Supplies and Services,962.50,Feb-24
Slough Borough Council,805621,Care Staff Services,M44C,AD Adult Social Care Operations,Supplies and Services,"1,050.00",Feb-24
Slough Borough Council,805621,Care Staff Services,M44C,AD Adult Social Care Operations,Supplies and Services,"2,450.00",Feb-24
Slough Borough Council,805621,Care Staff Services,M44C,AD Adult Social Care Operations,Supplies and Services,612.50,Feb-24
Slough Borough Council,805621,Care Staff Services,M44C,AD Adult Social Care Operations,Supplies and Services,612.50,Feb-24
Slough Borough Council,805621,Care Staff Services,M44C,AD Adult Social Care Operations,Supplies and Services,"1,102.50",Feb-24
Slough Borough Council,805621,Care Staff Services,M44C,AD Adult Social Care Operations,Supplies and Services,612.50,Feb-24
Slough Borough Council,805621,Care Staff Services,M44D,AD Adult Social Care Operations,Supplies and Services,892.50,Feb-24
Slough Borough Council,805621,Care Staff Services,M44D,AD Adult Social Care Operations,Supplies and Services,518.00,Feb-24
Slough Borough Council,805621,Care Staff Services,M44D,AD Adult Social Care Operations,Supplies and Services,"2,205.00",Feb-24
Slough Borough Council,805621,Care Staff Services,M44D,AD Adult Social Care Operations,Supplies and Services,"1,365.00",Feb-24
Slough Borough Council,805621,Care Staff Services,M44D,AD Adult Social Care Operations,Supplies and Services,682.50,Feb-24
Slough Borough Council,805621,Care Staff Services,M44D,AD Adult Social Care Operations,Supplies and Services,612.50,Feb-24
Slough Borough Council,805621,Care Staff Services,M44D,AD Adult Social Care Operations,Supplies and Services,980.00,Feb-24
Slough Borough Council,805621,Care Staff Services,M44D,AD Adult Social Care Operations,Supplies and Services,857.50,Feb-24
Slough Borough Council,805621,Care Staff Services,M44D,AD Adult Social Care Operations,Supplies and Services,"1,137.50",Feb-24
Slough Borough Council,805621,Care Staff Services,M44D,AD Adult Social Care Operations,Supplies and Services,546.88,Feb-24
Slough Borough Council,805621,Care Staff Services,M44D,AD Adult Social Care Operations,Supplies and Services,832.50,Feb-24
Slough Borough Council,805621,Care Staff Services,M44D,AD Adult Social Care Operations,Supplies and Services,612.50,Feb-24
Slough Borough Council,805621,Care Staff Services,M44D,AD Adult Social Care Operations,Supplies and Services,"1,225.00",Feb-24
Slough Borough Council,805621,Care Staff Services,M44D,AD Adult Social Care Operations,Supplies and Services,980.00,Feb-24
Slough Borough Council,805621,Care Staff Services,M44D,AD Adult Social Care Operations,Supplies and Services,"1,610.00",Feb-24
Slough Borough Council,805621,Care Staff Services,M44E,AD People Strategy & Commissioning,Supplies and Services,735.00,Feb-24
Slough Borough Council,805621,Care Staff Services,M44E,AD People Strategy & Commissioning,Supplies and Services,735.00,Feb-24
Slough Borough Council,805621,Care Staff Services,M44F,AD People Strategy & Commissioning,Supplies and Services,"1,480.00",Feb-24
Slough Borough Council,805621,Care Staff Services,M44F,AD People Strategy & Commissioning,Supplies and Services,522.63,Feb-24
Slough Borough Council,805621,Care Staff Services,M44F,AD People Strategy & Commissioning,Supplies and Services,"2,590.00",Feb-24
Slough Borough Council,805621,Care Staff Services,M44F,AD People Strategy & Commissioning,Supplies and Services,"1,382.50",Feb-24
Slough Borough Council,805621,Care Staff Services,M44F,AD People Strategy & Commissioning,Supplies and Services,999.00,Feb-24
Slough Borough Council,805621,Care Staff Services,M44F,AD People Strategy & Commissioning,Supplies and Services,630.00,Feb-24
Slough Borough Council,805621,Care Staff Services,M45C,AD Adult Social Care Operations,Supplies and Services,"2,205.00",Feb-24
Slough Borough Council,805621,Care Staff Services,M45C,AD Adult Social Care Operations,Supplies and Services,"1,093.75",Feb-24
Slough Borough Council,805621,Care Staff Services,M45C,AD Adult Social Care Operations,Supplies and Services,"1,225.00",Feb-24
Slough Borough Council,805621,Care Staff Services,M45C,AD Adult Social Care Operations,Supplies and Services,708.75,Feb-24
Slough Borough Council,805621,Care Staff Services,M45C,AD Adult Social Care Operations,Supplies and Services,595.00,Feb-24
Slough Borough Council,805621,Care Staff Services,M48C,AD Adult Social Care Operations,Supplies and Services,"2,205.00",Feb-24
Slough Borough Council,805621,Care Staff Services,M48C,AD Adult Social Care Operations,Supplies and Services,"2,205.00",Feb-24
Slough Borough Council,808149,Care Staff Services Support,M44F,AD People Strategy & Commissioning,Supplies and Services,"1,808.48",Feb-24
Slough Borough Council,808149,Care Staff Services Support,M44F,AD People Strategy & Commissioning,Supplies and Services,"4,891.12",Feb-24
Slough Borough Council,808149,Care Staff Services Support,M44F,AD People Strategy & Commissioning,Supplies and Services,"4,361.52",Feb-24
Slough Borough Council,1162,Care Uk Community Partnership Ltd,A02E,AD Adult Social Care Operations,Supplies and Services,"40,733.00",Feb-24
Slough Borough Council,1162,Care Uk Community Partnership Ltd,A02E,AD Adult Social Care Operations,Supplies and Services,"40,733.00",Feb-24
Slough Borough Council,1162,Care Uk Community Partnership Ltd,A03E,AD Adult Social Care Operations,Supplies and Services,"4,218.60",Feb-24
Slough Borough Council,1162,Care Uk Community Partnership Ltd,M15D,AD Adult Social Care Operations,Supplies and Services,"4,090.52",Feb-24
Slough Borough Council,1162,Care Uk Community Partnership Ltd,M15D,AD Adult Social Care Operations,Supplies and Services,"4,090.52",Feb-24
Slough Borough Council,1162,Care Uk Community Partnership Ltd,M15D,AD Adult Social Care Operations,Supplies and Services,"4,218.60",Feb-24
Slough Borough Council,1162,Care Uk Community Partnership Ltd,M15D,AD Adult Social Care Operations,Supplies and Services,"4,090.52",Feb-24
Slough Borough Council,1162,Care Uk Community Partnership Ltd,M15D,AD Adult Social Care Operations,Supplies and Services,"4,218.60",Feb-24
Slough Borough Council,1162,Care Uk Community Partnership Ltd,M15D,AD Adult Social Care Operations,Supplies and Services,"4,090.52",Feb-24
Slough Borough Council,1162,Care Uk Community Partnership Ltd,M15D,AD Adult Social Care Operations,Supplies and Services,"4,090.52",Feb-24
Slough Borough Council,1162,Care Uk Community Partnership Ltd,M15D,AD Adult Social Care Operations,Supplies and Services,"4,090.52",Feb-24
Slough Borough Council,1162,Care Uk Community Partnership Ltd,M15F,AD People Strategy & Commissioning,Supplies and Services,"4,090.52",Feb-24
Slough Borough Council,1162,Care Uk Community Partnership Ltd,M15F,AD People Strategy & Commissioning,Supplies and Services,"4,090.52",Feb-24
Slough Borough Council,1162,Care Uk Community Partnership Ltd,M15F,AD People Strategy & Commissioning,Supplies and Services,"4,090.52",Feb-24
Slough Borough Council,1162,Care Uk Community Partnership Ltd,M15F,AD People Strategy & Commissioning,Supplies and Services,"1,170.24",Feb-24
Slough Borough Council,1162,Care Uk Community Partnership Ltd,M15F,AD People Strategy & Commissioning,Supplies and Services,"4,090.52",Feb-24
Slough Borough Council,1162,Care Uk Community Partnership Ltd,M17C,AD Adult Social Care Operations,Supplies and Services,"4,218.60",Feb-24
Slough Borough Council,1162,Care Uk Community Partnership Ltd,M17C,AD Adult Social Care Operations,Supplies and Services,"4,218.60",Feb-24
Slough Borough Council,1162,Care Uk Community Partnership Ltd,M17C,AD Adult Social Care Operations,Supplies and Services,"4,218.60",Feb-24
Slough Borough Council,1162,Care Uk Community Partnership Ltd,M17C,AD Adult Social Care Operations,Supplies and Services,"3,969.72",Feb-24
Slough Borough Council,1162,Care Uk Community Partnership Ltd,M17C,AD Adult Social Care Operations,Supplies and Services,"8,930.96",Feb-24
Slough Borough Council,1162,Care Uk Community Partnership Ltd,M17C,AD Adult Social Care Operations,Supplies and Services,"4,218.60",Feb-24
Slough Borough Council,1162,Care Uk Community Partnership Ltd,M17C,AD Adult Social Care Operations,Supplies and Services,"2,791.16",Feb-24
Slough Borough Council,1162,Care Uk Community Partnership Ltd,M17C,AD Adult Social Care Operations,Supplies and Services,"4,218.60",Feb-24
Slough Borough Council,1162,Care Uk Community Partnership Ltd,M17C,AD Adult Social Care Operations,Supplies and Services,"4,218.60",Feb-24
Slough Borough Council,1162,Care Uk Community Partnership Ltd,M17C,AD Adult Social Care Operations,Supplies and Services,"3,969.72",Feb-24
Slough Borough Council,1162,Care Uk Community Partnership Ltd,M17C,AD Adult Social Care Operations,Supplies and Services,"4,218.60",Feb-24
Slough Borough Council,1162,Care Uk Community Partnership Ltd,M17C,AD Adult Social Care Operations,Supplies and Services,"4,218.60",Feb-24
Slough Borough Council,1162,Care Uk Community Partnership Ltd,M18C,AD Adult Social Care Operations,Supplies and Services,"3,969.72",Feb-24
Slough Borough Council,1162,Care Uk Community Partnership Ltd,M18C,AD Adult Social Care Operations,Supplies and Services,"4,090.52",Feb-24
Slough Borough Council,1162,Care Uk Community Partnership Ltd,M18C,AD Adult Social Care Operations,Supplies and Services,"4,090.52",Feb-24
Slough Borough Council,1162,Care Uk Community Partnership Ltd,M18C,AD Adult Social Care Operations,Supplies and Services,"4,218.60",Feb-24
Slough Borough Council,1162,Care Uk Community Partnership Ltd,M18C,AD Adult Social Care Operations,Supplies and Services,"4,090.52",Feb-24
Slough Borough Council,1162,Care Uk Community Partnership Ltd,M18C,AD Adult Social Care Operations,Supplies and Services,"4,218.60",Feb-24
Slough Borough Council,1162,Care Uk Community Partnership Ltd,M18C,AD Adult Social Care Operations,Supplies and Services,"4,218.60",Feb-24
Slough Borough Council,1162,Care Uk Community Partnership Ltd,M18C,AD Adult Social Care Operations,Supplies and Services,"4,090.52",Feb-24
Slough Borough Council,1162,Care Uk Community Partnership Ltd,M18C,AD Adult Social Care Operations,Supplies and Services,"4,090.52",Feb-24
Slough Borough Council,1162,Care Uk Community Partnership Ltd,M18C,AD Adult Social Care Operations,Supplies and Services,"4,090.52",Feb-24
Slough Borough Council,1162,Care Uk Community Partnership Ltd,M18C,AD Adult Social Care Operations,Supplies and Services,"4,218.60",Feb-24
Slough Borough Council,1162,Care Uk Community Partnership Ltd,M18C,AD Adult Social Care Operations,Supplies and Services,"4,090.52",Feb-24
Slough Borough Council,1162,Care Uk Community Partnership Ltd,M18C,AD Adult Social Care Operations,Supplies and Services,"4,090.52",Feb-24
Slough Borough Council,1162,Care Uk Community Partnership Ltd,M18C,AD Adult Social Care Operations,Supplies and Services,"4,090.52",Feb-24
Slough Borough Council,1162,Care Uk Community Partnership Ltd,M18C,AD Adult Social Care Operations,Supplies and Services,"4,090.52",Feb-24
Slough Borough Council,1162,Care Uk Community Partnership Ltd,M18C,AD Adult Social Care Operations,Supplies and Services,"4,090.52",Feb-24
Slough Borough Council,1162,Care Uk Community Partnership Ltd,M18C,AD Adult Social Care Operations,Supplies and Services,"4,090.52",Feb-24
Slough Borough Council,1162,Care Uk Community Partnership Ltd,M18C,AD Adult Social Care Operations,Supplies and Services,"4,218.60",Feb-24
Slough Borough Council,1162,Care Uk Community Partnership Ltd,M18C,AD Adult Social Care Operations,Supplies and Services,"4,090.52",Feb-24
Slough Borough Council,1162,Care Uk Community Partnership Ltd,M18C,AD Adult Social Care Operations,Supplies and Services,"4,090.52",Feb-24
Slough Borough Council,1162,Care Uk Community Partnership Ltd,M18C,AD Adult Social Care Operations,Supplies and Services,"4,090.52",Feb-24
Slough Borough Council,1162,Care Uk Community Partnership Ltd,M18C,AD Adult Social Care Operations,Supplies and Services,"4,090.52",Feb-24
Slough Borough Council,1162,Care Uk Community Partnership Ltd,M18C,AD Adult Social Care Operations,Supplies and Services,"4,090.52",Feb-24
Slough Borough Council,1162,Care Uk Community Partnership Ltd,M18C,AD Adult Social Care Operations,Supplies and Services,"4,090.52",Feb-24
Slough Borough Council,1162,Care Uk Community Partnership Ltd,M18C,AD Adult Social Care Operations,Supplies and Services,"4,090.52",Feb-24
Slough Borough Council,1162,Care Uk Community Partnership Ltd,M18C,AD Adult Social Care Operations,Supplies and Services,"4,090.52",Feb-24
Slough Borough Council,1162,Care Uk Community Partnership Ltd,M18C,AD Adult Social Care Operations,Supplies and Services,"4,090.52",Feb-24
Slough Borough Council,1162,Care Uk Community Partnership Ltd,M18C,AD Adult Social Care Operations,Supplies and Services,"4,090.52",Feb-24
Slough Borough Council,1162,Care Uk Community Partnership Ltd,M18C,AD Adult Social Care Operations,Supplies and Services,"4,090.52",Feb-24
Slough Borough Council,1162,Care Uk Community Partnership Ltd,M18C,AD Adult Social Care Operations,Supplies and Services,"4,090.52",Feb-24
Slough Borough Council,1162,Care Uk Community Partnership Ltd,M18C,AD Adult Social Care Operations,Supplies and Services,"4,090.52",Feb-24
Slough Borough Council,1162,Care Uk Community Partnership Ltd,M18C,AD Adult Social Care Operations,Supplies and Services,"4,090.52",Feb-24
Slough Borough Council,1162,Care Uk Community Partnership Ltd,M18C,AD Adult Social Care Operations,Supplies and Services,"4,090.52",Feb-24
Slough Borough Council,1162,Care Uk Community Partnership Ltd,M18C,AD Adult Social Care Operations,Supplies and Services,"5,314.29",Feb-24
Slough Borough Council,1162,Care Uk Community Partnership Ltd,M18C,AD Adult Social Care Operations,Supplies and Services,"5,314.29",Feb-24
Slough Borough Council,1162,Care Uk Community Partnership Ltd,M18C,AD Adult Social Care Operations,Supplies and Services,"4,218.60",Feb-24
Slough Borough Council,1162,Care Uk Community Partnership Ltd,M18C,AD Adult Social Care Operations,Supplies and Services,"4,090.52",Feb-24
Slough Borough Council,1162,Care Uk Community Partnership Ltd,M18C,AD Adult Social Care Operations,Supplies and Services,"4,090.52",Feb-24
Slough Borough Council,1162,Care Uk Community Partnership Ltd,M18C,AD Adult Social Care Operations,Supplies and Services,"4,090.52",Feb-24
Slough Borough Council,1162,Care Uk Community Partnership Ltd,M18C,AD Adult Social Care Operations,Supplies and Services,"4,090.52",Feb-24
Slough Borough Council,1162,Care Uk Community Partnership Ltd,M18C,AD Adult Social Care Operations,Supplies and Services,"4,090.52",Feb-24
Slough Borough Council,1162,Care Uk Community Partnership Ltd,M18C,AD Adult Social Care Operations,Supplies and Services,"4,090.52",Feb-24
Slough Borough Council,1162,Care Uk Community Partnership Ltd,M18C,AD Adult Social Care Operations,Supplies and Services,"4,090.52",Feb-24
Slough Borough Council,1162,Care Uk Community Partnership Ltd,M18C,AD Adult Social Care Operations,Supplies and Services,"4,090.52",Feb-24
Slough Borough Council,1162,Care Uk Community Partnership Ltd,M18C,AD Adult Social Care Operations,Supplies and Services,"4,218.60",Feb-24
Slough Borough Council,1162,Care Uk Community Partnership Ltd,M18C,AD Adult Social Care Operations,Supplies and Services,"4,090.52",Feb-24
Slough Borough Council,1162,Care Uk Community Partnership Ltd,M18C,AD Adult Social Care Operations,Supplies and Services,"4,090.52",Feb-24
Slough Borough Council,1162,Care Uk Community Partnership Ltd,M18C,AD Adult Social Care Operations,Supplies and Services,"4,090.52",Feb-24
Slough Borough Council,1162,Care Uk Community Partnership Ltd,M18C,AD Adult Social Care Operations,Supplies and Services,"4,090.52",Feb-24
Slough Borough Council,1162,Care Uk Community Partnership Ltd,M18C,AD Adult Social Care Operations,Supplies and Services,"4,218.60",Feb-24
Slough Borough Council,1162,Care Uk Community Partnership Ltd,M18C,AD Adult Social Care Operations,Supplies and Services,"5,314.29",Feb-24
Slough Borough Council,1162,Care Uk Community Partnership Ltd,M18C,AD Adult Social Care Operations,Supplies and Services,"5,314.29",Feb-24
Slough Borough Council,1162,Care Uk Community Partnership Ltd,M18C,AD Adult Social Care Operations,Supplies and Services,"3,428.57",Feb-24
Slough Borough Council,1162,Care Uk Community Partnership Ltd,M18C,AD Adult Social Care Operations,Supplies and Services,"5,314.29",Feb-24
Slough Borough Council,1162,Care Uk Community Partnership Ltd,M18C,AD Adult Social Care Operations,Supplies and Services,"5,142.86",Feb-24
Slough Borough Council,1162,Care Uk Community Partnership Ltd,M18C,AD Adult Social Care Operations,Supplies and Services,"5,142.86",Feb-24
Slough Borough Council,1162,Care Uk Community Partnership Ltd,M18C,AD Adult Social Care Operations,Supplies and Services,"4,090.52",Feb-24
Slough Borough Council,1162,Care Uk Community Partnership Ltd,M18C,AD Adult Social Care Operations,Supplies and Services,"4,090.52",Feb-24
Slough Borough Council,1162,Care Uk Community Partnership Ltd,M18C,AD Adult Social Care Operations,Supplies and Services,"4,090.52",Feb-24
Slough Borough Council,1162,Care Uk Community Partnership Ltd,M18C,AD Adult Social Care Operations,Supplies and Services,"4,090.52",Feb-24
Slough Borough Council,1162,Care Uk Community Partnership Ltd,M18C,AD Adult Social Care Operations,Supplies and Services,"3,969.72",Feb-24
Slough Borough Council,1162,Care Uk Community Partnership Ltd,M18C,AD Adult Social Care Operations,Supplies and Services,"4,218.60",Feb-24
Slough Borough Council,1162,Care Uk Community Partnership Ltd,M18C,AD Adult Social Care Operations,Supplies and Services,"4,090.52",Feb-24
Slough Borough Council,1162,Care Uk Community Partnership Ltd,M18C,AD Adult Social Care Operations,Supplies and Services,"4,090.52",Feb-24
Slough Borough Council,1162,Care Uk Community Partnership Ltd,M18C,AD Adult Social Care Operations,Supplies and Services,"4,218.60",Feb-24
Slough Borough Council,1162,Care Uk Community Partnership Ltd,M18C,AD Adult Social Care Operations,Supplies and Services,"4,090.52",Feb-24
Slough Borough Council,1162,Care Uk Community Partnership Ltd,M18C,AD Adult Social Care Operations,Supplies and Services,"4,090.52",Feb-24
Slough Borough Council,1162,Care Uk Community Partnership Ltd,M18C,AD Adult Social Care Operations,Supplies and Services,"4,218.60",Feb-24
Slough Borough Council,1162,Care Uk Community Partnership Ltd,M18C,AD Adult Social Care Operations,Supplies and Services,"4,090.52",Feb-24
Slough Borough Council,1162,Care Uk Community Partnership Ltd,M25C,AD Adult Social Care Operations,Supplies and Services,"3,703.00",Feb-24
Slough Borough Council,1162,Care Uk Community Partnership Ltd,M25C,AD Adult Social Care Operations,Supplies and Services,"3,703.00",Feb-24
Slough Borough Council,1162,Care Uk Community Partnership Ltd,M25C,AD Adult Social Care Operations,Supplies and Services,"3,703.00",Feb-24
Slough Borough Council,1162,Care Uk Community Partnership Ltd,M25C,AD Adult Social Care Operations,Supplies and Services,"3,703.00",Feb-24
Slough Borough Council,1162,Care Uk Community Partnership Ltd,M25C,AD Adult Social Care Operations,Supplies and Services,"3,703.00",Feb-24
Slough Borough Council,1162,Care Uk Community Partnership Ltd,M25C,AD Adult Social Care Operations,Supplies and Services,"24,327.80",Feb-24
Slough Borough Council,1162,Care Uk Community Partnership Ltd,M25C,AD Adult Social Care Operations,Supplies and Services,"1,207.46",Feb-24
Slough Borough Council,1162,Care Uk Community Partnership Ltd,M25C,AD Adult Social Care Operations,Supplies and Services,"24,327.80",Feb-24
Slough Borough Council,1162,Care Uk Community Partnership Ltd,M25C,AD Adult Social Care Operations,Supplies and Services,"5,810.29",Feb-24
Slough Borough Council,1162,Care Uk Community Partnership Ltd,M25C,AD Adult Social Care Operations,Supplies and Services,"5,810.29",Feb-24
Slough Borough Council,1162,Care Uk Community Partnership Ltd,M25C,AD Adult Social Care Operations,Supplies and Services,"3,703.00",Feb-24
Slough Borough Council,1162,Care Uk Community Partnership Ltd,M25C,AD Adult Social Care Operations,Supplies and Services,"3,703.00",Feb-24
Slough Borough Council,1162,Care Uk Community Partnership Ltd,M25C,AD Adult Social Care Operations,Supplies and Services,"5,810.29",Feb-24
Slough Borough Council,1162,Care Uk Community Partnership Ltd,M25C,AD Adult Social Care Operations,Supplies and Services,"5,622.86",Feb-24
Slough Borough Council,1162,Care Uk Community Partnership Ltd,M25C,AD Adult Social Care Operations,Supplies and Services,"3,703.00",Feb-24
Slough Borough Council,1162,Care Uk Community Partnership Ltd,M25C,AD Adult Social Care Operations,Supplies and Services,"3,703.00",Feb-24
Slough Borough Council,1162,Care Uk Community Partnership Ltd,M25C,AD Adult Social Care Operations,Supplies and Services,"3,703.00",Feb-24
Slough Borough Council,1162,Care Uk Community Partnership Ltd,M26E,AD Adult Social Care Operations,Supplies and Services,"4,090.52",Feb-24
Slough Borough Council,1162,Care Uk Community Partnership Ltd,M26E,AD Adult Social Care Operations,Supplies and Services,"1,895.50",Feb-24
Slough Borough Council,1162,Care Uk Community Partnership Ltd,M26E,AD Adult Social Care Operations,Supplies and Services,"4,633.50",Feb-24
Slough Borough Council,1162,Care Uk Community Partnership Ltd,M26E,AD Adult Social Care Operations,Supplies and Services,"4,090.52",Feb-24
Slough Borough Council,1162,Care Uk Community Partnership Ltd,M27C,AD Adult Social Care Operations,Supplies and Services,"3,703.00",Feb-24
Slough Borough Council,1162,Care Uk Community Partnership Ltd,M27C,AD Adult Social Care Operations,Supplies and Services,"3,380.88",Feb-24
Slough Borough Council,1162,Care Uk Community Partnership Ltd,M27C,AD Adult Social Care Operations,Supplies and Services,"3,703.00",Feb-24
Slough Borough Council,1162,Care Uk Community Partnership Ltd,M27C,AD Adult Social Care Operations,Supplies and Services,"3,703.00",Feb-24
Slough Borough Council,1162,Care Uk Community Partnership Ltd,M27C,AD Adult Social Care Operations,Supplies and Services,"3,380.88",Feb-24
Slough Borough Council,1162,Care Uk Community Partnership Ltd,M27C,AD Adult Social Care Operations,Supplies and Services,"3,703.00",Feb-24
Slough Borough Council,1162,Care Uk Community Partnership Ltd,M27C,AD Adult Social Care Operations,Supplies and Services,"3,380.88",Feb-24
Slough Borough Council,1162,Care Uk Community Partnership Ltd,M27C,AD Adult Social Care Operations,Supplies and Services,"3,703.00",Feb-24
Slough Borough Council,1162,Care Uk Community Partnership Ltd,M27C,AD Adult Social Care Operations,Supplies and Services,"3,703.00",Feb-24
Slough Borough Council,1162,Care Uk Community Partnership Ltd,M27C,AD Adult Social Care Operations,Supplies and Services,"3,380.88",Feb-24
Slough Borough Council,1162,Care Uk Community Partnership Ltd,M27C,AD Adult Social Care Operations,Supplies and Services,"3,380.88",Feb-24
Slough Borough Council,1162,Care Uk Community Partnership Ltd,M27C,AD Adult Social Care Operations,Supplies and Services,"3,380.88",Feb-24
Slough Borough Council,1162,Care Uk Community Partnership Ltd,M27C,AD Adult Social Care Operations,Supplies and Services,"13,523.52",Feb-24
Slough Borough Council,1162,Care Uk Community Partnership Ltd,M27C,AD Adult Social Care Operations,Supplies and Services,"3,380.88",Feb-24
Slough Borough Council,1162,Care Uk Community Partnership Ltd,M27C,AD Adult Social Care Operations,Supplies and Services,"3,703.00",Feb-24
Slough Borough Council,1162,Care Uk Community Partnership Ltd,M27C,AD Adult Social Care Operations,Supplies and Services,"3,380.88",Feb-24
Slough Borough Council,1162,Care Uk Community Partnership Ltd,M27C,AD Adult Social Care Operations,Supplies and Services,"3,380.88",Feb-24
Slough Borough Council,1162,Care Uk Community Partnership Ltd,M27C,AD Adult Social Care Operations,Supplies and Services,"3,703.00",Feb-24
Slough Borough Council,1162,Care Uk Community Partnership Ltd,M27C,AD Adult Social Care Operations,Supplies and Services,"3,703.00",Feb-24
Slough Borough Council,1162,Care Uk Community Partnership Ltd,M27C,AD Adult Social Care Operations,Supplies and Services,"3,703.00",Feb-24
Slough Borough Council,1162,Care Uk Community Partnership Ltd,M27C,AD Adult Social Care Operations,Supplies and Services,"3,380.88",Feb-24
Slough Borough Council,1162,Care Uk Community Partnership Ltd,M27C,AD Adult Social Care Operations,Supplies and Services,"3,380.88",Feb-24
Slough Borough Council,1162,Care Uk Community Partnership Ltd,M27C,AD Adult Social Care Operations,Supplies and Services,"3,703.00",Feb-24
Slough Borough Council,1162,Care Uk Community Partnership Ltd,M27C,AD Adult Social Care Operations,Supplies and Services,"3,380.88",Feb-24
Slough Borough Council,1162,Care Uk Community Partnership Ltd,M27C,AD Adult Social Care Operations,Supplies and Services,"5,314.29",Feb-24
Slough Borough Council,1162,Care Uk Community Partnership Ltd,M27C,AD Adult Social Care Operations,Supplies and Services,"5,314.29",Feb-24
Slough Borough Council,1162,Care Uk Community Partnership Ltd,M27C,AD Adult Social Care Operations,Supplies and Services,"12,316.06",Feb-24
Slough Borough Council,1162,Care Uk Community Partnership Ltd,M27C,AD Adult Social Care Operations,Supplies and Services,"3,703.00",Feb-24
Slough Borough Council,1162,Care Uk Community Partnership Ltd,M27C,AD Adult Social Care Operations,Supplies and Services,"3,703.00",Feb-24
Slough Borough Council,1162,Care Uk Community Partnership Ltd,M27C,AD Adult Social Care Operations,Supplies and Services,"3,380.88",Feb-24
Slough Borough Council,1162,Care Uk Community Partnership Ltd,M27C,AD Adult Social Care Operations,Supplies and Services,"3,703.00",Feb-24
Slough Borough Council,1162,Care Uk Community Partnership Ltd,M27C,AD Adult Social Care Operations,Supplies and Services,"3,380.88",Feb-24
Slough Borough Council,1162,Care Uk Community Partnership Ltd,M27C,AD Adult Social Care Operations,Supplies and Services,"3,380.88",Feb-24
Slough Borough Council,1162,Care Uk Community Partnership Ltd,M27C,AD Adult Social Care Operations,Supplies and Services,"3,703.00",Feb-24
Slough Borough Council,1162,Care Uk Community Partnership Ltd,M27C,AD Adult Social Care Operations,Supplies and Services,"5,314.29",Feb-24
Slough Borough Council,1162,Care Uk Community Partnership Ltd,M27C,AD Adult Social Care Operations,Supplies and Services,"5,142.86",Feb-24
Slough Borough Council,1162,Care Uk Community Partnership Ltd,M27C,AD Adult Social Care Operations,Supplies and Services,"3,380.88",Feb-24
Slough Borough Council,1162,Care Uk Community Partnership Ltd,M27C,AD Adult Social Care Operations,Supplies and Services,"3,380.88",Feb-24
Slough Borough Council,1162,Care Uk Community Partnership Ltd,M27C,AD Adult Social Care Operations,Supplies and Services,"3,703.00",Feb-24
Slough Borough Council,1162,Care Uk Community Partnership Ltd,M27C,AD Adult Social Care Operations,Supplies and Services,"3,380.88",Feb-24
Slough Borough Council,1162,Care Uk Community Partnership Ltd,M27C,AD Adult Social Care Operations,Supplies and Services,"3,703.00",Feb-24
Slough Borough Council,1162,Care Uk Community Partnership Ltd,M27F,AD Adult Social Care Operations,Supplies and Services,"3,380.88",Feb-24
Slough Borough Council,1162,Care Uk Community Partnership Ltd,M27F,AD Adult Social Care Operations,Supplies and Services,"3,703.00",Feb-24
Slough Borough Council,1162,Care Uk Community Partnership Ltd,M27F,AD Adult Social Care Operations,Supplies and Services,"3,380.88",Feb-24
Slough Borough Council,1162,Care Uk Community Partnership Ltd,M28C,AD Adult Social Care Operations,Supplies and Services,"3,380.88",Feb-24
Slough Borough Council,1162,Care Uk Community Partnership Ltd,M28C,AD Adult Social Care Operations,Supplies and Services,"3,380.88",Feb-24
Slough Borough Council,1162,Care Uk Community Partnership Ltd,M28C,AD Adult Social Care Operations,Supplies and Services,"3,942.86",Feb-24
Slough Borough Council,1162,Care Uk Community Partnership Ltd,M28C,AD Adult Social Care Operations,Supplies and Services,685.71,Feb-24
Slough Borough Council,1162,Care Uk Community Partnership Ltd,M28C,AD Adult Social Care Operations,Supplies and Services,"4,285.72",Feb-24
Slough Borough Council,1162,Care Uk Community Partnership Ltd,M28C,AD Adult Social Care Operations,Supplies and Services,"2,571.43",Feb-24
Slough Borough Council,1162,Care Uk Community Partnership Ltd,M28C,AD Adult Social Care Operations,Supplies and Services,514.29,Feb-24
Slough Borough Council,1162,Care Uk Community Partnership Ltd,M28C,AD Adult Social Care Operations,Supplies and Services,"1,028.57",Feb-24
Slough Borough Council,1162,Care Uk Community Partnership Ltd,M28C,AD Adult Social Care Operations,Supplies and Services,"4,628.57",Feb-24
Slough Borough Council,1162,Care Uk Community Partnership Ltd,M28C,AD Adult Social Care Operations,Supplies and Services,"3,917.27",Feb-24
Slough Borough Council,1162,Care Uk Community Partnership Ltd,M29C,AD Adult Social Care Operations,Supplies and Services,"1,371.43",Feb-24
Slough Borough Council,1162,Care Uk Community Partnership Ltd,M29C,AD Adult Social Care Operations,Supplies and Services,"3,600.00",Feb-24
Slough Borough Council,1162,Care Uk Community Partnership Ltd,M29C,AD Adult Social Care Operations,Supplies and Services,"4,200.00",Feb-24
Slough Borough Council,809100,Careful Choices,M44D,AD Adult Social Care Operations,Supplies and Services,"1,124.00",Feb-24
Slough Borough Council,809100,Careful Choices,M44D,AD Adult Social Care Operations,Supplies and Services,"1,124.00",Feb-24
Slough Borough Council,809100,Careful Choices,M44D,AD Adult Social Care Operations,Supplies and Services,"1,124.00",Feb-24
Slough Borough Council,809100,Careful Choices,M44D,AD Adult Social Care Operations,Supplies and Services,"1,124.00",Feb-24
Slough Borough Council,809100,Careful Choices,M44D,AD Adult Social Care Operations,Supplies and Services,"1,124.00",Feb-24
Slough Borough Council,1910,Carousel Buses Ltd,D512,AD Place Operations,Supplies and Services,"6,011.20",Feb-24
Slough Borough Council,1910,Carousel Buses Ltd,D512,AD Place Operations,Supplies and Services,"6,308.96",Feb-24
Slough Borough Council,809461,Cartref Homes (uk)Ltd,M42E,AD People Strategy & Commissioning,Supplies and Services,"4,874.72",Feb-24
Slough Borough Council,804413,Castle Water,B060,AD Building Management,Premises,"1,218.86",Feb-24
Slough Borough Council,804413,Castle Water,B060,AD Building Management,Premises,"1,047.05",Feb-24
Slough Borough Council,804413,Castle Water,B060,AD Building Management,Premises,577.94,Feb-24
Slough Borough Council,804413,Castle Water,B060,AD Building Management,Premises,513.68,Feb-24
Slough Borough Council,418,Castleview School,E620,AD Children & Families,Supplies and Services,"53,809.21",Feb-24
Slough Borough Council,807384,CCS Organisation Ltd,P180,Capital,Capital Charges,930.00,Feb-24
Slough Borough Council,3609,Centurion Healthcare Ltd,M26E,AD Adult Social Care Operations,Supplies and Services,"6,094.10",Feb-24
Slough Borough Council,805174,Certas Energy,D900,AD Place Operations,Supplies and Services,"14,198.40",Feb-24
Slough Borough Council,805174,Certas Energy,D900,AD Place Operations,Supplies and Services,690.00,Feb-24
Slough Borough Council,805174,Certas Energy,D750,AD Place Operations,Supplies and Services,907.24,Feb-24
Slough Borough Council,809124,Chalet Homes Ltd,H205,AD Housing,Supplies and Services,"5,115.00",Feb-24
Slough Borough Council,809124,Chalet Homes Ltd,H205,AD Housing,Supplies and Services,"2,480.00",Feb-24
Slough Borough Council,809124,Chalet Homes Ltd,H205,AD Housing,Supplies and Services,"2,635.00",Feb-24
Slough Borough Council,809124,Chalet Homes Ltd,H205,AD Housing,Supplies and Services,"1,860.00",Feb-24
Slough Borough Council,2892,Chalfont Lodge,M15D,AD Adult Social Care Operations,Supplies and Services,"5,592.86",Feb-24
Slough Borough Council,2892,Chalfont Lodge,M15F,AD People Strategy & Commissioning,Supplies and Services,"8,285.71",Feb-24
Slough Borough Council,2608,Chandos Lodge Nursing Home,M15D,AD Adult Social Care Operations,Supplies and Services,"4,400.00",Feb-24
Slough Borough Council,2608,Chandos Lodge Nursing Home,M18C,AD Adult Social Care Operations,Supplies and Services,"4,400.00",Feb-24
Slough Borough Council,2174,Chartered Institute Of Environmental Health(Cieh),H219,AD Public Protection & Communities - Public Health,Indirect Employee Expenses,"1,400.00",Feb-24
Slough Borough Council,805286,Chartered Trading Standards Institute,D303,AD Public Protection & Communities - Public Health,Supplies and Services,681.30,Feb-24
Slough Borough Council,1877,Chelsie Innes,C322,AD Public Protection & Communities - Children Services,Supplies and Services,"4,007.50",Feb-24
Slough Borough Council,3114,Cherry Trees Day Nursery,F281,AD Education & Inclusion,Premises,"1,105.61",Feb-24
Slough Borough Council,3114,Cherry Trees Day Nursery,F281,AD Education & Inclusion,Premises,"2,455.87",Feb-24
Slough Borough Council,3114,Cherry Trees Day Nursery,F281,AD Education & Inclusion,Supplies and Services,"12,687.57",Feb-24
Slough Borough Council,3114,Cherry Trees Day Nursery,F281,AD Education & Inclusion,Supplies and Services,"8,785.21",Feb-24
Slough Borough Council,2871,Cherry Trees Residential Care,M27F,AD Adult Social Care Operations,Supplies and Services,"2,278.57",Feb-24
Slough Borough Council,2871,Cherry Trees Residential Care,M42F,AD People Strategy & Commissioning,Supplies and Services,"1,553.57",Feb-24
Slough Borough Council,2871,Cherry Trees Residential Care,M42F,AD People Strategy & Commissioning,Supplies and Services,"2,330.36",Feb-24
Slough Borough Council,2871,Cherry Trees Residential Care,M42F,AD People Strategy & Commissioning,Supplies and Services,"2,330.36",Feb-24
Slough Borough Council,809146,Chilmington Homes Ltd,M26E,AD Adult Social Care Operations,Supplies and Services,"8,358.00",Feb-24
Slough Borough Council,807225,Chiltern Way Academy,F551,AD Children & Families,Supplies and Services,"7,899.00",Feb-24
Slough Borough Council,807225,Chiltern Way Academy,F551,AD Children & Families,Supplies and Services,"7,899.00",Feb-24
Slough Borough Council,807225,Chiltern Way Academy,F551,AD Children & Families,Supplies and Services,"7,899.00",Feb-24
Slough Borough Council,807225,Chiltern Way Academy,F551,AD Children & Families,Supplies and Services,"7,899.00",Feb-24
Slough Borough Council,807225,Chiltern Way Academy,F551,AD Children & Families,Supplies and Services,"7,899.00",Feb-24
Slough Borough Council,808527,Chiron Care (Uk) Limited,M44F,AD People Strategy & Commissioning,Supplies and Services,"1,039.87",Feb-24
Slough Borough Council,808527,Chiron Care (Uk) Limited,M44F,AD People Strategy & Commissioning,Supplies and Services,"2,399.70",Feb-24
Slough Borough Council,808527,Chiron Care (Uk) Limited,M44F,AD People Strategy & Commissioning,Supplies and Services,"2,479.69",Feb-24
Slough Borough Council,808527,Chiron Care (Uk) Limited,M44F,AD People Strategy & Commissioning,Supplies and Services,"2,399.70",Feb-24
Slough Borough Council,808527,Chiron Care (Uk) Limited,M44F,AD People Strategy & Commissioning,Supplies and Services,"2,479.69",Feb-24
Slough Borough Council,808527,Chiron Care (Uk) Limited,M44F,AD People Strategy & Commissioning,Supplies and Services,"2,479.69",Feb-24
Slough Borough Council,808527,Chiron Care (Uk) Limited,M44F,AD People Strategy & Commissioning,Supplies and Services,"2,479.69",Feb-24
Slough Borough Council,808527,Chiron Care (Uk) Limited,M44F,AD People Strategy & Commissioning,Supplies and Services,"2,239.72",Feb-24
Slough Borough Council,808527,Chiron Care (Uk) Limited,M44F,AD People Strategy & Commissioning,Supplies and Services,"2,479.69",Feb-24
Slough Borough Council,808527,Chiron Care (Uk) Limited,M44F,AD People Strategy & Commissioning,Supplies and Services,"2,479.69",Feb-24
Slough Borough Council,808527,Chiron Care (Uk) Limited,M44F,AD People Strategy & Commissioning,Supplies and Services,"2,399.70",Feb-24
Slough Borough Council,808527,Chiron Care (Uk) Limited,M44F,AD People Strategy & Commissioning,Supplies and Services,"2,809.50",Feb-24
Slough Borough Council,808527,Chiron Care (Uk) Limited,M44F,AD People Strategy & Commissioning,Supplies and Services,"2,903.15",Feb-24
Slough Borough Council,808527,Chiron Care (Uk) Limited,M44F,AD People Strategy & Commissioning,Supplies and Services,"2,809.50",Feb-24
Slough Borough Council,808527,Chiron Care (Uk) Limited,M44F,AD People Strategy & Commissioning,Supplies and Services,"2,903.15",Feb-24
Slough Borough Council,808527,Chiron Care (Uk) Limited,M44F,AD People Strategy & Commissioning,Supplies and Services,"3,002.04",Feb-24
Slough Borough Council,808527,Chiron Care (Uk) Limited,M44F,AD People Strategy & Commissioning,Supplies and Services,"4,579.01",Feb-24
Slough Borough Council,808527,Chiron Care (Uk) Limited,M44F,AD People Strategy & Commissioning,Supplies and Services,"1,868.68",Feb-24
Slough Borough Council,808527,Chiron Care (Uk) Limited,M44F,AD People Strategy & Commissioning,Supplies and Services,"2,287.49",Feb-24
Slough Borough Council,808527,Chiron Care (Uk) Limited,M44F,AD People Strategy & Commissioning,Supplies and Services,"2,903.15",Feb-24
Slough Borough Council,808527,Chiron Care (Uk) Limited,M44F,AD People Strategy & Commissioning,Supplies and Services,"2,319.71",Feb-24
Slough Borough Council,808527,Chiron Care (Uk) Limited,M44F,AD People Strategy & Commissioning,Supplies and Services,"1,868.68",Feb-24
Slough Borough Council,808527,Chiron Care (Uk) Limited,M44F,AD People Strategy & Commissioning,Supplies and Services,"2,694.83",Feb-24
Slough Borough Council,808527,Chiron Care (Uk) Limited,M44F,AD People Strategy & Commissioning,Supplies and Services,"2,645.85",Feb-24
Slough Borough Council,807491,Cippenham School,E620,AD Children & Families,Supplies and Services,"17,297.95",Feb-24
Slough Borough Council,807491,Cippenham School,B297,AD Deputy Director Corporate & Strategic Finance,Government Grants,"2,296.12",Feb-24
Slough Borough Council,806550,City Homecare Ltd,A07R,AD Adult Social Care Operations,Supplies and Services,"1,102.50",Feb-24
Slough Borough Council,806550,City Homecare Ltd,A07R,AD Adult Social Care Operations,Supplies and Services,"1,102.50",Feb-24
Slough Borough Council,806550,City Homecare Ltd,A07R,AD Adult Social Care Operations,Supplies and Services,765.63,Feb-24
Slough Borough Council,806550,City Homecare Ltd,A07R,AD Adult Social Care Operations,Supplies and Services,770.00,Feb-24
Slough Borough Council,806550,City Homecare Ltd,A07R,AD Adult Social Care Operations,Supplies and Services,630.00,Feb-24
Slough Borough Council,806550,City Homecare Ltd,M44C,AD Adult Social Care Operations,Supplies and Services,831.25,Feb-24
Slough Borough Council,806550,City Homecare Ltd,M44C,AD Adult Social Care Operations,Supplies and Services,796.25,Feb-24
Slough Borough Council,806550,City Homecare Ltd,M44C,AD Adult Social Care Operations,Supplies and Services,"1,225.00",Feb-24
Slough Borough Council,806550,City Homecare Ltd,M44C,AD Adult Social Care Operations,Supplies and Services,"1,347.50",Feb-24
Slough Borough Council,806550,City Homecare Ltd,M44C,AD Adult Social Care Operations,Supplies and Services,"1,960.00",Feb-24
Slough Borough Council,806550,City Homecare Ltd,M44C,AD Adult Social Care Operations,Supplies and Services,997.50,Feb-24
Slough Borough Council,806550,City Homecare Ltd,M44C,AD Adult Social Care Operations,Supplies and Services,"1,102.50",Feb-24
Slough Borough Council,806550,City Homecare Ltd,M44C,AD Adult Social Care Operations,Supplies and Services,783.13,Feb-24
Slough Borough Council,806550,City Homecare Ltd,M44C,AD Adult Social Care Operations,Supplies and Services,"2,205.00",Feb-24
Slough Borough Council,806550,City Homecare Ltd,M44C,AD Adult Social Care Operations,Supplies and Services,"2,345.00",Feb-24
Slough Borough Council,806550,City Homecare Ltd,M44C,AD Adult Social Care Operations,Supplies and Services,857.50,Feb-24
Slough Borough Council,806550,City Homecare Ltd,M44C,AD Adult Social Care Operations,Supplies and Services,612.50,Feb-24
Slough Borough Council,806550,City Homecare Ltd,M44C,AD Adult Social Care Operations,Supplies and Services,"1,225.00",Feb-24
Slough Borough Council,806550,City Homecare Ltd,M44C,AD Adult Social Care Operations,Supplies and Services,"2,275.00",Feb-24
Slough Borough Council,806550,City Homecare Ltd,M44C,AD Adult Social Care Operations,Supplies and Services,"1,102.50",Feb-24
Slough Borough Council,806550,City Homecare Ltd,M44C,AD Adult Social Care Operations,Supplies and Services,"1,225.00",Feb-24
Slough Borough Council,806550,City Homecare Ltd,M44C,AD Adult Social Care Operations,Supplies and Services,"1,960.00",Feb-24
Slough Borough Council,806550,City Homecare Ltd,M44C,AD Adult Social Care Operations,Supplies and Services,612.50,Feb-24
Slough Borough Council,806550,City Homecare Ltd,M44C,AD Adult Social Care Operations,Supplies and Services,857.50,Feb-24
Slough Borough Council,806550,City Homecare Ltd,M44C,AD Adult Social Care Operations,Supplies and Services,612.50,Feb-24
Slough Borough Council,806550,City Homecare Ltd,M44C,AD Adult Social Care Operations,Supplies and Services,"1,715.00",Feb-24
Slough Borough Council,806550,City Homecare Ltd,M44C,AD Adult Social Care Operations,Supplies and Services,735.00,Feb-24
Slough Borough Council,806550,City Homecare Ltd,M44C,AD Adult Social Care Operations,Supplies and Services,682.50,Feb-24
Slough Borough Council,806550,City Homecare Ltd,M44C,AD Adult Social Care Operations,Supplies and Services,"1,820.00",Feb-24
Slough Borough Council,806550,City Homecare Ltd,M44C,AD Adult Social Care Operations,Supplies and Services,612.50,Feb-24
Slough Borough Council,806550,City Homecare Ltd,M44C,AD Adult Social Care Operations,Supplies and Services,980.00,Feb-24
Slough Borough Council,806550,City Homecare Ltd,M44C,AD Adult Social Care Operations,Supplies and Services,"1,977.50",Feb-24
Slough Borough Council,806550,City Homecare Ltd,M44C,AD Adult Social Care Operations,Supplies and Services,"2,205.00",Feb-24
Slough Borough Council,806550,City Homecare Ltd,M44C,AD Adult Social Care Operations,Supplies and Services,"1,960.00",Feb-24
Slough Borough Council,806550,City Homecare Ltd,M44C,AD Adult Social Care Operations,Supplies and Services,910.00,Feb-24
Slough Borough Council,806550,City Homecare Ltd,M44C,AD Adult Social Care Operations,Supplies and Services,892.50,Feb-24
Slough Borough Council,806550,City Homecare Ltd,M44C,AD Adult Social Care Operations,Supplies and Services,555.63,Feb-24
Slough Borough Council,806550,City Homecare Ltd,M44C,AD Adult Social Care Operations,Supplies and Services,"2,161.25",Feb-24
Slough Borough Council,806550,City Homecare Ltd,M44C,AD Adult Social Care Operations,Supplies and Services,"1,347.50",Feb-24
Slough Borough Council,806550,City Homecare Ltd,M44C,AD Adult Social Care Operations,Supplies and Services,"1,264.73",Feb-24
Slough Borough Council,806550,City Homecare Ltd,M44C,AD Adult Social Care Operations,Supplies and Services,"1,001.88",Feb-24
Slough Borough Council,806550,City Homecare Ltd,M44C,AD Adult Social Care Operations,Supplies and Services,875.00,Feb-24
Slough Borough Council,806550,City Homecare Ltd,M44C,AD Adult Social Care Operations,Supplies and Services,787.50,Feb-24
Slough Borough Council,806550,City Homecare Ltd,M44C,AD Adult Social Care Operations,Supplies and Services,774.38,Feb-24
Slough Borough Council,806550,City Homecare Ltd,M44C,AD Adult Social Care Operations,Supplies and Services,"1,181.25",Feb-24
Slough Borough Council,806550,City Homecare Ltd,M44C,AD Adult Social Care Operations,Supplies and Services,"2,393.13",Feb-24
Slough Borough Council,806550,City Homecare Ltd,M44D,AD Adult Social Care Operations,Supplies and Services,"1,417.50",Feb-24
Slough Borough Council,806550,City Homecare Ltd,M44D,AD Adult Social Care Operations,Supplies and Services,542.50,Feb-24
Slough Borough Council,806550,City Homecare Ltd,M44D,AD Adult Social Care Operations,Supplies and Services,717.50,Feb-24
Slough Borough Council,806550,City Homecare Ltd,M44D,AD Adult Social Care Operations,Supplies and Services,630.00,Feb-24
Slough Borough Council,806550,City Homecare Ltd,M44D,AD Adult Social Care Operations,Supplies and Services,735.00,Feb-24
Slough Borough Council,806550,City Homecare Ltd,M44D,AD Adult Social Care Operations,Supplies and Services,980.00,Feb-24
Slough Borough Council,806550,City Homecare Ltd,M44D,AD Adult Social Care Operations,Supplies and Services,980.00,Feb-24
Slough Borough Council,806550,City Homecare Ltd,M44D,AD Adult Social Care Operations,Supplies and Services,"2,940.00",Feb-24
Slough Borough Council,806550,City Homecare Ltd,M44D,AD Adult Social Care Operations,Supplies and Services,"1,207.50",Feb-24
Slough Borough Council,806550,City Homecare Ltd,M44D,AD Adult Social Care Operations,Supplies and Services,525.00,Feb-24
Slough Borough Council,806550,City Homecare Ltd,M44E,AD People Strategy & Commissioning,Supplies and Services,551.25,Feb-24
Slough Borough Council,806550,City Homecare Ltd,M44E,AD People Strategy & Commissioning,Supplies and Services,735.00,Feb-24
Slough Borough Council,806550,City Homecare Ltd,M44E,AD People Strategy & Commissioning,Supplies and Services,630.00,Feb-24
Slough Borough Council,806550,City Homecare Ltd,M44F,AD People Strategy & Commissioning,Supplies and Services,577.50,Feb-24
Slough Borough Council,806550,City Homecare Ltd,M44F,AD People Strategy & Commissioning,Supplies and Services,665.00,Feb-24
Slough Borough Council,806550,City Homecare Ltd,M44F,AD People Strategy & Commissioning,Supplies and Services,560.00,Feb-24
Slough Borough Council,806550,City Homecare Ltd,M44F,AD People Strategy & Commissioning,Supplies and Services,"1,610.00",Feb-24
Slough Borough Council,806550,City Homecare Ltd,M44F,AD People Strategy & Commissioning,Supplies and Services,840.00,Feb-24
Slough Borough Council,806550,City Homecare Ltd,M44F,AD People Strategy & Commissioning,Supplies and Services,831.25,Feb-24
Slough Borough Council,806550,City Homecare Ltd,M44F,AD People Strategy & Commissioning,Supplies and Services,560.00,Feb-24
Slough Borough Council,806550,City Homecare Ltd,M44F,AD People Strategy & Commissioning,Supplies and Services,"1,610.00",Feb-24
Slough Borough Council,806550,City Homecare Ltd,M45C,AD Adult Social Care Operations,Supplies and Services,551.25,Feb-24
Slough Borough Council,806550,City Homecare Ltd,M45C,AD Adult Social Care Operations,Supplies and Services,870.63,Feb-24
Slough Borough Council,806550,City Homecare Ltd,M45C,AD Adult Social Care Operations,Supplies and Services,879.38,Feb-24
Slough Borough Council,806550,City Homecare Ltd,M45C,AD Adult Social Care Operations,Supplies and Services,"1,225.00",Feb-24
Slough Borough Council,806550,City Homecare Ltd,M45C,AD Adult Social Care Operations,Supplies and Services,542.50,Feb-24
Slough Borough Council,806550,City Homecare Ltd,M45C,AD Adult Social Care Operations,Supplies and Services,"1,570.62",Feb-24
Slough Borough Council,806550,City Homecare Ltd,M48C,AD Adult Social Care Operations,Supplies and Services,857.50,Feb-24
Slough Borough Council,806550,City Homecare Ltd,M48C,AD Adult Social Care Operations,Supplies and Services,857.50,Feb-24
Slough Borough Council,806550,City Homecare Ltd,M48C,AD Adult Social Care Operations,Supplies and Services,612.50,Feb-24
Slough Borough Council,806550,City Homecare Ltd,M48C,AD Adult Social Care Operations,Supplies and Services,682.50,Feb-24
Slough Borough Council,806550,City Homecare Ltd,M48C,AD Adult Social Care Operations,Supplies and Services,"2,520.00",Feb-24
Slough Borough Council,806550,City Homecare Ltd,M48C,AD Adult Social Care Operations,Supplies and Services,577.50,Feb-24
Slough Borough Council,455,Cj Associates,F150,AD Children & Families,Indirect Employee Expenses,700.00,Feb-24
Slough Borough Council,1151,Claycots Primary School,E200,AD Children & Families,Supplies and Services,"887,953.54",Feb-24
Slough Borough Council,3685,Coghlan Lodges Limited,M44D,AD Adult Social Care Operations,Supplies and Services,"2,116.04",Feb-24
Slough Borough Council,3685,Coghlan Lodges Limited,M44F,AD People Strategy & Commissioning,Supplies and Services,"1,870.00",Feb-24
Slough Borough Council,459,Colliers Cre,J006,AD Housing,Supplies and Services,"3,666.67",Feb-24
Slough Borough Council,459,Colliers Cre,J006,AD Housing,Supplies and Services,"1,250.00",Feb-24
Slough Borough Council,806524,Colliers International,J006,AD Housing,Supplies and Services,"1,250.00",Feb-24
Slough Borough Council,286,Colnbrook C Of E Primary School,E620,AD Children & Families,Supplies and Services,"33,141.12",Feb-24
Slough Borough Council,2535,Comfort Care Services,M42E,AD People Strategy & Commissioning,Supplies and Services,"1,090.61",Feb-24
Slough Borough Council,2535,Comfort Care Services,M42E,AD People Strategy & Commissioning,Supplies and Services,"1,439.60",Feb-24
Slough Borough Council,2535,Comfort Care Services,M42E,AD People Strategy & Commissioning,Supplies and Services,"4,784.92",Feb-24
Slough Borough Council,2535,Comfort Care Services,M42E,AD People Strategy & Commissioning,Supplies and Services,"1,374.14",Feb-24
Slough Borough Council,2535,Comfort Care Services,M42E,AD People Strategy & Commissioning,Supplies and Services,872.49,Feb-24
Slough Borough Council,2535,Comfort Care Services,M42E,AD People Strategy & Commissioning,Supplies and Services,"2,632.62",Feb-24
Slough Borough Council,2535,Comfort Care Services,M42E,AD People Strategy & Commissioning,Supplies and Services,"2,632.58",Feb-24
Slough Borough Council,2535,Comfort Care Services,M42E,AD People Strategy & Commissioning,Supplies and Services,869.42,Feb-24
Slough Borough Council,2535,Comfort Care Services,M42E,AD People Strategy & Commissioning,Supplies and Services,"2,399.34",Feb-24
Slough Borough Council,2535,Comfort Care Services,M42E,AD People Strategy & Commissioning,Supplies and Services,"1,090.61",Feb-24
Slough Borough Council,2535,Comfort Care Services,M42F,AD People Strategy & Commissioning,Supplies and Services,604.93,Feb-24
Slough Borough Council,2535,Comfort Care Services,M42F,AD People Strategy & Commissioning,Supplies and Services,584.76,Feb-24
Slough Borough Council,2535,Comfort Care Services,M42F,AD People Strategy & Commissioning,Supplies and Services,625.09,Feb-24
Slough Borough Council,2535,Comfort Care Services,M42F,AD People Strategy & Commissioning,Supplies and Services,604.93,Feb-24
Slough Borough Council,2535,Comfort Care Services,M42F,AD People Strategy & Commissioning,Supplies and Services,604.93,Feb-24
Slough Borough Council,2535,Comfort Care Services,M42F,AD People Strategy & Commissioning,Supplies and Services,625.09,Feb-24
Slough Borough Council,2535,Comfort Care Services,M42F,AD People Strategy & Commissioning,Supplies and Services,625.09,Feb-24
Slough Borough Council,2535,Comfort Care Services,M42F,AD People Strategy & Commissioning,Supplies and Services,"1,620.36",Feb-24
Slough Borough Council,2535,Comfort Care Services,M42F,AD People Strategy & Commissioning,Supplies and Services,872.49,Feb-24
Slough Borough Council,2535,Comfort Care Services,M42F,AD People Strategy & Commissioning,Supplies and Services,"1,526.85",Feb-24
Slough Borough Council,2535,Comfort Care Services,M42F,AD People Strategy & Commissioning,Supplies and Services,"1,526.81",Feb-24
Slough Borough Council,2535,Comfort Care Services,M42F,AD People Strategy & Commissioning,Supplies and Services,872.49,Feb-24
Slough Borough Council,2535,Comfort Care Services,M42F,AD People Strategy & Commissioning,Supplies and Services,872.49,Feb-24
Slough Borough Council,2535,Comfort Care Services,M42F,AD People Strategy & Commissioning,Supplies and Services,872.49,Feb-24
Slough Borough Council,2535,Comfort Care Services,M42F,AD People Strategy & Commissioning,Supplies and Services,"2,748.25",Feb-24
Slough Borough Council,2535,Comfort Care Services,M42F,AD People Strategy & Commissioning,Supplies and Services,"2,748.25",Feb-24
Slough Borough Council,2535,Comfort Care Services,M42F,AD People Strategy & Commissioning,Supplies and Services,"1,729.10",Feb-24
Slough Borough Council,2535,Comfort Care Services,M42F,AD People Strategy & Commissioning,Supplies and Services,"1,526.85",Feb-24
Slough Borough Council,2535,Comfort Care Services,M44C,AD Adult Social Care Operations,Supplies and Services,"3,140.87",Feb-24
Slough Borough Council,2535,Comfort Care Services,M44E,AD People Strategy & Commissioning,Supplies and Services,714.73,Feb-24
Slough Borough Council,2535,Comfort Care Services,M44E,AD People Strategy & Commissioning,Supplies and Services,714.73,Feb-24
Slough Borough Council,2535,Comfort Care Services,M44E,AD People Strategy & Commissioning,Supplies and Services,691.67,Feb-24
Slough Borough Council,2535,Comfort Care Services,M44E,AD People Strategy & Commissioning,Supplies and Services,668.62,Feb-24
Slough Borough Council,2535,Comfort Care Services,M44E,AD People Strategy & Commissioning,Supplies and Services,818.45,Feb-24
Slough Borough Council,2535,Comfort Care Services,M44E,AD People Strategy & Commissioning,Supplies and Services,"4,842.34",Feb-24
Slough Borough Council,2535,Comfort Care Services,M44E,AD People Strategy & Commissioning,Supplies and Services,"1,946.36",Feb-24
Slough Borough Council,2535,Comfort Care Services,M44F,AD People Strategy & Commissioning,Supplies and Services,"1,090.61",Feb-24
Slough Borough Council,2535,Comfort Care Services,M44F,AD People Strategy & Commissioning,Supplies and Services,"2,748.33",Feb-24
Slough Borough Council,2535,Comfort Care Services,M44F,AD People Strategy & Commissioning,Supplies and Services,"3,097.32",Feb-24
Slough Borough Council,2535,Comfort Care Services,M44F,AD People Strategy & Commissioning,Supplies and Services,"2,050.24",Feb-24
Slough Borough Council,2535,Comfort Care Services,M44F,AD People Strategy & Commissioning,Supplies and Services,"2,748.33",Feb-24
Slough Borough Council,2535,Comfort Care Services,M44F,AD People Strategy & Commissioning,Supplies and Services,"1,374.10",Feb-24
Slough Borough Council,2535,Comfort Care Services,M44F,AD People Strategy & Commissioning,Supplies and Services,"3,620.90",Feb-24
Slough Borough Council,2535,Comfort Care Services,M44F,AD People Strategy & Commissioning,Supplies and Services,"2,748.25",Feb-24
Slough Borough Council,2535,Comfort Care Services,M44F,AD People Strategy & Commissioning,Supplies and Services,"2,748.33",Feb-24
Slough Borough Council,2535,Comfort Care Services,M44F,AD People Strategy & Commissioning,Supplies and Services,"1,326.78",Feb-24
Slough Borough Council,2535,Comfort Care Services,M44F,AD People Strategy & Commissioning,Supplies and Services,"1,468.94",Feb-24
Slough Borough Council,2535,Comfort Care Services,M81D,AD Adult Social Care Operations,Supplies and Services,"2,748.25",Feb-24
Slough Borough Council,804912,CommuniKate Ltd,M22D,AD Adult Social Care Operations,Supplies and Services,761.75,Feb-24
Slough Borough Council,804912,CommuniKate Ltd,M22D,AD Adult Social Care Operations,Supplies and Services,761.75,Feb-24
Slough Borough Council,804912,CommuniKate Ltd,M22D,AD Adult Social Care Operations,Supplies and Services,761.75,Feb-24
Slough Borough Council,804912,CommuniKate Ltd,M22D,AD Adult Social Care Operations,Supplies and Services,761.75,Feb-24
Slough Borough Council,804912,CommuniKate Ltd,M22D,AD Adult Social Care Operations,Supplies and Services,761.75,Feb-24
Slough Borough Council,3840,Community Housing And Therapy,M80F,AD People Strategy & Commissioning,Supplies and Services,"2,362.40",Feb-24
Slough Borough Council,3840,Community Housing And Therapy,M80F,AD People Strategy & Commissioning,Supplies and Services,"2,615.51",Feb-24
Slough Borough Council,3840,Community Housing And Therapy,M80F,AD People Strategy & Commissioning,Supplies and Services,"2,531.14",Feb-24
Slough Borough Council,3840,Community Housing And Therapy,M80F,AD People Strategy & Commissioning,Supplies and Services,"2,615.65",Feb-24
Slough Borough Council,809195,Compass Radio Cars Ltd,F123,AD Education & Inclusion,External Receipts,"1,040.00",Feb-24
Slough Borough Council,809195,Compass Radio Cars Ltd,F123,AD Education & Inclusion,External Receipts,"1,170.00",Feb-24
Slough Borough Council,1772,Computershare Voucher Services,B348,AD HR,Supplies and Services,"1,459.00",Feb-24
Slough Borough Council,1772,Computershare Voucher Services,B348,AD HR,Supplies and Services,"1,459.00",Feb-24
Slough Borough Council,809051,Contract Options (West) Ltd,P243,Capital,Supplies and Services,"5,354.75",Feb-24
Slough Borough Council,809051,Contract Options (West) Ltd,P243,Capital,Supplies and Services,"11,511.90",Feb-24
Slough Borough Council,806683,Cornerstone OnDemand Limited,B409,AD HR,Indirect Employee Expenses,"8,500.00",Feb-24
Slough Borough Council,1480,Corona Energy Limited,B668,AD Building Management,Premises,"28,265.19",Feb-24
Slough Borough Council,1480,Corona Energy Limited,B668,AD Building Management,Premises,"2,296.44",Feb-24
Slough Borough Council,1480,Corona Energy Limited,J015,AD Housing,Premises,838.39,Feb-24
Slough Borough Council,1480,Corona Energy Limited,J015,AD Housing,Premises,"22,735.01",Feb-24
Slough Borough Council,3290,Corporate Collections London Borough Of Hillingdon,M26E,AD Adult Social Care Operations,Supplies and Services,"1,496.48",Feb-24
Slough Borough Council,3290,Corporate Collections London Borough Of Hillingdon,M26E,AD Adult Social Care Operations,Supplies and Services,"1,632.40",Feb-24
Slough Borough Council,3290,Corporate Collections London Borough Of Hillingdon,M26E,AD Adult Social Care Operations,Supplies and Services,"1,632.40",Feb-24
Slough Borough Council,3290,Corporate Collections London Borough Of Hillingdon,M26E,AD Adult Social Care Operations,Supplies and Services,"1,632.40",Feb-24
Slough Borough Council,805278,Countrystyle Recycling Ltd,D342,AD Place Operations,Supplies and Services,"4,779.60",Feb-24
Slough Borough Council,805278,Countrystyle Recycling Ltd,D342,AD Place Operations,Supplies and Services,"2,770.00",Feb-24
Slough Borough Council,805278,Countrystyle Recycling Ltd,D342,AD Place Operations,Supplies and Services,"5,540.00",Feb-24
Slough Borough Council,805278,Countrystyle Recycling Ltd,D342,AD Place Operations,Supplies and Services,"5,325.00",Feb-24
Slough Borough Council,805656,Countrywide Moves (UK) Ltd,M80F,AD People Strategy & Commissioning,Supplies and Services,650.00,Feb-24
Slough Borough Council,3670,Craegmoor Birches Grove Priory,M27F,AD Adult Social Care Operations,Supplies and Services,"4,072.08",Feb-24
Slough Borough Council,3670,Craegmoor Birches Grove Priory,M27F,AD Adult Social Care Operations,Supplies and Services,"2,271.52",Feb-24
Slough Borough Council,3670,Craegmoor Birches Grove Priory,M27F,AD Adult Social Care Operations,Supplies and Services,"4,357.12",Feb-24
Slough Borough Council,3670,Craegmoor Birches Grove Priory,M27F,AD Adult Social Care Operations,Supplies and Services,"2,122.92",Feb-24
Slough Borough Council,1638,Creative Support Ltd,A02F,AD Adult Social Care Operations,Supplies and Services,"33,934.74",Feb-24
Slough Borough Council,1638,Creative Support Ltd,A02F,AD Adult Social Care Operations,Supplies and Services,"9,470.16",Feb-24
Slough Borough Council,1638,Creative Support Ltd,A02F,AD Adult Social Care Operations,Supplies and Services,"9,470.16",Feb-24
Slough Borough Council,1638,Creative Support Ltd,A02F,AD Adult Social Care Operations,Supplies and Services,"1,521.99",Feb-24
Slough Borough Council,1638,Creative Support Ltd,A02F,AD Adult Social Care Operations,Supplies and Services,"1,521.99",Feb-24
Slough Borough Council,1638,Creative Support Ltd,A02F,AD Adult Social Care Operations,Supplies and Services,"3,231.88",Feb-24
Slough Borough Council,1638,Creative Support Ltd,A02F,AD Adult Social Care Operations,Supplies and Services,"1,521.99",Feb-24
Slough Borough Council,1638,Creative Support Ltd,A02F,AD Adult Social Care Operations,Supplies and Services,"1,521.99",Feb-24
Slough Borough Council,1638,Creative Support Ltd,A02F,AD Adult Social Care Operations,Supplies and Services,"1,521.99",Feb-24
Slough Borough Council,1638,Creative Support Ltd,A02F,AD Adult Social Care Operations,Supplies and Services,"32,756.61",Feb-24
Slough Borough Council,1638,Creative Support Ltd,A02F,AD Adult Social Care Operations,Supplies and Services,"8,417.92",Feb-24
Slough Borough Council,1638,Creative Support Ltd,A02F,AD Adult Social Care Operations,Supplies and Services,"8,417.92",Feb-24
Slough Borough Council,1638,Creative Support Ltd,A02L,AD Adult Social Care Operations,Supplies and Services,"1,318.80",Feb-24
Slough Borough Council,1638,Creative Support Ltd,A02L,AD Adult Social Care Operations,Supplies and Services,"1,205.76",Feb-24
Slough Borough Council,1638,Creative Support Ltd,A02L,AD Adult Social Care Operations,Supplies and Services,"1,544.88",Feb-24
Slough Borough Council,1638,Creative Support Ltd,M42E,AD People Strategy & Commissioning,Supplies and Services,"1,505.66",Feb-24
Slough Borough Council,1638,Creative Support Ltd,M42E,AD People Strategy & Commissioning,Supplies and Services,"1,505.66",Feb-24
Slough Borough Council,1638,Creative Support Ltd,M42E,AD People Strategy & Commissioning,Supplies and Services,"1,593.07",Feb-24
Slough Borough Council,1638,Creative Support Ltd,M42E,AD People Strategy & Commissioning,Supplies and Services,"1,593.07",Feb-24
Slough Borough Council,1638,Creative Support Ltd,M42E,AD People Strategy & Commissioning,Supplies and Services,"1,593.07",Feb-24
Slough Borough Council,1638,Creative Support Ltd,M42E,AD People Strategy & Commissioning,Supplies and Services,"1,593.07",Feb-24
Slough Borough Council,1638,Creative Support Ltd,M42E,AD People Strategy & Commissioning,Supplies and Services,"1,593.07",Feb-24
Slough Borough Council,1638,Creative Support Ltd,M42E,AD People Strategy & Commissioning,Supplies and Services,"1,505.66",Feb-24
Slough Borough Council,806983,Critiqom,H020,AD Deputy Director Corporate & Strategic Finance,Supplies and Services,952.52,Feb-24
Slough Borough Council,806983,Critiqom,H020,AD Deputy Director Corporate & Strategic Finance,Supplies and Services,"2,735.04",Feb-24
Slough Borough Council,806983,Critiqom,H020,AD Deputy Director Corporate & Strategic Finance,Supplies and Services,607.28,Feb-24
Slough Borough Council,806983,Critiqom,H020,AD Deputy Director Corporate & Strategic Finance,Supplies and Services,541.60,Feb-24
Slough Borough Council,806983,Critiqom,H020,AD Deputy Director Corporate & Strategic Finance,Supplies and Services,"2,012.37",Feb-24
Slough Borough Council,806983,Critiqom,H020,AD Deputy Director Corporate & Strategic Finance,Supplies and Services,"2,305.72",Feb-24
Slough Borough Council,808853,Crown Hosting Data Centres Limited,B282,AD Chief Digital & Information Officer,Supplies and Services,"4,342.09",Feb-24
Slough Borough Council,808853,Crown Hosting Data Centres Limited,B282,AD Chief Digital & Information Officer,Supplies and Services,"6,762.37",Feb-24
Slough Borough Council,806900,CYXTERA TECHNOLOGY UK LIMITED,B282,AD Chief Digital & Information Officer,Supplies and Services,"15,577.27",Feb-24
Slough Borough Council,806541,Darul Madinah Slough,F462,AD Children & Families,Supplies and Services,"5,000.00",Feb-24
Slough Borough Council,806541,Darul Madinah Slough,F462,AD Children & Families,Supplies and Services,"5,707.20",Feb-24
Slough Borough Council,808657,Davinder Selby,H205,AD Housing,Supplies and Services,"1,860.00",Feb-24
Slough Borough Council,809213,DAWSONGROUP ENVIRONMENTAL MUNICIPAL CIVIL LIMITED,D620,AD Place Operations,Transport,"2,107.45",Feb-24
Slough Borough Council,809213,DAWSONGROUP ENVIRONMENTAL MUNICIPAL CIVIL LIMITED,D620,AD Place Operations,Transport,"2,107.45",Feb-24
Slough Borough Council,809213,DAWSONGROUP ENVIRONMENTAL MUNICIPAL CIVIL LIMITED,D620,AD Place Operations,Transport,"2,107.45",Feb-24
Slough Borough Council,809118,DAWSONGROUP VANS LIMITED,D620,AD Place Operations,Supplies and Services,805.00,Feb-24
Slough Borough Council,809118,DAWSONGROUP VANS LIMITED,D610,AD Place Operations,Transport,543.88,Feb-24
Slough Borough Council,809118,DAWSONGROUP VANS LIMITED,D620,AD Place Operations,Transport,"5,306.10",Feb-24
Slough Borough Council,809118,DAWSONGROUP VANS LIMITED,D750,AD Place Operations,Transport,"16,821.28",Feb-24
Slough Borough Council,809118,DAWSONGROUP VANS LIMITED,D880,AD Place Operations,Transport,"2,462.26",Feb-24
Slough Borough Council,804903,Dennis Eagle Limited,D610,AD Place Operations,Supplies and Services,"1,922.13",Feb-24
Slough Borough Council,804903,Dennis Eagle Limited,D610,AD Place Operations,Supplies and Services,520.66,Feb-24
Slough Borough Council,804903,Dennis Eagle Limited,D610,AD Place Operations,Supplies and Services,525.09,Feb-24
Slough Borough Council,806159,Devon Piatt-Panton,C322,AD Public Protection & Communities - Children Services,Supplies and Services,"3,339.50",Feb-24
Slough Borough Council,928,Devonshires Solicitors,H206,AD Housing,Supplies and Services,"5,000.00",Feb-24
Slough Borough Council,3554,Dimensions (Uk) Ltd,M42E,AD People Strategy & Commissioning,Supplies and Services,"9,045.94",Feb-24
Slough Borough Council,3554,Dimensions (Uk) Ltd,M42E,AD People Strategy & Commissioning,Supplies and Services,"8,643.92",Feb-24
Slough Borough Council,3554,Dimensions (Uk) Ltd,M42E,AD People Strategy & Commissioning,Supplies and Services,"8,417.31",Feb-24
Slough Borough Council,3554,Dimensions (Uk) Ltd,M42E,AD People Strategy & Commissioning,Supplies and Services,"6,750.26",Feb-24
Slough Borough Council,3554,Dimensions (Uk) Ltd,M42E,AD People Strategy & Commissioning,Supplies and Services,"7,072.55",Feb-24
Slough Borough Council,3554,Dimensions (Uk) Ltd,M42E,AD People Strategy & Commissioning,Supplies and Services,"8,988.19",Feb-24
Slough Borough Council,3554,Dimensions (Uk) Ltd,M42E,AD People Strategy & Commissioning,Supplies and Services,"8,644.16",Feb-24
Slough Borough Council,3554,Dimensions (Uk) Ltd,M42E,AD People Strategy & Commissioning,Supplies and Services,"7,494.56",Feb-24
Slough Borough Council,3554,Dimensions (Uk) Ltd,M42E,AD People Strategy & Commissioning,Supplies and Services,"7,099.23",Feb-24
Slough Borough Council,3554,Dimensions (Uk) Ltd,M42E,AD People Strategy & Commissioning,Supplies and Services,"7,232.42",Feb-24
Slough Borough Council,805483,Direct Tyre Managenent Ltd,D610,AD Place Operations,Transport,"1,955.19",Feb-24
Slough Borough Council,805483,Direct Tyre Managenent Ltd,D620,AD Place Operations,Transport,518.48,Feb-24
Slough Borough Council,803306,Ditton Park Academy,E620,AD Children & Families,Supplies and Services,"28,550.80",Feb-24
Slough Borough Council,803306,Ditton Park Academy,B297,AD Deputy Director Corporate & Strategic Finance,Government Grants,"3,630.00",Feb-24
Slough Borough Council,1457,Dr Norman Gordon,D320,Governance & Scruitiny / Law and Governance,Premises,"2,352.15",Feb-24
Slough Borough Council,809145,Drains Surgeon Limited,P209,Capital,Capital Charges,"3,450.00",Feb-24
Slough Borough Council,808794,DREAMS HOTEL LTD,H205,AD Housing,Supplies and Services,"174,592.00",Feb-24
Slough Borough Council,808723,E.ON Control Solutions,B060,AD Building Management,Premises,510.00,Feb-24
Slough Borough Council,808723,E.ON Control Solutions,B060,AD Building Management,Premises,510.00,Feb-24
Slough Borough Council,803177,Early Steps Preschool,F281,AD Education & Inclusion,Supplies and Services,"1,387.67",Feb-24
Slough Borough Council,804924,Econ Engineering Limited,D880,AD Place Operations,Transport,"8,468.00",Feb-24
Slough Borough Council,804924,Econ Engineering Limited,D880,AD Place Operations,Transport,"9,052.00",Feb-24
Slough Borough Council,803301,Eden Girls School,E610,AD Children & Families,Supplies and Services,"6,875.00",Feb-24
Slough Borough Council,1299,Edf Energy,B668,AD Building Management,Premises,673.33,Feb-24
Slough Borough Council,1299,Edf Energy,B668,AD Building Management,Premises,"148,759.87",Feb-24
Slough Borough Council,1299,Edf Energy,B668,AD Building Management,Premises,"109,010.14",Feb-24
Slough Borough Council,1299,Edf Energy,B668,AD Building Management,Premises,539.29,Feb-24
Slough Borough Council,808885,Ekom Solutions,H205,AD Housing,Supplies and Services,"7,006.00",Feb-24
Slough Borough Council,808885,Ekom Solutions,H205,AD Housing,Supplies and Services,"6,975.00",Feb-24
Slough Borough Council,807001,Elegant Care Services Ltd,M42E,AD People Strategy & Commissioning,Supplies and Services,"9,528.57",Feb-24
Slough Borough Council,807001,Elegant Care Services Ltd,M42E,AD People Strategy & Commissioning,Supplies and Services,"5,816.57",Feb-24
Slough Borough Council,807001,Elegant Care Services Ltd,M42E,AD People Strategy & Commissioning,Supplies and Services,"5,601.14",Feb-24
Slough Borough Council,807001,Elegant Care Services Ltd,M44C,AD Adult Social Care Operations,Supplies and Services,"6,570.57",Feb-24
Slough Borough Council,806355,Elysium Healthcare,M26E,AD Adult Social Care Operations,Supplies and Services,"11,374.83",Feb-24
Slough Borough Council,806355,Elysium Healthcare,M26E,AD Adult Social Care Operations,Supplies and Services,"10,246.74",Feb-24
Slough Borough Council,3752,Endurance Health,A07R,AD Adult Social Care Operations,Supplies and Services,"1,865.40",Feb-24
Slough Borough Council,3752,Endurance Health,A07R,AD Adult Social Care Operations,Supplies and Services,-633.88,Feb-24
Slough Borough Council,3752,Endurance Health,M44C,AD Adult Social Care Operations,Supplies and Services,"2,518.74",Feb-24
Slough Borough Council,3752,Endurance Health,M44C,AD Adult Social Care Operations,Supplies and Services,979.51,Feb-24
Slough Borough Council,3752,Endurance Health,M44C,AD Adult Social Care Operations,Supplies and Services,"1,251.58",Feb-24
Slough Borough Council,3752,Endurance Health,M44C,AD Adult Social Care Operations,Supplies and Services,"1,413.83",Feb-24
Slough Borough Council,3752,Endurance Health,M44C,AD Adult Social Care Operations,Supplies and Services,835.86,Feb-24
Slough Borough Council,3752,Endurance Health,M44C,AD Adult Social Care Operations,Supplies and Services,691.43,Feb-24
Slough Borough Council,3752,Endurance Health,M44C,AD Adult Social Care Operations,Supplies and Services,"1,954.98",Feb-24
Slough Borough Council,3752,Endurance Health,M44C,AD Adult Social Care Operations,Supplies and Services,695.79,Feb-24
Slough Borough Council,3752,Endurance Health,M44C,AD Adult Social Care Operations,Supplies and Services,791.32,Feb-24
Slough Borough Council,3752,Endurance Health,M44C,AD Adult Social Care Operations,Supplies and Services,"2,658.23",Feb-24
Slough Borough Council,3752,Endurance Health,M44C,AD Adult Social Care Operations,Supplies and Services,"1,358.28",Feb-24
Slough Borough Council,3752,Endurance Health,M44C,AD Adult Social Care Operations,Supplies and Services,"2,723.51",Feb-24
Slough Borough Council,3752,Endurance Health,M44C,AD Adult Social Care Operations,Supplies and Services,627.42,Feb-24
Slough Borough Council,3752,Endurance Health,M44C,AD Adult Social Care Operations,Supplies and Services,"1,794.73",Feb-24
Slough Borough Council,3752,Endurance Health,M44C,AD Adult Social Care Operations,Supplies and Services,"1,119.44",Feb-24
Slough Borough Council,3752,Endurance Health,M44C,AD Adult Social Care Operations,Supplies and Services,"1,259.37",Feb-24
Slough Borough Council,3752,Endurance Health,M44C,AD Adult Social Care Operations,Supplies and Services,"1,399.30",Feb-24
Slough Borough Council,3752,Endurance Health,M44C,AD Adult Social Care Operations,Supplies and Services,"1,250.93",Feb-24
Slough Borough Council,3752,Endurance Health,M44C,AD Adult Social Care Operations,Supplies and Services,"1,244.61",Feb-24
Slough Borough Council,3752,Endurance Health,M44C,AD Adult Social Care Operations,Supplies and Services,"1,132.25",Feb-24
Slough Borough Council,3752,Endurance Health,M44C,AD Adult Social Care Operations,Supplies and Services,"1,442.14",Feb-24
Slough Borough Council,3752,Endurance Health,M44C,AD Adult Social Care Operations,Supplies and Services,"1,081.30",Feb-24
Slough Borough Council,3752,Endurance Health,M44C,AD Adult Social Care Operations,Supplies and Services,561.51,Feb-24
Slough Borough Council,3752,Endurance Health,M44C,AD Adult Social Care Operations,Supplies and Services,"1,326.16",Feb-24
Slough Borough Council,3752,Endurance Health,M44C,AD Adult Social Care Operations,Supplies and Services,"1,959.02",Feb-24
Slough Borough Council,3752,Endurance Health,M44D,AD Adult Social Care Operations,Supplies and Services,819.59,Feb-24
Slough Borough Council,3752,Endurance Health,M44D,AD Adult Social Care Operations,Supplies and Services,"1,224.30",Feb-24
Slough Borough Council,3752,Endurance Health,M44D,AD Adult Social Care Operations,Supplies and Services,"2,761.80",Feb-24
Slough Borough Council,3752,Endurance Health,M44D,AD Adult Social Care Operations,Supplies and Services,741.10,Feb-24
Slough Borough Council,3752,Endurance Health,M44D,AD Adult Social Care Operations,Supplies and Services,"1,029.80",Feb-24
Slough Borough Council,3752,Endurance Health,M44D,AD Adult Social Care Operations,Supplies and Services,"1,959.02",Feb-24
Slough Borough Council,3752,Endurance Health,M44F,AD People Strategy & Commissioning,Supplies and Services,929.04,Feb-24
Slough Borough Council,3752,Endurance Health,M44F,AD People Strategy & Commissioning,Supplies and Services,679.66,Feb-24
Slough Borough Council,3752,Endurance Health,M45C,AD Adult Social Care Operations,Supplies and Services,"1,034.48",Feb-24
Slough Borough Council,3752,Endurance Health,M45C,AD Adult Social Care Operations,Supplies and Services,559.72,Feb-24
Slough Borough Council,3752,Endurance Health,M45C,AD Adult Social Care Operations,Supplies and Services,585.91,Feb-24
Slough Borough Council,3752,Endurance Health,M45C,AD Adult Social Care Operations,Supplies and Services,674.67,Feb-24
Slough Borough Council,3752,Endurance Health,M48C,AD Adult Social Care Operations,Supplies and Services,"1,041.49",Feb-24
Slough Borough Council,808417,Enerveo Limited,P243,Capital,Capital Charges,"12,400.00",Feb-24
Slough Borough Council,805423,Enriched Care,M80F,AD People Strategy & Commissioning,Supplies and Services,"1,644.59",Feb-24
Slough Borough Council,807310,Enterprise Rent-A-Car UK Limited trading as Enterprise Flex-E-Rent,B060,AD Building Management,Premises,"2,360.80",Feb-24
Slough Borough Council,807310,Enterprise Rent-A-Car UK Limited trading as Enterprise Flex-E-Rent,B060,AD Building Management,Premises,"2,284.64",Feb-24
Slough Borough Council,807310,Enterprise Rent-A-Car UK Limited trading as Enterprise Flex-E-Rent,D610,AD Place Operations,Supplies and Services,554.38,Feb-24
Slough Borough Council,807310,Enterprise Rent-A-Car UK Limited trading as Enterprise Flex-E-Rent,D620,AD Place Operations,Supplies and Services,554.58,Feb-24
Slough Borough Council,807310,Enterprise Rent-A-Car UK Limited trading as Enterprise Flex-E-Rent,D620,AD Place Operations,Supplies and Services,"1,274.34",Feb-24
Slough Borough Council,807310,Enterprise Rent-A-Car UK Limited trading as Enterprise Flex-E-Rent,D620,AD Place Operations,Supplies and Services,530.28,Feb-24
Slough Borough Council,807310,Enterprise Rent-A-Car UK Limited trading as Enterprise Flex-E-Rent,D620,AD Place Operations,Supplies and Services,684.03,Feb-24
Slough Borough Council,807310,Enterprise Rent-A-Car UK Limited trading as Enterprise Flex-E-Rent,D620,AD Place Operations,Supplies and Services,"1,279.31",Feb-24
Slough Borough Council,807310,Enterprise Rent-A-Car UK Limited trading as Enterprise Flex-E-Rent,D750,AD Place Operations,Supplies and Services,"1,072.49",Feb-24
Slough Borough Council,807310,Enterprise Rent-A-Car UK Limited trading as Enterprise Flex-E-Rent,D750,AD Place Operations,Supplies and Services,"1,276.74",Feb-24
Slough Borough Council,807310,Enterprise Rent-A-Car UK Limited trading as Enterprise Flex-E-Rent,D750,AD Place Operations,Supplies and Services,944.56,Feb-24
Slough Borough Council,807310,Enterprise Rent-A-Car UK Limited trading as Enterprise Flex-E-Rent,D750,AD Place Operations,Supplies and Services,"1,279.29",Feb-24
Slough Borough Council,807310,Enterprise Rent-A-Car UK Limited trading as Enterprise Flex-E-Rent,D750,AD Place Operations,Supplies and Services,"1,099.78",Feb-24
Slough Borough Council,807310,Enterprise Rent-A-Car UK Limited trading as Enterprise Flex-E-Rent,D750,AD Place Operations,Supplies and Services,"2,301.53",Feb-24
Slough Borough Council,807310,Enterprise Rent-A-Car UK Limited trading as Enterprise Flex-E-Rent,D750,AD Place Operations,Supplies and Services,581.90,Feb-24
Slough Borough Council,807310,Enterprise Rent-A-Car UK Limited trading as Enterprise Flex-E-Rent,D750,AD Place Operations,Supplies and Services,921.94,Feb-24
Slough Borough Council,807310,Enterprise Rent-A-Car UK Limited trading as Enterprise Flex-E-Rent,D750,AD Place Operations,Supplies and Services,596.66,Feb-24
Slough Borough Council,807310,Enterprise Rent-A-Car UK Limited trading as Enterprise Flex-E-Rent,D750,AD Place Operations,Supplies and Services,665.08,Feb-24
Slough Borough Council,807310,Enterprise Rent-A-Car UK Limited trading as Enterprise Flex-E-Rent,D750,AD Place Operations,Supplies and Services,"1,013.44",Feb-24
Slough Borough Council,807310,Enterprise Rent-A-Car UK Limited trading as Enterprise Flex-E-Rent,D880,AD Place Operations,Supplies and Services,"1,468.60",Feb-24
Slough Borough Council,807310,Enterprise Rent-A-Car UK Limited trading as Enterprise Flex-E-Rent,D880,AD Place Operations,Supplies and Services,765.40,Feb-24
Slough Borough Council,807310,Enterprise Rent-A-Car UK Limited trading as Enterprise Flex-E-Rent,D880,AD Place Operations,Supplies and Services,"1,081.19",Feb-24
Slough Borough Council,807310,Enterprise Rent-A-Car UK Limited trading as Enterprise Flex-E-Rent,D620,AD Place Operations,Transport,"4,203.44",Feb-24
Slough Borough Council,807310,Enterprise Rent-A-Car UK Limited trading as Enterprise Flex-E-Rent,D750,AD Place Operations,Transport,862.21,Feb-24
Slough Borough Council,807310,Enterprise Rent-A-Car UK Limited trading as Enterprise Flex-E-Rent,D880,AD Place Operations,Transport,"3,262.81",Feb-24
Slough Borough Council,803645,Esotec,P243,Capital,Capital Charges,"9,965.22",Feb-24
Slough Borough Council,640,Essex County Council,L516,Treasury Management,Salaries and Wages,"22,042.00",Feb-24
Slough Borough Council,2677,Eton House Residential Home,M25C,AD Adult Social Care Operations,Supplies and Services,"5,092.86",Feb-24
Slough Borough Council,2677,Eton House Residential Home,M25D,AD Adult Social Care Operations,Supplies and Services,"3,199.64",Feb-24
Slough Borough Council,2677,Eton House Residential Home,M27C,AD Adult Social Care Operations,Supplies and Services,"6,642.86",Feb-24
Slough Borough Council,2677,Eton House Residential Home,M27C,AD Adult Social Care Operations,Supplies and Services,"3,520.71",Feb-24
Slough Borough Council,2677,Eton House Residential Home,M27C,AD Adult Social Care Operations,Supplies and Services,"5,092.86",Feb-24
Slough Borough Council,2677,Eton House Residential Home,M27C,AD Adult Social Care Operations,Supplies and Services,"2,657.14",Feb-24
Slough Borough Council,808745,Eton Lettings Limited,H205,AD Housing,Supplies and Services,"1,860.00",Feb-24
Slough Borough Council,806501,Excellent Healthcare Services Ltd,M44C,AD Adult Social Care Operations,Supplies and Services,833.98,Feb-24
Slough Borough Council,806501,Excellent Healthcare Services Ltd,M44C,AD Adult Social Care Operations,Supplies and Services,519.11,Feb-24
Slough Borough Council,806501,Excellent Healthcare Services Ltd,M44C,AD Adult Social Care Operations,Supplies and Services,"1,667.96",Feb-24
Slough Borough Council,806501,Excellent Healthcare Services Ltd,M44C,AD Adult Social Care Operations,Supplies and Services,"2,144.52",Feb-24
Slough Borough Council,806501,Excellent Healthcare Services Ltd,M44C,AD Adult Social Care Operations,Supplies and Services,"2,144.52",Feb-24
Slough Borough Council,806501,Excellent Healthcare Services Ltd,M44C,AD Adult Social Care Operations,Supplies and Services,"1,072.26",Feb-24
Slough Borough Council,806501,Excellent Healthcare Services Ltd,M44C,AD Adult Social Care Operations,Supplies and Services,833.98,Feb-24
Slough Borough Council,806501,Excellent Healthcare Services Ltd,M44C,AD Adult Social Care Operations,Supplies and Services,536.13,Feb-24
Slough Borough Council,806501,Excellent Healthcare Services Ltd,M44C,AD Adult Social Care Operations,Supplies and Services,"1,429.68",Feb-24
Slough Borough Council,806501,Excellent Healthcare Services Ltd,M44C,AD Adult Social Care Operations,Supplies and Services,833.98,Feb-24
Slough Borough Council,806501,Excellent Healthcare Services Ltd,M44C,AD Adult Social Care Operations,Supplies and Services,595.70,Feb-24
Slough Borough Council,806501,Excellent Healthcare Services Ltd,M44C,AD Adult Social Care Operations,Supplies and Services,"2,144.52",Feb-24
Slough Borough Council,806501,Excellent Healthcare Services Ltd,M44C,AD Adult Social Care Operations,Supplies and Services,714.84,Feb-24
Slough Borough Council,806501,Excellent Healthcare Services Ltd,M44C,AD Adult Social Care Operations,Supplies and Services,595.70,Feb-24
Slough Borough Council,806501,Excellent Healthcare Services Ltd,M44C,AD Adult Social Care Operations,Supplies and Services,"1,072.26",Feb-24
Slough Borough Council,806501,Excellent Healthcare Services Ltd,M44C,AD Adult Social Care Operations,Supplies and Services,833.98,Feb-24
Slough Borough Council,806501,Excellent Healthcare Services Ltd,M44C,AD Adult Social Care Operations,Supplies and Services,"2,416.84",Feb-24
Slough Borough Council,806501,Excellent Healthcare Services Ltd,M44C,AD Adult Social Care Operations,Supplies and Services,"1,072.26",Feb-24
Slough Borough Council,806501,Excellent Healthcare Services Ltd,M44C,AD Adult Social Care Operations,Supplies and Services,"2,280.68",Feb-24
Slough Borough Council,806501,Excellent Healthcare Services Ltd,M44D,AD Adult Social Care Operations,Supplies and Services,"2,144.52",Feb-24
Slough Borough Council,806501,Excellent Healthcare Services Ltd,M44F,AD People Strategy & Commissioning,Supplies and Services,"2,382.80",Feb-24
Slough Borough Council,806501,Excellent Healthcare Services Ltd,M44F,AD People Strategy & Commissioning,Supplies and Services,919.08,Feb-24
Slough Borough Council,806501,Excellent Healthcare Services Ltd,M45C,AD Adult Social Care Operations,Supplies and Services,"1,131.83",Feb-24
Slough Borough Council,806501,Excellent Healthcare Services Ltd,M45C,AD Adult Social Care Operations,Supplies and Services,833.98,Feb-24
Slough Borough Council,806501,Excellent Healthcare Services Ltd,M45C,AD Adult Social Care Operations,Supplies and Services,"1,004.18",Feb-24
Slough Borough Council,806501,Excellent Healthcare Services Ltd,M48C,AD Adult Social Care Operations,Supplies and Services,833.98,Feb-24
Slough Borough Council,1992,Facultatieve Technologies Ltd,D320,Governance & Scruitiny / Law and Governance,Premises,"22,581.54",Feb-24
Slough Borough Council,808789,Faithful + Gould,B167,AD Building Management,Premises,"2,130.00",Feb-24
Slough Borough Council,808789,Faithful + Gould,B167,AD Building Management,Premises,887.50,Feb-24
Slough Borough Council,805225,Falcon Surfacing Ltd,C001,AD Place Operations,Premises,"1,300.00",Feb-24
Slough Borough Council,805225,Falcon Surfacing Ltd,C001,AD Place Operations,Premises,"2,665.00",Feb-24
Slough Borough Council,805225,Falcon Surfacing Ltd,B060,AD Building Management,Premises,"1,048.84",Feb-24
Slough Borough Council,805225,Falcon Surfacing Ltd,B060,AD Building Management,Premises,"1,862.50",Feb-24
Slough Borough Council,805225,Falcon Surfacing Ltd,P243,Capital,Supplies and Services,"2,609.00",Feb-24
Slough Borough Council,805225,Falcon Surfacing Ltd,D750,AD Place Operations,Supplies and Services,540.00,Feb-24
Slough Borough Council,805225,Falcon Surfacing Ltd,P579,Capital,Capital Charges,"6,958.56",Feb-24
Slough Borough Council,805225,Falcon Surfacing Ltd,P579,Capital,Capital Charges,"1,202.88",Feb-24
Slough Borough Council,805225,Falcon Surfacing Ltd,P243,Capital,Capital Charges,"1,825.00",Feb-24
Slough Borough Council,805225,Falcon Surfacing Ltd,P243,Capital,Capital Charges,"1,450.00",Feb-24
Slough Borough Council,955,First Beeline Buses Ltd,D512,AD Place Operations,Supplies and Services,"57,173.32",Feb-24
Slough Borough Council,955,First Beeline Buses Ltd,D512,AD Place Operations,Supplies and Services,"59,857.46",Feb-24
Slough Borough Council,955,First Beeline Buses Ltd,D512,AD Place Operations,Supplies and Services,"64,498.72",Feb-24
Slough Borough Council,955,First Beeline Buses Ltd,D512,AD Place Operations,Supplies and Services,"68,685.22",Feb-24
Slough Borough Council,955,First Beeline Buses Ltd,D512,AD Place Operations,Supplies and Services,"2,608.58",Feb-24
Slough Borough Council,1413,First Greater Western Ltd,F123,AD Education & Inclusion,External Receipts,"1,697.00",Feb-24
Slough Borough Council,754,First Steps Day Nursery,F281,AD Education & Inclusion,Supplies and Services,"6,482.41",Feb-24
Slough Borough Council,754,First Steps Day Nursery,F281,AD Education & Inclusion,Supplies and Services,"5,605.70",Feb-24
Slough Borough Council,1626,Five Star Radio Cars Limited,F123,AD Education & Inclusion,External Receipts,"1,567.50",Feb-24
Slough Borough Council,1626,Five Star Radio Cars Limited,F123,AD Education & Inclusion,External Receipts,880.00,Feb-24
Slough Borough Council,2460,Forest Bridge School Ltd,F551,AD Children & Families,Supplies and Services,"6,095.74",Feb-24
Slough Borough Council,1204,Forget Me Not,M25C,AD Adult Social Care Operations,Supplies and Services,"4,800.00",Feb-24
Slough Borough Council,1204,Forget Me Not,M25C,AD Adult Social Care Operations,Supplies and Services,"3,400.00",Feb-24
Slough Borough Council,1204,Forget Me Not,M25C,AD Adult Social Care Operations,Supplies and Services,"3,800.00",Feb-24
Slough Borough Council,1204,Forget Me Not,M25D,AD Adult Social Care Operations,Supplies and Services,"3,600.00",Feb-24
Slough Borough Council,1204,Forget Me Not,M27C,AD Adult Social Care Operations,Supplies and Services,"3,800.00",Feb-24
Slough Borough Council,1204,Forget Me Not,M27C,AD Adult Social Care Operations,Supplies and Services,"4,000.00",Feb-24
Slough Borough Council,1204,Forget Me Not,M27C,AD Adult Social Care Operations,Supplies and Services,"3,199.76",Feb-24
Slough Borough Council,647,Foxborough Primary School,E620,AD Children & Families,Supplies and Services,"7,250.78",Feb-24
Slough Borough Council,649,Freeway Lift Services Ltd,P006,Capital,Capital Charges,"7,365.00",Feb-24
Slough Borough Council,649,Freeway Lift Services Ltd,P006,Capital,Capital Charges,"18,015.00",Feb-24
Slough Borough Council,649,Freeway Lift Services Ltd,P006,Capital,Capital Charges,"11,549.00",Feb-24
Slough Borough Council,809379,Futar Al Limited,B282,AD Chief Digital & Information Officer,Supplies and Services,"19,140.00",Feb-24
Slough Borough Council,807125,Futures For Shared Lives,M36E,AD People Strategy & Commissioning,Supplies and Services,"3,214.65",Feb-24
Slough Borough Council,1758,Gas Advisory Services Limited,J606,AD Housing,Supplies and Services,840.00,Feb-24
Slough Borough Council,809062,GCH (St Katharine�s) Limited,M25C,AD Adult Social Care Operations,Supplies and Services,"4,557.14",Feb-24
Slough Borough Council,808711,George Browns LTD,D750,AD Place Operations,Supplies and Services,"1,716.36",Feb-24
Slough Borough Council,2830,GR Response Healthcare Ltd,A07R,AD Adult Social Care Operations,Supplies and Services,940.50,Feb-24
Slough Borough Council,2830,GR Response Healthcare Ltd,M44C,AD Adult Social Care Operations,Supplies and Services,"2,394.00",Feb-24
Slough Borough Council,2830,GR Response Healthcare Ltd,M44C,AD Adult Social Care Operations,Supplies and Services,"2,000.32",Feb-24
Slough Borough Council,2830,GR Response Healthcare Ltd,M44C,AD Adult Social Care Operations,Supplies and Services,"2,394.00",Feb-24
Slough Borough Council,2830,GR Response Healthcare Ltd,M44C,AD Adult Social Care Operations,Supplies and Services,"1,500.24",Feb-24
Slough Borough Council,2830,GR Response Healthcare Ltd,M44C,AD Adult Social Care Operations,Supplies and Services,"2,250.08",Feb-24
Slough Borough Council,2830,GR Response Healthcare Ltd,M44C,AD Adult Social Care Operations,Supplies and Services,"2,926.00",Feb-24
Slough Borough Council,2830,GR Response Healthcare Ltd,M44C,AD Adult Social Care Operations,Supplies and Services,"2,394.00",Feb-24
Slough Borough Council,2830,GR Response Healthcare Ltd,M44C,AD Adult Social Care Operations,Supplies and Services,"2,546.00",Feb-24
Slough Borough Council,2830,GR Response Healthcare Ltd,M44C,AD Adult Social Care Operations,Supplies and Services,"1,662.50",Feb-24
Slough Borough Council,2830,GR Response Healthcare Ltd,M44C,AD Adult Social Care Operations,Supplies and Services,-684.00,Feb-24
Slough Borough Council,2830,GR Response Healthcare Ltd,M44D,AD Adult Social Care Operations,Supplies and Services,"2,250.08",Feb-24
Slough Borough Council,2830,GR Response Healthcare Ltd,M44D,AD Adult Social Care Operations,Supplies and Services,"1,824.00",Feb-24
Slough Borough Council,2830,GR Response Healthcare Ltd,M44D,AD Adult Social Care Operations,Supplies and Services,"1,562.56",Feb-24
Slough Borough Council,2830,GR Response Healthcare Ltd,M44D,AD Adult Social Care Operations,Supplies and Services,"1,481.82",Feb-24
Slough Borough Council,2830,GR Response Healthcare Ltd,M44D,AD Adult Social Care Operations,Supplies and Services,"2,736.00",Feb-24
Slough Borough Council,2830,GR Response Healthcare Ltd,M44D,AD Adult Social Care Operations,Supplies and Services,931.00,Feb-24
Slough Borough Council,2830,GR Response Healthcare Ltd,M44D,AD Adult Social Care Operations,Supplies and Services,638.07,Feb-24
Slough Borough Council,2830,GR Response Healthcare Ltd,M44D,AD Adult Social Care Operations,Supplies and Services,"1,862.00",Feb-24
Slough Borough Council,2830,GR Response Healthcare Ltd,M44D,AD Adult Social Care Operations,Supplies and Services,"2,432.00",Feb-24
Slough Borough Council,2830,GR Response Healthcare Ltd,M44E,AD People Strategy & Commissioning,Supplies and Services,532.00,Feb-24
Slough Borough Council,809197,Grays Essex Limited,F123,AD Education & Inclusion,External Receipts,"14,155.00",Feb-24
Slough Borough Council,809197,Grays Essex Limited,F123,AD Education & Inclusion,External Receipts,"4,200.00",Feb-24
Slough Borough Council,808464,Greenstone Care,M44F,AD People Strategy & Commissioning,Supplies and Services,"1,950.00",Feb-24
Slough Borough Council,808464,Greenstone Care,M51C,AD Adult Social Care Operations,Supplies and Services,"1,963.29",Feb-24
Slough Borough Council,805069,Grove Academy,E610,AD Children & Families,Supplies and Services,"19,237.09",Feb-24
Slough Borough Council,804447,Grundon Waste Management Limited,D342,AD Place Operations,Supplies and Services,"20,846.89",Feb-24
Slough Borough Council,804447,Grundon Waste Management Limited,D342,AD Place Operations,Supplies and Services,"517,334.59",Feb-24
Slough Borough Council,804447,Grundon Waste Management Limited,D342,AD Place Operations,Supplies and Services,"512,613.03",Feb-24
Slough Borough Council,804447,Grundon Waste Management Limited,D342,AD Place Operations,Supplies and Services,"-517,334.59",Feb-24
Slough Borough Council,804447,Grundon Waste Management Limited,D342,AD Place Operations,Supplies and Services,"2,967.00",Feb-24
Slough Borough Council,804447,Grundon Waste Management Limited,D342,AD Place Operations,Supplies and Services,"4,442.00",Feb-24
Slough Borough Council,3228,H Plus Care Ltd,M25C,AD Adult Social Care Operations,Supplies and Services,"6,197.71",Feb-24
Slough Borough Council,3228,H Plus Care Ltd,M25C,AD Adult Social Care Operations,Supplies and Services,"1,089.43",Feb-24
Slough Borough Council,3228,H Plus Care Ltd,M25C,AD Adult Social Care Operations,Supplies and Services,"1,054.29",Feb-24
Slough Borough Council,3228,H Plus Care Ltd,M25C,AD Adult Social Care Operations,Supplies and Services,"1,089.43",Feb-24
Slough Borough Council,3228,H Plus Care Ltd,M25C,AD Adult Social Care Operations,Supplies and Services,"1,054.29",Feb-24
Slough Borough Council,3228,H Plus Care Ltd,M25C,AD Adult Social Care Operations,Supplies and Services,"1,089.43",Feb-24
Slough Borough Council,3228,H Plus Care Ltd,M25C,AD Adult Social Care Operations,Supplies and Services,"5,357.14",Feb-24
Slough Borough Council,3228,H Plus Care Ltd,M25C,AD Adult Social Care Operations,Supplies and Services,"1,089.42",Feb-24
Slough Borough Council,3228,H Plus Care Ltd,M25C,AD Adult Social Care Operations,Supplies and Services,"1,054.29",Feb-24
Slough Borough Council,3228,H Plus Care Ltd,M25C,AD Adult Social Care Operations,Supplies and Services,"1,089.43",Feb-24
Slough Borough Council,3228,H Plus Care Ltd,M25C,AD Adult Social Care Operations,Supplies and Services,"1,054.29",Feb-24
Slough Borough Council,3228,H Plus Care Ltd,M25C,AD Adult Social Care Operations,Supplies and Services,"1,089.43",Feb-24
Slough Borough Council,3228,H Plus Care Ltd,M26E,AD Adult Social Care Operations,Supplies and Services,"4,971.43",Feb-24
Slough Borough Council,3228,H Plus Care Ltd,M26E,AD Adult Social Care Operations,Supplies and Services,"5,314.29",Feb-24
Slough Borough Council,3228,H Plus Care Ltd,M26E,AD Adult Social Care Operations,Supplies and Services,"5,142.86",Feb-24
Slough Borough Council,3228,H Plus Care Ltd,M26E,AD Adult Social Care Operations,Supplies and Services,"1,310.85",Feb-24
Slough Borough Council,3228,H Plus Care Ltd,M26E,AD Adult Social Care Operations,Supplies and Services,"1,310.85",Feb-24
Slough Borough Council,3228,H Plus Care Ltd,M26E,AD Adult Social Care Operations,Supplies and Services,"1,310.85",Feb-24
Slough Borough Council,3228,H Plus Care Ltd,M26E,AD Adult Social Care Operations,Supplies and Services,"1,268.57",Feb-24
Slough Borough Council,3228,H Plus Care Ltd,M26E,AD Adult Social Care Operations,Supplies and Services,"1,310.85",Feb-24
Slough Borough Council,3228,H Plus Care Ltd,M26E,AD Adult Social Care Operations,Supplies and Services,"1,268.57",Feb-24
Slough Borough Council,3228,H Plus Care Ltd,M26E,AD Adult Social Care Operations,Supplies and Services,"1,268.57",Feb-24
Slough Borough Council,3228,H Plus Care Ltd,M26E,AD Adult Social Care Operations,Supplies and Services,"1,310.85",Feb-24
Slough Borough Council,3228,H Plus Care Ltd,M26E,AD Adult Social Care Operations,Supplies and Services,"1,310.89",Feb-24
Slough Borough Council,3228,H Plus Care Ltd,M26E,AD Adult Social Care Operations,Supplies and Services,"1,268.57",Feb-24
Slough Borough Council,806681,Hako Machines Ltd,D620,AD Place Operations,Supplies and Services,597.42,Feb-24
Slough Borough Council,806681,Hako Machines Ltd,D620,AD Place Operations,Supplies and Services,557.73,Feb-24
Slough Borough Council,1610,Handicare Uk,P006,Capital,Supplies and Services,"5,310.00",Feb-24
Slough Borough Council,1610,Handicare Uk,P006,Capital,Capital Charges,"2,225.00",Feb-24
Slough Borough Council,1610,Handicare Uk,P006,Capital,Capital Charges,"5,390.00",Feb-24
Slough Borough Council,809014,Havendale Ltd,H205,AD Housing,Supplies and Services,"8,516.00",Feb-24
Slough Borough Council,1381,Haybrook College,E610,AD Children & Families,Supplies and Services,"117,274.96",Feb-24
Slough Borough Council,1381,Haybrook College,P153,Capital,Capital Charges,"10,752.00",Feb-24
Slough Borough Council,1381,Haybrook College,P153,Capital,Capital Charges,"17,575.00",Feb-24
Slough Borough Council,3784,Haybrook College Pru,E610,AD Children & Families,Supplies and Services,"100,729.18",Feb-24
Slough Borough Council,803248,Haybrook College Trust,B297,AD Deputy Director Corporate & Strategic Finance,Government Grants,"1,290.00",Feb-24
Slough Borough Council,808639,Hazel Care Services Ltd,M42E,AD People Strategy & Commissioning,Supplies and Services,"4,565.68",Feb-24
Slough Borough Council,808639,Hazel Care Services Ltd,M42E,AD People Strategy & Commissioning,Supplies and Services,"2,234.17",Feb-24
Slough Borough Council,808639,Hazel Care Services Ltd,M42E,AD People Strategy & Commissioning,Supplies and Services,"6,993.60",Feb-24
Slough Borough Council,808639,Hazel Care Services Ltd,M44F,AD People Strategy & Commissioning,Supplies and Services,"3,498.66",Feb-24
Slough Borough Council,803753,Healthcare Homes,M15D,AD Adult Social Care Operations,Supplies and Services,"4,971.43",Feb-24
Slough Borough Council,803753,Healthcare Homes,M15D,AD Adult Social Care Operations,Supplies and Services,"2,748.87",Feb-24
Slough Borough Council,803753,Healthcare Homes,M15D,AD Adult Social Care Operations,Supplies and Services,"2,057.14",Feb-24
Slough Borough Council,803753,Healthcare Homes,M15D,AD Adult Social Care Operations,Supplies and Services,"-2,742.86",Feb-24
Slough Borough Council,803753,Healthcare Homes,M15D,AD Adult Social Care Operations,Supplies and Services,"-2,228.57",Feb-24
Slough Borough Council,803753,Healthcare Homes,M15D,AD Adult Social Care Operations,Supplies and Services,"2,571.43",Feb-24
Slough Borough Council,803753,Healthcare Homes,M17C,AD Adult Social Care Operations,Supplies and Services,"4,876.14",Feb-24
Slough Borough Council,803753,Healthcare Homes,M17C,AD Adult Social Care Operations,Supplies and Services,"4,971.43",Feb-24
Slough Borough Council,803753,Healthcare Homes,M17C,AD Adult Social Care Operations,Supplies and Services,"4,971.43",Feb-24
Slough Borough Council,803753,Healthcare Homes,M17C,AD Adult Social Care Operations,Supplies and Services,"7,680.86",Feb-24
Slough Borough Council,803753,Healthcare Homes,M17C,AD Adult Social Care Operations,Supplies and Services,"-2,742.86",Feb-24
Slough Borough Council,803753,Healthcare Homes,M17C,AD Adult Social Care Operations,Supplies and Services,"5,314.29",Feb-24
Slough Borough Council,803753,Healthcare Homes,M17C,AD Adult Social Care Operations,Supplies and Services,"5,314.29",Feb-24
Slough Borough Council,803753,Healthcare Homes,M17C,AD Adult Social Care Operations,Supplies and Services,"4,184.29",Feb-24
Slough Borough Council,803753,Healthcare Homes,M17C,AD Adult Social Care Operations,Supplies and Services,"2,632.25",Feb-24
Slough Borough Council,803753,Healthcare Homes,M17C,AD Adult Social Care Operations,Supplies and Services,"4,876.14",Feb-24
Slough Borough Council,803753,Healthcare Homes,M18C,AD Adult Social Care Operations,Supplies and Services,"4,876.14",Feb-24
Slough Borough Council,803753,Healthcare Homes,M18C,AD Adult Social Care Operations,Supplies and Services,"4,557.14",Feb-24
Slough Borough Council,803753,Healthcare Homes,M18C,AD Adult Social Care Operations,Supplies and Services,"4,876.14",Feb-24
Slough Borough Council,803753,Healthcare Homes,M18C,AD Adult Social Care Operations,Supplies and Services,"4,876.14",Feb-24
Slough Borough Council,803753,Healthcare Homes,M18C,AD Adult Social Care Operations,Supplies and Services,"4,876.14",Feb-24
Slough Borough Council,803753,Healthcare Homes,M27C,AD Adult Social Care Operations,Supplies and Services,"3,016.00",Feb-24
Slough Borough Council,803753,Healthcare Homes,M28C,AD Adult Social Care Operations,Supplies and Services,"5,314.29",Feb-24
Slough Borough Council,803753,Healthcare Homes,M28C,AD Adult Social Care Operations,Supplies and Services,"4,714.29",Feb-24
Slough Borough Council,803753,Healthcare Homes,M28C,AD Adult Social Care Operations,Supplies and Services,"4,871.43",Feb-24
Slough Borough Council,803753,Healthcare Homes,M28C,AD Adult Social Care Operations,Supplies and Services,"4,871.43",Feb-24
Slough Borough Council,803753,Healthcare Homes,M28C,AD Adult Social Care Operations,Supplies and Services,"-2,514.29",Feb-24
Slough Borough Council,803753,Healthcare Homes,M29C,AD Adult Social Care Operations,Supplies and Services,"-3,942.85",Feb-24
Slough Borough Council,803753,Healthcare Homes,M29C,AD Adult Social Care Operations,Supplies and Services,"5,314.29",Feb-24
Slough Borough Council,803753,Healthcare Homes,M29C,AD Adult Social Care Operations,Supplies and Services,"5,142.86",Feb-24
Slough Borough Council,803753,Healthcare Homes,M29C,AD Adult Social Care Operations,Supplies and Services,"5,314.29",Feb-24
Slough Borough Council,803753,Healthcare Homes,M29C,AD Adult Social Care Operations,Supplies and Services,"5,314.29",Feb-24
Slough Borough Council,803753,Healthcare Homes,M29C,AD Adult Social Care Operations,Supplies and Services,"4,971.43",Feb-24
Slough Borough Council,803753,Healthcare Homes,M29C,AD Adult Social Care Operations,Supplies and Services,"5,142.86",Feb-24
Slough Borough Council,805368,Heathermount School,F462,AD Children & Families,Supplies and Services,"21,115.20",Feb-24
Slough Borough Council,807682,Help and Care,A02C,AD People Strategy & Commissioning,Supplies and Services,"16,109.74",Feb-24
Slough Borough Council,1686,Herald Chase,B660,AD Strategy,Supplies and Services,"2,085.60",Feb-24
Slough Borough Council,803447,Herewards House Residential Home,A03E,AD Adult Social Care Operations,Supplies and Services,"7,042.86",Feb-24
Slough Borough Council,803447,Herewards House Residential Home,M25C,AD Adult Social Care Operations,Supplies and Services,"3,985.71",Feb-24
Slough Borough Council,803447,Herewards House Residential Home,M25C,AD Adult Social Care Operations,Supplies and Services,"3,521.43",Feb-24
Slough Borough Council,803447,Herewards House Residential Home,M25C,AD Adult Social Care Operations,Supplies and Services,"3,728.57",Feb-24
Slough Borough Council,803447,Herewards House Residential Home,M25C,AD Adult Social Care Operations,Supplies and Services,"3,764.29",Feb-24
Slough Borough Council,803447,Herewards House Residential Home,M27C,AD Adult Social Care Operations,Supplies and Services,"3,521.43",Feb-24
Slough Borough Council,803447,Herewards House Residential Home,M27C,AD Adult Social Care Operations,Supplies and Services,"3,728.57",Feb-24
Slough Borough Council,803447,Herewards House Residential Home,M27C,AD Adult Social Care Operations,Supplies and Services,"2,692.86",Feb-24
Slough Borough Council,3387,Herschel Grammar School,B297,AD Deputy Director Corporate & Strategic Finance,Government Grants,"1,035.00",Feb-24
Slough Borough Council,659,Hilton Cabinet Co Ltd,D320,Governance & Scruitiny / Law and Governance,Supplies and Services,751.46,Feb-24
Slough Borough Council,2899,Hm Revenue & Customs,P242,Capital,Capital Charges,"2,488,292.59",Feb-24
Slough Borough Council,809181,Hollyfield Management,H205,AD Housing,Supplies and Services,"10,850.00",Feb-24
Slough Borough Council,850,Holy Family Catholic Primary School,E250,AD Children & Families,Supplies and Services,"177,513.32",Feb-24
Slough Borough Council,850,Holy Family Catholic Primary School,F002,AD Public Protection & Communities - Public Health,Government Grants,"1,000.00",Feb-24
Slough Borough Council,808922,HOUSING ACTION MANAGEMENT LTD,H205,AD Housing,Supplies and Services,"1,705.00",Feb-24
Slough Borough Council,808922,HOUSING ACTION MANAGEMENT LTD,H205,AD Housing,Supplies and Services,"1,705.00",Feb-24
Slough Borough Council,2313,Hqn,J028,AD Housing,Supplies and Services,"3,350.00",Feb-24
Slough Borough Council,809315,HUNTMORE PROPERTY INVESTMENETS LIMITED,H205,AD Housing,Supplies and Services,"8,357.00",Feb-24
Slough Borough Council,808773,Hygiene Systems Ltd,B060,AD Building Management,Premises,"1,996.85",Feb-24
Slough Borough Council,808773,Hygiene Systems Ltd,B060,AD Building Management,Premises,"1,886.17",Feb-24
Slough Borough Council,803037,Idox Software Ltd,B064,AD Building Management,Premises,"6,040.06",Feb-24
Slough Borough Council,808897,Imperial Breeze Healthcare South East Ltd,M42E,AD People Strategy & Commissioning,Supplies and Services,"2,242.24",Feb-24
Slough Borough Council,808897,Imperial Breeze Healthcare South East Ltd,M42E,AD People Strategy & Commissioning,Supplies and Services,"1,349.86",Feb-24
Slough Borough Council,808897,Imperial Breeze Healthcare South East Ltd,M42E,AD People Strategy & Commissioning,Supplies and Services,"4,155.50",Feb-24
Slough Borough Council,808897,Imperial Breeze Healthcare South East Ltd,M42E,AD People Strategy & Commissioning,Supplies and Services,"5,713.83",Feb-24
Slough Borough Council,808897,Imperial Breeze Healthcare South East Ltd,M42E,AD People Strategy & Commissioning,Supplies and Services,686.17,Feb-24
Slough Borough Council,808897,Imperial Breeze Healthcare South East Ltd,M42E,AD People Strategy & Commissioning,Supplies and Services,"4,117.65",Feb-24
Slough Borough Council,2917,Imperial Coaches Ltd,F123,AD Education & Inclusion,External Receipts,"5,400.00",Feb-24
Slough Borough Council,351,Imperial Polythene Products Ltd,D620,AD Place Operations,Supplies and Services,"1,800.00",Feb-24
Slough Borough Council,807666,Independence Home and Domicilary Care,M44F,AD People Strategy & Commissioning,Supplies and Services,"2,940.66",Feb-24
Slough Borough Council,807666,Independence Home and Domicilary Care,M44F,AD People Strategy & Commissioning,Supplies and Services,"3,348.00",Feb-24
Slough Borough Council,807666,Independence Home and Domicilary Care,M44F,AD People Strategy & Commissioning,Supplies and Services,"1,544.58",Feb-24
Slough Borough Council,807666,Independence Home and Domicilary Care,M44F,AD People Strategy & Commissioning,Supplies and Services,"3,381.17",Feb-24
Slough Borough Council,807666,Independence Home and Domicilary Care,M44F,AD People Strategy & Commissioning,Supplies and Services,"3,381.17",Feb-24
Slough Borough Council,807666,Independence Home and Domicilary Care,M44F,AD People Strategy & Commissioning,Supplies and Services,"2,940.66",Feb-24
Slough Borough Council,807666,Independence Home and Domicilary Care,M44F,AD People Strategy & Commissioning,Supplies and Services,"3,348.00",Feb-24
Slough Borough Council,807666,Independence Home and Domicilary Care,M44F,AD People Strategy & Commissioning,Supplies and Services,"1,544.58",Feb-24
Slough Borough Council,3570,Independent Supported Living And Disabilities Ltd,M42E,AD People Strategy & Commissioning,Supplies and Services,"3,286.48",Feb-24
Slough Borough Council,3570,Independent Supported Living And Disabilities Ltd,M44E,AD People Strategy & Commissioning,Supplies and Services,"4,506.84",Feb-24
Slough Borough Council,3570,Independent Supported Living And Disabilities Ltd,M44E,AD People Strategy & Commissioning,Supplies and Services,"3,819.92",Feb-24
Slough Borough Council,3570,Independent Supported Living And Disabilities Ltd,M44E,AD People Strategy & Commissioning,Supplies and Services,"1,050.00",Feb-24
Slough Borough Council,3570,Independent Supported Living And Disabilities Ltd,M44E,AD People Strategy & Commissioning,Supplies and Services,"1,540.80",Feb-24
Slough Borough Council,3570,Independent Supported Living And Disabilities Ltd,M44F,AD People Strategy & Commissioning,Supplies and Services,"2,790.56",Feb-24
Slough Borough Council,803651,Insight Direct (UK) Ltd,B342,AD Chief Digital & Information Officer,Supplies and Services,"38,290.00",Feb-24
Slough Borough Council,803651,Insight Direct (UK) Ltd,C406,AD Public Protection & Communities - Children Services,Supplies and Services,594.10,Feb-24
Slough Borough Council,803651,Insight Direct (UK) Ltd,C406,AD Public Protection & Communities - Children Services,Supplies and Services,960.33,Feb-24
Slough Borough Council,3172,Intelligent Transport Services,P209,Capital,Capital Charges,616.95,Feb-24
Slough Borough Council,3172,Intelligent Transport Services,P212,Capital,Capital Charges,"1,028.25",Feb-24
Slough Borough Council,3172,Intelligent Transport Services,P238,Capital,Capital Charges,"2,056.50",Feb-24
Slough Borough Council,3172,Intelligent Transport Services,P244,Capital,Capital Charges,"1,645.20",Feb-24
Slough Borough Council,3172,Intelligent Transport Services,P579,Capital,Capital Charges,"2,262.15",Feb-24
Slough Borough Council,1880,In-Tend Limited,B146,AD Deputy Director Financial Management,Supplies and Services,"7,838.00",Feb-24
Slough Borough Council,807818,Intercity Technology Ltd,B342,AD Chief Digital & Information Officer,Supplies and Services,850.00,Feb-24
Slough Borough Council,2588,Iprow Services Ltd,D105,AD Place Operations,Indirect Employee Expenses,660.00,Feb-24
Slough Borough Council,3500,Iqra Slough Islamic Primary School,E480,AD Children & Families,Supplies and Services,"24,661.49",Feb-24
Slough Borough Council,998,Iron Mountain Uk Ltd,B282,AD Chief Digital & Information Officer,Supplies and Services,"4,414.22",Feb-24
Slough Borough Council,998,Iron Mountain Uk Ltd,B282,AD Chief Digital & Information Officer,Supplies and Services,"4,386.40",Feb-24
Slough Borough Council,998,Iron Mountain Uk Ltd,B282,AD Chief Digital & Information Officer,Supplies and Services,"4,386.40",Feb-24
Slough Borough Council,998,Iron Mountain Uk Ltd,B282,AD Chief Digital & Information Officer,Supplies and Services,"4,386.40",Feb-24
Slough Borough Council,998,Iron Mountain Uk Ltd,B282,AD Chief Digital & Information Officer,Supplies and Services,"1,664.95",Feb-24
Slough Borough Council,998,Iron Mountain Uk Ltd,B282,AD Chief Digital & Information Officer,Supplies and Services,"1,778.58",Feb-24
Slough Borough Council,998,Iron Mountain Uk Ltd,B282,AD Chief Digital & Information Officer,Supplies and Services,"1,664.95",Feb-24
Slough Borough Council,2919,Islamic Shakhsiyah Foundation,F281,AD Education & Inclusion,Supplies and Services,"7,779.88",Feb-24
Slough Borough Council,2919,Islamic Shakhsiyah Foundation,F281,AD Education & Inclusion,Supplies and Services,"1,884.18",Feb-24
Slough Borough Council,753,Jack In The Box Day Nursery,F281,AD Education & Inclusion,Supplies and Services,"6,106.94",Feb-24
Slough Borough Council,753,Jack In The Box Day Nursery,F281,AD Education & Inclusion,Supplies and Services,"4,527.12",Feb-24
Slough Borough Council,733,James Elliman  School,E620,AD Children & Families,Supplies and Services,"38,587.12",Feb-24
Slough Borough Council,1970,James Elliman Academy,B297,AD Deputy Director Corporate & Strategic Finance,Government Grants,"1,740.00",Feb-24
Slough Borough Council,805666,James Rosental,C322,AD Public Protection & Communities - Children Services,Supplies and Services,"1,290.50",Feb-24
Slough Borough Council,809378,Jasmine Supported Living,M44F,AD People Strategy & Commissioning,Supplies and Services,940.00,Feb-24
Slough Borough Council,809378,Jasmine Supported Living,M44F,AD People Strategy & Commissioning,Supplies and Services,"1,316.00",Feb-24
Slough Borough Council,809378,Jasmine Supported Living,M44F,AD People Strategy & Commissioning,Supplies and Services,"1,316.00",Feb-24
Slough Borough Council,809378,Jasmine Supported Living,M44F,AD People Strategy & Commissioning,Supplies and Services,940.00,Feb-24
Slough Borough Council,809378,Jasmine Supported Living,M44F,AD People Strategy & Commissioning,Supplies and Services,"1,316.00",Feb-24
Slough Borough Council,809378,Jasmine Supported Living,M44F,AD People Strategy & Commissioning,Supplies and Services,"1,316.00",Feb-24
Slough Borough Council,809378,Jasmine Supported Living,M44F,AD People Strategy & Commissioning,Supplies and Services,940.00,Feb-24
Slough Borough Council,809378,Jasmine Supported Living,M44F,AD People Strategy & Commissioning,Supplies and Services,"1,316.00",Feb-24
Slough Borough Council,809378,Jasmine Supported Living,M44F,AD People Strategy & Commissioning,Supplies and Services,"1,316.00",Feb-24
Slough Borough Council,809378,Jasmine Supported Living,M44F,AD People Strategy & Commissioning,Supplies and Services,940.00,Feb-24
Slough Borough Council,809378,Jasmine Supported Living,M44F,AD People Strategy & Commissioning,Supplies and Services,"1,316.00",Feb-24
Slough Borough Council,809378,Jasmine Supported Living,M44F,AD People Strategy & Commissioning,Supplies and Services,"1,316.00",Feb-24
Slough Borough Council,809378,Jasmine Supported Living,M44F,AD People Strategy & Commissioning,Supplies and Services,"1,316.00",Feb-24
Slough Borough Council,809378,Jasmine Supported Living,M44F,AD People Strategy & Commissioning,Supplies and Services,"1,316.00",Feb-24
Slough Borough Council,807807,John Gobongitta,A02A,AD People Strategy & Commissioning,Supplies and Services,500.00,Feb-24
Slough Borough Council,807807,John Gobongitta,A02A,AD People Strategy & Commissioning,Supplies and Services,"1,000.00",Feb-24
Slough Borough Council,2200,Joshua Pilmore,C322,AD Public Protection & Communities - Children Services,Supplies and Services,"1,950.00",Feb-24
Slough Borough Council,2200,Joshua Pilmore,C322,AD Public Protection & Communities - Children Services,Supplies and Services,"2,237.50",Feb-24
Slough Borough Council,809063,KARELINK LTD,M18C,AD Adult Social Care Operations,Supplies and Services,"3,321.43",Feb-24
Slough Borough Council,803815,Kathys Childcare,F282,AD Education & Inclusion,Supplies and Services,671.06,Feb-24
Slough Borough Council,803815,Kathys Childcare,F282,AD Education & Inclusion,Supplies and Services,958.65,Feb-24
Slough Borough Council,2620,Kcare Nursing Agency Ltd,M44C,AD Adult Social Care Operations,Supplies and Services,"1,226.13",Feb-24
Slough Borough Council,2620,Kcare Nursing Agency Ltd,M44D,AD Adult Social Care Operations,Supplies and Services,"1,512.65",Feb-24
Slough Borough Council,2620,Kcare Nursing Agency Ltd,M48C,AD Adult Social Care Operations,Supplies and Services,"4,000.00",Feb-24
Slough Borough Council,2620,Kcare Nursing Agency Ltd,M48C,AD Adult Social Care Operations,Supplies and Services,980.18,Feb-24
Slough Borough Council,804887,KCare Nursing Agency Ltd Supported House Living,M42F,AD People Strategy & Commissioning,Supplies and Services,"2,926.00",Feb-24
Slough Borough Council,804887,KCare Nursing Agency Ltd Supported House Living,M44F,AD People Strategy & Commissioning,Supplies and Services,"2,493.50",Feb-24
Slough Borough Council,808146,Kents Hill Care Home,M18C,AD Adult Social Care Operations,Supplies and Services,"3,914.86",Feb-24
Slough Borough Council,807742,Khalsa Primary School,E620,AD Children & Families,Supplies and Services,"10,756.20",Feb-24
Slough Borough Council,803916,Kharis Solutions,M42E,AD People Strategy & Commissioning,Supplies and Services,"10,360.00",Feb-24
Slough Borough Council,803916,Kharis Solutions,M42E,AD People Strategy & Commissioning,Supplies and Services,"10,360.00",Feb-24
Slough Borough Council,803916,Kharis Solutions,M42E,AD People Strategy & Commissioning,Supplies and Services,"7,679.32",Feb-24
Slough Borough Council,803916,Kharis Solutions,M42E,AD People Strategy & Commissioning,Supplies and Services,"10,360.00",Feb-24
Slough Borough Council,803916,Kharis Solutions,M42E,AD People Strategy & Commissioning,Supplies and Services,"10,360.00",Feb-24
Slough Borough Council,803916,Kharis Solutions,M44C,AD Adult Social Care Operations,Supplies and Services,"1,716.12",Feb-24
Slough Borough Council,803916,Kharis Solutions,M44C,AD Adult Social Care Operations,Supplies and Services,"1,611.06",Feb-24
Slough Borough Council,803916,Kharis Solutions,M44C,AD Adult Social Care Operations,Supplies and Services,"1,733.60",Feb-24
Slough Borough Council,803916,Kharis Solutions,M44D,AD Adult Social Care Operations,Supplies and Services,"1,716.12",Feb-24
Slough Borough Council,803916,Kharis Solutions,M44E,AD People Strategy & Commissioning,Supplies and Services,"10,360.00",Feb-24
Slough Borough Council,803916,Kharis Solutions,M44E,AD People Strategy & Commissioning,Supplies and Services,"10,360.00",Feb-24
Slough Borough Council,803916,Kharis Solutions,M45C,AD Adult Social Care Operations,Supplies and Services,"1,234.53",Feb-24
Slough Borough Council,803916,Kharis Solutions,M48C,AD Adult Social Care Operations,Supplies and Services,"2,276.44",Feb-24
Slough Borough Council,808935,KJP UK Ltd T/A One Consulting Group,B081,AD Property,Supplies and Services,"2,000.00",Feb-24
Slough Borough Council,808599,lakhwinder Singh,H205,AD Housing,Supplies and Services,"1,550.00",Feb-24
Slough Borough Council,808599,lakhwinder Singh,H205,AD Housing,Supplies and Services,"1,550.00",Feb-24
Slough Borough Council,808599,lakhwinder Singh,H205,AD Housing,Supplies and Services,"1,550.00",Feb-24
Slough Borough Council,664,Langley Grammar School,E610,AD Children & Families,Supplies and Services,875.00,Feb-24
Slough Borough Council,664,Langley Grammar School,B297,AD Deputy Director Corporate & Strategic Finance,Government Grants,"1,020.00",Feb-24
Slough Borough Council,1699,Langley Hall Primary Academy,E620,AD Children & Families,Supplies and Services,"9,996.58",Feb-24
Slough Borough Council,3001,Langley Haven Care Homes Ltd,M25D,AD Adult Social Care Operations,Supplies and Services,"4,144.31",Feb-24
Slough Borough Council,3001,Langley Haven Care Homes Ltd,M29C,AD Adult Social Care Operations,Supplies and Services,"2,858.15",Feb-24
Slough Borough Council,3001,Langley Haven Care Homes Ltd,M29C,AD Adult Social Care Operations,Supplies and Services,"1,286.16",Feb-24
Slough Borough Council,3001,Langley Haven Care Homes Ltd,M29C,AD Adult Social Care Operations,Supplies and Services,"4,144.31",Feb-24
Slough Borough Council,3001,Langley Haven Care Homes Ltd,M29C,AD Adult Social Care Operations,Supplies and Services,"2,858.14",Feb-24
Slough Borough Council,803686,Lascelles Park Nursery,F281,AD Education & Inclusion,Premises,"2,555.63",Feb-24
Slough Borough Council,803686,Lascelles Park Nursery,F281,AD Education & Inclusion,Premises,"1,141.26",Feb-24
Slough Borough Council,803686,Lascelles Park Nursery,F281,AD Education & Inclusion,Supplies and Services,"2,228.47",Feb-24
Slough Borough Council,803686,Lascelles Park Nursery,F281,AD Education & Inclusion,Supplies and Services,621.38,Feb-24
Slough Borough Council,3482,Leonard Cheshire Disability,M25D,AD Adult Social Care Operations,Supplies and Services,"5,699.36",Feb-24
Slough Borough Council,3482,Leonard Cheshire Disability,M25D,AD Adult Social Care Operations,Supplies and Services,"6,242.69",Feb-24
Slough Borough Council,3482,Leonard Cheshire Disability,M25D,AD Adult Social Care Operations,Supplies and Services,"6,041.34",Feb-24
Slough Borough Council,3482,Leonard Cheshire Disability,M25D,AD Adult Social Care Operations,Supplies and Services,"6,242.69",Feb-24
Slough Borough Council,3482,Leonard Cheshire Disability,M25D,AD Adult Social Care Operations,Supplies and Services,"6,041.31",Feb-24
Slough Borough Council,3482,Leonard Cheshire Disability,M25D,AD Adult Social Care Operations,Supplies and Services,"6,242.69",Feb-24
Slough Borough Council,3482,Leonard Cheshire Disability,M25D,AD Adult Social Care Operations,Supplies and Services,"6,242.69",Feb-24
Slough Borough Council,808892,Letee Limited,H205,AD Housing,Supplies and Services,"6,975.00",Feb-24
Slough Borough Council,808892,Letee Limited,H205,AD Housing,Supplies and Services,"1,705.00",Feb-24
Slough Borough Council,808892,Letee Limited,H205,AD Housing,Supplies and Services,"1,395.00",Feb-24
Slough Borough Council,808892,Letee Limited,H205,AD Housing,Supplies and Services,"1,705.00",Feb-24
Slough Borough Council,808892,Letee Limited,H205,AD Housing,Supplies and Services,"2,015.00",Feb-24
Slough Borough Council,808892,Letee Limited,H205,AD Housing,Supplies and Services,"1,550.00",Feb-24
Slough Borough Council,808892,Letee Limited,H205,AD Housing,Supplies and Services,"1,705.00",Feb-24
Slough Borough Council,808892,Letee Limited,H205,AD Housing,Supplies and Services,"1,705.00",Feb-24
Slough Borough Council,808892,Letee Limited,H205,AD Housing,Supplies and Services,"2,170.00",Feb-24
Slough Borough Council,808892,Letee Limited,H205,AD Housing,Supplies and Services,"2,015.00",Feb-24
Slough Borough Council,808892,Letee Limited,H205,AD Housing,Supplies and Services,"6,820.00",Feb-24
Slough Borough Council,3019,Lg Futures Limited,B015,AD Deputy Director Financial Management,Supplies and Services,"10,990.00",Feb-24
Slough Borough Council,301,Liberata Uk Limited,B048,AD Deputy Director Corporate & Strategic Finance,Supplies and Services,"9,680.04",Feb-24
Slough Borough Council,804692,Little Diamonds Pre School,F281,AD Education & Inclusion,Premises,"1,168.01",Feb-24
Slough Borough Council,804692,Little Diamonds Pre School,F281,AD Education & Inclusion,Supplies and Services,"13,238.53",Feb-24
Slough Borough Council,804692,Little Diamonds Pre School,F281,AD Education & Inclusion,Supplies and Services,"2,593.46",Feb-24
Slough Borough Council,3791,Littledown Pru,E610,AD Children & Families,Supplies and Services,"17,100.00",Feb-24
Slough Borough Council,667,Littledown School,E610,AD Children & Families,Supplies and Services,"32,079.33",Feb-24
Slough Borough Council,804544,London Borough of Harrow,M99C,AD Children & Families,Supplies and Services,"3,209.83",Feb-24
Slough Borough Council,804544,London Borough of Harrow,B096,Democratic Services,Indirect Employee Expenses,"119,842.06",Feb-24
Slough Borough Council,804544,London Borough of Harrow,B096,Democratic Services,Indirect Employee Expenses,"108,516.77",Feb-24
Slough Borough Council,804544,London Borough of Harrow,B096,Democratic Services,Indirect Employee Expenses,"108,489.10",Feb-24
Slough Borough Council,1282,Long Close School,F281,AD Education & Inclusion,Supplies and Services,"1,089.37",Feb-24
Slough Borough Council,2302,Look Ahead Care And Support,M42F,AD People Strategy & Commissioning,Supplies and Services,"1,691.74",Feb-24
Slough Borough Council,2302,Look Ahead Care And Support,M42F,AD People Strategy & Commissioning,Supplies and Services,"1,691.74",Feb-24
Slough Borough Council,2302,Look Ahead Care And Support,M42F,AD People Strategy & Commissioning,Supplies and Services,"-19,477.02",Feb-24
Slough Borough Council,2302,Look Ahead Care And Support,M42F,AD People Strategy & Commissioning,Supplies and Services,"1,750.07",Feb-24
Slough Borough Council,2302,Look Ahead Care And Support,M42F,AD People Strategy & Commissioning,Supplies and Services,"1,808.41",Feb-24
Slough Borough Council,2302,Look Ahead Care And Support,M42F,AD People Strategy & Commissioning,Supplies and Services,"1,750.07",Feb-24
Slough Borough Council,2302,Look Ahead Care And Support,M42F,AD People Strategy & Commissioning,Supplies and Services,"1,808.41",Feb-24
Slough Borough Council,2302,Look Ahead Care And Support,M42F,AD People Strategy & Commissioning,Supplies and Services,"26,366.22",Feb-24
Slough Borough Council,2302,Look Ahead Care And Support,M42F,AD People Strategy & Commissioning,Supplies and Services,"1,808.41",Feb-24
Slough Borough Council,2302,Look Ahead Care And Support,M42F,AD People Strategy & Commissioning,Supplies and Services,991.71,Feb-24
Slough Borough Council,2302,Look Ahead Care And Support,M42F,AD People Strategy & Commissioning,Supplies and Services,"1,750.07",Feb-24
Slough Borough Council,2302,Look Ahead Care And Support,M42F,AD People Strategy & Commissioning,Supplies and Services,"1,808.41",Feb-24
Slough Borough Council,2302,Look Ahead Care And Support,M42F,AD People Strategy & Commissioning,Supplies and Services,"1,808.41",Feb-24
Slough Borough Council,2302,Look Ahead Care And Support,M44D,AD Adult Social Care Operations,Supplies and Services,"6,379.60",Feb-24
Slough Borough Council,2302,Look Ahead Care And Support,M44F,AD People Strategy & Commissioning,Supplies and Services,"1,692.15",Feb-24
Slough Borough Council,2302,Look Ahead Care And Support,M44F,AD People Strategy & Commissioning,Supplies and Services,"1,692.15",Feb-24
Slough Borough Council,2302,Look Ahead Care And Support,M44F,AD People Strategy & Commissioning,Supplies and Services,845.89,Feb-24
Slough Borough Council,2302,Look Ahead Care And Support,M44F,AD People Strategy & Commissioning,Supplies and Services,766.43,Feb-24
Slough Borough Council,2302,Look Ahead Care And Support,M44F,AD People Strategy & Commissioning,Supplies and Services,"1,691.74",Feb-24
Slough Borough Council,2302,Look Ahead Care And Support,M44F,AD People Strategy & Commissioning,Supplies and Services,"1,464.79",Feb-24
Slough Borough Council,2302,Look Ahead Care And Support,M44F,AD People Strategy & Commissioning,Supplies and Services,"1,466.57",Feb-24
Slough Borough Council,2302,Look Ahead Care And Support,M44F,AD People Strategy & Commissioning,Supplies and Services,"1,691.74",Feb-24
Slough Borough Council,2302,Look Ahead Care And Support,M44F,AD People Strategy & Commissioning,Supplies and Services,845.85,Feb-24
Slough Borough Council,2302,Look Ahead Care And Support,M44F,AD People Strategy & Commissioning,Supplies and Services,845.89,Feb-24
Slough Borough Council,2302,Look Ahead Care And Support,M44F,AD People Strategy & Commissioning,Supplies and Services,"1,466.57",Feb-24
Slough Borough Council,2302,Look Ahead Care And Support,M44F,AD People Strategy & Commissioning,Supplies and Services,"-2,948.05",Feb-24
Slough Borough Council,2302,Look Ahead Care And Support,M44F,AD People Strategy & Commissioning,Supplies and Services,"3,030.73",Feb-24
Slough Borough Council,2302,Look Ahead Care And Support,M44F,AD People Strategy & Commissioning,Supplies and Services,"3,131.75",Feb-24
Slough Borough Council,2302,Look Ahead Care And Support,M44F,AD People Strategy & Commissioning,Supplies and Services,"-6,162.48",Feb-24
Slough Borough Council,2302,Look Ahead Care And Support,M44F,AD People Strategy & Commissioning,Supplies and Services,846.05,Feb-24
Slough Borough Council,2302,Look Ahead Care And Support,M44F,AD People Strategy & Commissioning,Supplies and Services,"1,466.57",Feb-24
Slough Borough Council,2302,Look Ahead Care And Support,M44F,AD People Strategy & Commissioning,Supplies and Services,875.06,Feb-24
Slough Borough Council,2302,Look Ahead Care And Support,M44F,AD People Strategy & Commissioning,Supplies and Services,904.23,Feb-24
Slough Borough Council,2302,Look Ahead Care And Support,M44F,AD People Strategy & Commissioning,Supplies and Services,875.06,Feb-24
Slough Borough Council,2302,Look Ahead Care And Support,M44F,AD People Strategy & Commissioning,Supplies and Services,904.23,Feb-24
Slough Borough Council,2302,Look Ahead Care And Support,M44F,AD People Strategy & Commissioning,Supplies and Services,904.23,Feb-24
Slough Borough Council,2302,Look Ahead Care And Support,M44F,AD People Strategy & Commissioning,Supplies and Services,819.29,Feb-24
Slough Borough Council,2302,Look Ahead Care And Support,M44F,AD People Strategy & Commissioning,Supplies and Services,"-1,515.30",Feb-24
Slough Borough Council,2302,Look Ahead Care And Support,M44F,AD People Strategy & Commissioning,Supplies and Services,"-1,565.81",Feb-24
Slough Borough Council,2302,Look Ahead Care And Support,M44F,AD People Strategy & Commissioning,Supplies and Services,"-1,565.81",Feb-24
Slough Borough Council,2302,Look Ahead Care And Support,M44F,AD People Strategy & Commissioning,Supplies and Services,"2,929.58",Feb-24
Slough Borough Council,2302,Look Ahead Care And Support,M44F,AD People Strategy & Commissioning,Supplies and Services,"2,929.58",Feb-24
Slough Borough Council,2302,Look Ahead Care And Support,M44F,AD People Strategy & Commissioning,Supplies and Services,"1,808.41",Feb-24
Slough Borough Council,2302,Look Ahead Care And Support,M44F,AD People Strategy & Commissioning,Supplies and Services,"1,808.85",Feb-24
Slough Borough Council,2302,Look Ahead Care And Support,M44F,AD People Strategy & Commissioning,Supplies and Services,"1,808.85",Feb-24
Slough Borough Council,2302,Look Ahead Care And Support,M44F,AD People Strategy & Commissioning,Supplies and Services,904.18,Feb-24
Slough Borough Council,2302,Look Ahead Care And Support,M44F,AD People Strategy & Commissioning,Supplies and Services,"1,567.71",Feb-24
Slough Borough Council,2302,Look Ahead Care And Support,M44F,AD People Strategy & Commissioning,Supplies and Services,"1,808.41",Feb-24
Slough Borough Council,2302,Look Ahead Care And Support,M44F,AD People Strategy & Commissioning,Supplies and Services,904.23,Feb-24
Slough Borough Council,2302,Look Ahead Care And Support,M44F,AD People Strategy & Commissioning,Supplies and Services,"1,567.71",Feb-24
Slough Borough Council,2302,Look Ahead Care And Support,M44F,AD People Strategy & Commissioning,Supplies and Services,"1,565.81",Feb-24
Slough Borough Council,2302,Look Ahead Care And Support,M44F,AD People Strategy & Commissioning,Supplies and Services,"1,567.71",Feb-24
Slough Borough Council,2302,Look Ahead Care And Support,M44F,AD People Strategy & Commissioning,Supplies and Services,"-1,515.30",Feb-24
Slough Borough Council,2302,Look Ahead Care And Support,M44F,AD People Strategy & Commissioning,Supplies and Services,"-1,565.81",Feb-24
Slough Borough Council,2302,Look Ahead Care And Support,M44F,AD People Strategy & Commissioning,Supplies and Services,904.40,Feb-24
Slough Borough Council,2302,Look Ahead Care And Support,H211,AD People Strategy & Commissioning,Supplies and Services,816.68,Feb-24
Slough Borough Council,2302,Look Ahead Care And Support,H211,AD People Strategy & Commissioning,Supplies and Services,"1,633.80",Feb-24
Slough Borough Council,2302,Look Ahead Care And Support,H211,AD People Strategy & Commissioning,Supplies and Services,"20,620.31",Feb-24
Slough Borough Council,2302,Look Ahead Care And Support,H211,AD People Strategy & Commissioning,Supplies and Services,"13,982.80",Feb-24
Slough Borough Council,2302,Look Ahead Care And Support,H211,AD People Strategy & Commissioning,Supplies and Services,816.68,Feb-24
Slough Borough Council,2302,Look Ahead Care And Support,H211,AD People Strategy & Commissioning,Supplies and Services,556.19,Feb-24
Slough Borough Council,1195,Lynch Hill (Foundation Primary) School,E620,AD Children & Families,Supplies and Services,"50,257.85",Feb-24
Slough Borough Council,1771,Lynch Hill Academy,E620,AD Children & Families,Supplies and Services,"11,993.72",Feb-24
Slough Borough Council,806390,Lynch Hill Enterprise Academy (NEW),F002,AD Public Protection & Communities - Public Health,Government Grants,"1,000.00",Feb-24
Slough Borough Council,806720,Lynn Broadhurst,F282,AD Education & Inclusion,Premises,537.90,Feb-24
Slough Borough Council,806136,M & S Accident Repairs LTD,M50A,AD Place Operations,Transport,"1,249.94",Feb-24
Slough Borough Council,3424,M D Homes,M15F,AD People Strategy & Commissioning,Supplies and Services,"4,785.00",Feb-24
Slough Borough Council,807217,Macadamia Support Limited,M42E,AD People Strategy & Commissioning,Supplies and Services,"11,756.52",Feb-24
Slough Borough Council,807217,Macadamia Support Limited,M42E,AD People Strategy & Commissioning,Supplies and Services,"7,308.00",Feb-24
Slough Borough Council,807217,Macadamia Support Limited,M42E,AD People Strategy & Commissioning,Supplies and Services,"3,973.20",Feb-24
Slough Borough Council,807217,Macadamia Support Limited,M42E,AD People Strategy & Commissioning,Supplies and Services,"6,438.84",Feb-24
Slough Borough Council,807217,Macadamia Support Limited,M42E,AD People Strategy & Commissioning,Supplies and Services,"7,308.00",Feb-24
Slough Borough Council,807217,Macadamia Support Limited,M42E,AD People Strategy & Commissioning,Supplies and Services,"6,931.20",Feb-24
Slough Borough Council,807217,Macadamia Support Limited,M42E,AD People Strategy & Commissioning,Supplies and Services,"3,589.12",Feb-24
Slough Borough Council,807217,Macadamia Support Limited,M44C,AD Adult Social Care Operations,Supplies and Services,"3,591.56",Feb-24
Slough Borough Council,807217,Macadamia Support Limited,M44D,AD Adult Social Care Operations,Supplies and Services,"5,523.00",Feb-24
Slough Borough Council,1874,Maccabee Pets Hotel,H253,AD Public Protection & Communities - Public Health,Supplies and Services,"2,278.50",Feb-24
Slough Borough Council,1874,Maccabee Pets Hotel,H253,AD Public Protection & Communities - Public Health,Supplies and Services,"5,145.00",Feb-24
Slough Borough Council,1874,Maccabee Pets Hotel,H253,AD Public Protection & Communities - Public Health,Supplies and Services,"1,860.00",Feb-24
Slough Borough Council,1874,Maccabee Pets Hotel,H253,AD Public Protection & Communities - Public Health,Supplies and Services,"3,520.00",Feb-24
Slough Borough Council,1941,Manor Green School,F449,AD Education & Inclusion,Supplies and Services,945.00,Feb-24
Slough Borough Council,1941,Manor Green School,F551,AD Children & Families,Supplies and Services,"134,704.00",Feb-24
Slough Borough Council,1941,Manor Green School,F551,AD Children & Families,Supplies and Services,"-10,000.00",Feb-24
Slough Borough Council,1941,Manor Green School,F551,AD Children & Families,Supplies and Services,"268,525.00",Feb-24
Slough Borough Council,3768,Marish Academy Trust,F200,AD Education & Inclusion,Salaries and Wages-Employees Expenses,508.10,Feb-24
Slough Borough Council,529,Marish Primary School,E620,AD Children & Families,Supplies and Services,"115,490.15",Feb-24
Slough Borough Council,809126,Marlston Assets Ltd T/A Leburnum Guest House,H205,AD Housing,Supplies and Services,"20,847.50",Feb-24
Slough Borough Council,809126,Marlston Assets Ltd T/A Leburnum Guest House,H205,AD Housing,Supplies and Services,"20,847.50",Feb-24
Slough Borough Council,2752,Martin Conway,M44F,AD People Strategy & Commissioning,Supplies and Services,577.50,Feb-24
Slough Borough Council,2752,Martin Conway,M44F,AD People Strategy & Commissioning,Supplies and Services,577.50,Feb-24
Slough Borough Council,2752,Martin Conway,M80F,AD People Strategy & Commissioning,Supplies and Services,529.43,Feb-24
Slough Borough Council,1886,Matrix Scm,B023,AD Deputy Director Corporate & Strategic Finance,Agency Staff,"486,981.47",Feb-24
Slough Borough Council,1886,Matrix Scm,B023,AD Deputy Director Corporate & Strategic Finance,Agency Staff,"477,730.48",Feb-24
Slough Borough Council,1886,Matrix Scm,B023,AD Deputy Director Corporate & Strategic Finance,Agency Staff,"508,535.09",Feb-24
Slough Borough Council,1886,Matrix Scm,B023,AD Deputy Director Corporate & Strategic Finance,Agency Staff,"502,829.57",Feb-24
Slough Borough Council,804310,Matta Products,C001,AD Place Operations,Premises,"6,867.00",Feb-24
Slough Borough Council,807684,Maverick Care  Ltd T/A Christies Care Windsor & Maidenhead,M44C,AD Adult Social Care Operations,Supplies and Services,"1,302.50",Feb-24
Slough Borough Council,807684,Maverick Care  Ltd T/A Christies Care Windsor & Maidenhead,M44C,AD Adult Social Care Operations,Supplies and Services,796.50,Feb-24
Slough Borough Council,807684,Maverick Care  Ltd T/A Christies Care Windsor & Maidenhead,M44C,AD Adult Social Care Operations,Supplies and Services,961.00,Feb-24
Slough Borough Council,807684,Maverick Care  Ltd T/A Christies Care Windsor & Maidenhead,M44C,AD Adult Social Care Operations,Supplies and Services,966.00,Feb-24
Slough Borough Council,807684,Maverick Care  Ltd T/A Christies Care Windsor & Maidenhead,M44C,AD Adult Social Care Operations,Supplies and Services,999.50,Feb-24
Slough Borough Council,807684,Maverick Care  Ltd T/A Christies Care Windsor & Maidenhead,M44C,AD Adult Social Care Operations,Supplies and Services,"1,860.00",Feb-24
Slough Borough Council,807684,Maverick Care  Ltd T/A Christies Care Windsor & Maidenhead,M44C,AD Adult Social Care Operations,Supplies and Services,"1,411.00",Feb-24
Slough Borough Council,807684,Maverick Care  Ltd T/A Christies Care Windsor & Maidenhead,M44D,AD Adult Social Care Operations,Supplies and Services,"4,562.25",Feb-24
Slough Borough Council,807684,Maverick Care  Ltd T/A Christies Care Windsor & Maidenhead,M45C,AD Adult Social Care Operations,Supplies and Services,560.50,Feb-24
Slough Borough Council,807684,Maverick Care  Ltd T/A Christies Care Windsor & Maidenhead,M45C,AD Adult Social Care Operations,Supplies and Services,803.43,Feb-24
Slough Borough Council,807684,Maverick Care  Ltd T/A Christies Care Windsor & Maidenhead,M45C,AD Adult Social Care Operations,Supplies and Services,"1,263.50",Feb-24
Slough Borough Council,803130,MCPC Systems UK Ltd,C001,AD Place Operations,Premises,"1,300.00",Feb-24
Slough Borough Council,806926,Meadow High School,F551,AD Children & Families,Supplies and Services,"10,466.66",Feb-24
Slough Borough Council,809279,Middlesex Housing Ltd,H205,AD Housing,Supplies and Services,"6,210.00",Feb-24
Slough Borough Council,1496,Mighty Acorns Day Nursery Ltd,F281,AD Education & Inclusion,Premises,828.00,Feb-24
Slough Borough Council,1496,Mighty Acorns Day Nursery Ltd,F281,AD Education & Inclusion,Premises,"6,434.23",Feb-24
Slough Borough Council,1496,Mighty Acorns Day Nursery Ltd,F281,AD Education & Inclusion,Premises,"1,766.41",Feb-24
Slough Borough Council,1496,Mighty Acorns Day Nursery Ltd,F281,AD Education & Inclusion,Supplies and Services,"4,154.83",Feb-24
Slough Borough Council,1496,Mighty Acorns Day Nursery Ltd,F281,AD Education & Inclusion,Supplies and Services,910.26,Feb-24
